Workbook

Sheet ReadMe
A1: LDCurve - Load Duration Curve Creation Tool
A3: Developed by:
A4: Stephanie Johnson
A5: Ph.D. Candidate/Graduate Research Assistant
A6: Center for Research in Water Resources
A7: University of Texas at Austin
A8: sljohnson@mail.utexas.edu
A10: Most Recent Updates: 10/16/2008
A13: Notes for use:
A14: The user must have the "Analysis Toolpak" activated in the Excel workbook.
A15: The user must also have HydroObjects installed on their computer. The most recent version of HydroObjects can be downloaded at:
A16: http://his.cuahsi.org/hydroobjects.html

Sheet Station Definition
Z1: =INT(CONVERT('Flow Data'!B2-'Water Quality Data'!#REF!,"day","yr")) -> 
A19: Information to be entered by the user is indicated in orange. All other cells are reserved for calculations and should be left unaltered.
B21: Define Curves
B23: TCEQ water quality segment: | C23: 1014
B25: Correlated USGS gauge station: | C25: 08073500
B27: Dates of Analysis (must be after 1/1/1900):
B28: Start Date: | C28: 2000-01-01
B29: End Date: | C29: 2008-01-01
B31: LDC Margin of Safety (% Reduction): | C31: 0.05
B33: Data Retrieved: | C33: 2010-09-27T12:27:56

Sheet Flow Data
A4: USGS Raw Data | E4: COMPUTED
A5: Date | B5: Flow (cfs) | D5: USGS Flow (cfs) | E5: Frequency of Flow | F5: Probability of Flow | G5: Cum. Distribution of Flow | H5: Flow Exceedance Percentile | I5: Target Single Sample Fecal Coliform Load (CFU/Day) | J5: Target Single Sample Fecal Coliform Load w/ MOS (CFU/Day) | K5: Target Single Sample E. Coli Load (CFU/Day) | L5: Target Single Sample E. Coli Load w/ MOS (CFU/Day)
A6: 2000-01-01 | B6: 31 | D6: 13 | E6: 3 | F6: =E6/2923 -> 0.001026342798 | G6: =F6 -> 0.001026342798 | H6: =1-G6 -> 0.9989736572 | I6: =((400/100)*1000*D6)*28.3168*60*60*24 -> 127221719040 | J6: =(1-0.05)*I6 -> 120860633088 | K6: =((394/100)*1000*D6)*28.3168*60*60*24 -> 1.253133933e+11 | L6: =(1-0.05)*K6 -> 1.190477236e+11
A7: 2000-01-02 | B7: 31 | D7: 14 | E7: 4 | F7: 0.001368457065 | G7: =G6 + F7 -> 0.002394799863 | H7: 0.9976052001 | I7: 137008005120 | J7: 130157604864 | K7: 1.34952885e+11 | L7: 1.282052408e+11
A8: 2000-01-03 | B8: 32 | D8: 16 | E8: 9 | F8: 0.003079028395 | G8: 0.005473828259 | H8: 0.9945261717 | I8: 156580577280 | J8: 148751548416 | K8: 1.542318686e+11 | L8: 1.465202752e+11
A9: 2000-01-04 | B9: 32 | D9: 17 | E9: 9 | F9: 0.003079028395 | G9: 0.008552856654 | H9: 0.9914471433 | I9: 1.663668634e+11 | J9: 1.580485202e+11 | K9: 1.638713604e+11 | L9: 1.556777924e+11
A10: 2000-01-05 | B10: 29 | D10: 18 | E10: 3 | F10: 0.001026342798 | G10: 0.009579199453 | H10: 0.9904208005 | I10: 176153149440 | J10: 167345491968 | K10: 1.735108522e+11 | L10: 1.648353096e+11
A11: 2000-01-06 | B11: 30 | D11: 19 | E11: 3 | F11: 0.001026342798 | G11: 0.01060554225 | H11: 0.9893944577 | I11: 1.859394355e+11 | J11: 1.766424637e+11 | K11: 1.83150344e+11 | L11: 1.739928268e+11
A12: 2000-01-07 | B12: 32 | D12: 20 | E12: 1 | F12: 0.0003421142662 | G12: 0.01094765652 | H12: 0.9890523435 | I12: 195725721600 | J12: 185939435520 | K12: 1.927898358e+11 | L12: 1.83150344e+11
A13: 2000-01-08 | B13: 226 | D13: 21 | E13: 6 | F13: 0.002052685597 | G13: 0.01300034211 | H13: 0.9869996579 | I13: 205512007680 | J13: 195236407296 | K13: 2.024293276e+11 | L13: 1.923078612e+11
A14: 2000-01-09 | B14: 264 | D14: 22 | E14: 5 | F14: 0.001710571331 | G14: 0.01471091345 | H14: 0.9852890866 | I14: 215298293760 | J14: 204533379072 | K14: 2.120688194e+11 | L14: 2.014653784e+11
A15: 2000-01-10 | B15: 110 | D15: 23 | E15: 3 | F15: 0.001026342798 | G15: 0.01573725624 | H15: 0.9842627438 | I15: 225084579840 | J15: 213830350848 | K15: 2.217083111e+11 | L15: 2.106228956e+11
A16: 2000-01-11 | B16: 63 | D16: 24 | E16: 2 | F16: 0.0006842285323 | G16: 0.01642148478 | H16: 0.9835785152 | I16: 2.348708659e+11 | J16: 2.231273226e+11 | K16: 2.313478029e+11 | L16: 2.197804128e+11
A17: 2000-01-12 | B17: 45 | D17: 25 | E17: 2 | F17: 0.0006842285323 | G17: 0.01710571331 | H17: 0.9828942867 | I17: 244657152000 | J17: 232424294400 | K17: 2.409872947e+11 | L17: 2.2893793e+11
A18: 2000-01-13 | B18: 37 | D18: 26 | E18: 1 | F18: 0.0003421142662 | G18: 0.01744782757 | H18: 0.9825521724 | I18: 254443438080 | J18: 241721266176 | K18: 2.506267865e+11 | L18: 2.380954472e+11
A19: 2000-01-14 | B19: 35 | D19: 27 | E19: 1 | F19: 0.0003421142662 | G19: 0.01778994184 | H19: 0.9822100582 | I19: 264229724160 | J19: 251018237952 | K19: 2.602662783e+11 | L19: 2.472529644e+11
A20: 2000-01-15 | B20: 33 | D20: 28 | E20: 2 | F20: 0.0006842285323 | G20: 0.01847417037 | H20: 0.9815258296 | I20: 274016010240 | J20: 260315209728 | K20: 2.699057701e+11 | L20: 2.564104816e+11
A21: 2000-01-16 | B21: 32 | D21: 29 | E21: 2 | F21: 0.0006842285323 | G21: 0.01915839891 | H21: 0.9808416011 | I21: 2.838022963e+11 | J21: 2.696121815e+11 | K21: 2.795452619e+11 | L21: 2.655679988e+11
A22: 2000-01-17 | B22: 38 | D22: 30 | E22: 4 | F22: 0.001368457065 | G22: 0.02052685597 | H22: 0.979473144 | I22: 293588582400 | J22: 278909153280 | K22: 2.891847537e+11 | L22: 2.74725516e+11
A23: 2000-01-18 | B23: 35 | D23: 31 | E23: 5 | F23: 0.001710571331 | G23: 0.0222374273 | H23: 0.9777625727 | I23: 303374868480 | J23: 288206125056 | K23: 2.988242455e+11 | L23: 2.838830332e+11
A24: 2000-01-19 | B24: 33 | D24: 32 | E24: 9 | F24: 0.003079028395 | G24: 0.0253164557 | H24: 0.9746835443 | I24: 313161154560 | J24: 297503096832 | K24: 3.084637372e+11 | L24: 2.930405504e+11
A25: 2000-01-20 | B25: 32 | D25: 33 | E25: 3 | F25: 0.001026342798 | G25: 0.02634279849 | H25: 0.9736572015 | I25: 322947440640 | J25: 306800068608 | K25: 3.18103229e+11 | L25: 3.021980676e+11
A26: 2000-01-21 | B26: 32 | D26: 34 | E26: 2 | F26: 0.0006842285323 | G26: 0.02702702703 | H26: 0.972972973 | I26: 3.327337267e+11 | J26: 3.160970404e+11 | K26: 3.277427208e+11 | L26: 3.113555848e+11
A27: 2000-01-22 | B27: 32 | D27: 35 | E27: 8 | F27: 0.002736914129 | G27: 0.02976394116 | H27: 0.9702360588 | I27: 342520012800 | J27: 325394012160 | K27: 3.373822126e+11 | L27: 3.20513102e+11
A28: 2000-01-23 | B28: 31 | D28: 36 | E28: 7 | F28: 0.002394799863 | G28: 0.03215874102 | H28: 0.967841259 | I28: 352306298880 | J28: 334690983936 | K28: 3.470217044e+11 | L28: 3.296706192e+11
A29: 2000-01-24 | B29: 32 | D29: 37 | E29: 7 | F29: 0.002394799863 | G29: 0.03455354088 | H29: 0.9654464591 | I29: 362092584960 | J29: 343987955712 | K29: 3.566611962e+11 | L29: 3.388281364e+11
A30: 2000-01-25 | B30: 31 | D30: 38 | E30: 11 | F30: 0.003763256928 | G30: 0.03831679781 | H30: 0.9616832022 | I30: 3.71878871e+11 | J30: 3.532849275e+11 | K30: 3.66300688e+11 | L30: 3.479856536e+11
A31: 2000-01-26 | B31: 30 | D31: 39 | E31: 10 | F31: 0.003421142662 | G31: 0.04173794047 | H31: 0.9582620595 | I31: 381665157120 | J31: 362581899264 | K31: 3.759401798e+11 | L31: 3.571431708e+11
A32: 2000-01-27 | B32: 149 | D32: 40 | E32: 11 | F32: 0.003763256928 | G32: 0.0455011974 | H32: 0.9544988026 | I32: 391451443200 | J32: 371878871040 | K32: 3.855796716e+11 | L32: 3.66300688e+11
A33: 2000-01-28 | B33: 418 | D33: 41 | E33: 10 | F33: 0.003421142662 | G33: 0.04892234006 | H33: 0.9510776599 | I33: 401237729280 | J33: 381175842816 | K33: 3.952191633e+11 | L33: 3.754582052e+11
A34: 2000-01-29 | B34: 275 | D34: 42 | E34: 16 | F34: 0.005473828259 | G34: 0.05439616832 | H34: 0.9456038317 | I34: 411024015360 | J34: 390472814592 | K34: 4.048586551e+11 | L34: 3.846157224e+11
A35: 2000-01-30 | B35: 104 | D35: 43 | E35: 10 | F35: 0.003421142662 | G35: 0.05781731098 | H35: 0.942182689 | I35: 4.208103014e+11 | J35: 3.997697864e+11 | K35: 4.144981469e+11 | L35: 3.937732396e+11
A36: 2000-01-31 | B36: 75 | D36: 44 | E36: 18 | F36: 0.006158056791 | G36: 0.06397536777 | H36: 0.9360246322 | I36: 430596587520 | J36: 409066758144 | K36: 4.241376387e+11 | L36: 4.029307568e+11
A37: 2000-02-01 | B37: 75 | D37: 45 | E37: 22 | F37: 0.007526513856 | G37: 0.07150188163 | H37: 0.9284981184 | I37: 440382873600 | J37: 418363729920 | K37: 433777130496 | L37: 4.12088274e+11
A38: 2000-02-02 | B38: 95 | D38: 46 | E38: 32 | F38: 0.01094765652 | G38: 0.08244953815 | H38: 0.9175504619 | I38: 450169159680 | J38: 427660701696 | K38: 4.434166223e+11 | L38: 4.212457912e+11
A39: 2000-02-03 | B39: 79 | D39: 47 | E39: 27 | F39: 0.009237085186 | G39: 0.09168662333 | H39: 0.9083133767 | I39: 459955445760 | J39: 436957673472 | K39: 4.530561141e+11 | L39: 4.304033084e+11
A40: 2000-02-04 | B40: 60 | D40: 48 | E40: 29 | F40: 0.009921313719 | G40: 0.1016079371 | H40: 0.8983920629 | I40: 4.697417318e+11 | J40: 4.462546452e+11 | K40: 4.626956059e+11 | L40: 4.395608256e+11
A41: 2000-02-05 | B41: 49 | D41: 49 | E41: 24 | F41: 0.008210742388 | G41: 0.1098186794 | H41: 0.8901813206 | I41: 479528017920 | J41: 455551617024 | K41: 4.723350977e+11 | L41: 4.487183428e+11
A42: 2000-02-06 | B42: 44 | D42: 50 | E42: 28 | F42: 0.009579199453 | G42: 0.1193978789 | H42: 0.8806021211 | I42: 489314304000 | J42: 464848588800 | K42: 4.819745894e+11 | L42: 4.5787586e+11
A43: 2000-02-07 | B43: 162 | D43: 51 | E43: 31 | F43: 0.01060554225 | G43: 0.1300034211 | H43: 0.8699965789 | I43: 499100590080 | J43: 474145560576 | K43: 4.916140812e+11 | L43: 4.670333772e+11
A44: 2000-02-08 | B44: 339 | D44: 52 | E44: 35 | F44: 0.01197399932 | G44: 0.1419774205 | H44: 0.8580225795 | I44: 508886876160 | J44: 483442532352 | K44: 5.01253573e+11 | L44: 4.761908944e+11
A45: 2000-02-09 | B45: 199 | D45: 53 | E45: 36 | F45: 0.01231611358 | G45: 0.154293534 | H45: 0.845706466 | I45: 5.186731622e+11 | J45: 4.927395041e+11 | K45: 5.108930648e+11 | L45: 4.853484116e+11
A46: 2000-02-10 | B46: 102 | D46: 54 | E46: 25 | F46: 0.008552856654 | G46: 0.1628463907 | H46: 0.8371536093 | I46: 528459448320 | J46: 502036475904 | K46: 5.205325566e+11 | L46: 4.945059288e+11
A47: 2000-02-11 | B47: 70 | D47: 55 | E47: 36 | F47: 0.01231611358 | G47: 0.1751625043 | H47: 0.8248374957 | I47: 538245734400 | J47: 511333447680 | K47: 530172048384 | L47: 5.03663446e+11
A48: 2000-02-12 | B48: 54 | D48: 56 | E48: 35 | F48: 0.01197399932 | G48: 0.1871365036 | H48: 0.8128634964 | I48: 548032020480 | J48: 520630419456 | K48: 5.398115402e+11 | L48: 5.128209632e+11
A49: 2000-02-13 | B49: 48 | D49: 57 | E49: 20 | F49: 0.006842285323 | G49: 0.1939787889 | H49: 0.8060212111 | I49: 557818306560 | J49: 529927391232 | K49: 5.49451032e+11 | L49: 5.219784804e+11
A50: 2000-02-14 | B50: 45 | D50: 58 | E50: 24 | F50: 0.008210742388 | G50: 0.2021895313 | H50: 0.7978104687 | I50: 5.676045926e+11 | J50: 5.39224363e+11 | K50: 5.590905238e+11 | L50: 5.311359976e+11
A51: 2000-02-15 | B51: 39 | D51: 59 | E51: 22 | F51: 0.007526513856 | G51: 0.2097160452 | H51: 0.7902839548 | I51: 577390878720 | J51: 548521334784 | K51: 5.687300155e+11 | L51: 5.402935148e+11
A52: 2000-02-16 | B52: 40 | D52: 60 | E52: 23 | F52: 0.007868628122 | G52: 0.2175846733 | H52: 0.7824153267 | I52: 587177164800 | J52: 557818306560 | K52: 5.783695073e+11 | L52: 5.49451032e+11
A53: 2000-02-17 | B53: 41 | D53: 61 | E53: 26 | F53: 0.00889497092 | G53: 0.2264796442 | H53: 0.7735203558 | I53: 596963450880 | J53: 567115278336 | K53: 5.880089991e+11 | L53: 5.586085492e+11
A54: 2000-02-18 | B54: 39 | D54: 62 | E54: 23 | F54: 0.007868628122 | G54: 0.2343482723 | H54: 0.7656517277 | I54: 606749736960 | J54: 576412250112 | K54: 5.976484909e+11 | L54: 5.677660664e+11
A55: 2000-02-19 | B55: 38 | D55: 63 | E55: 19 | F55: 0.006500171057 | G55: 0.2408484434 | H55: 0.7591515566 | I55: 6.16536023e+11 | J55: 5.857092219e+11 | K55: 6.072879827e+11 | L55: 5.769235836e+11
A56: 2000-02-20 | B56: 38 | D56: 64 | E56: 26 | F56: 0.00889497092 | G56: 0.2497434143 | H56: 0.7502565857 | I56: 626322309120 | J56: 595006193664 | K56: 6.169274745e+11 | L56: 5.860811008e+11
A57: 2000-02-21 | B57: 38 | D57: 65 | E57: 24 | F57: 0.008210742388 | G57: 0.2579541567 | H57: 0.7420458433 | I57: 636108595200 | J57: 604303165440 | K57: 626566966272 | L57: 5.95238618e+11
A58: 2000-02-22 | B58: 40 | D58: 66 | E58: 23 | F58: 0.007868628122 | G58: 0.2658227848 | H58: 0.7341772152 | I58: 645894881280 | J58: 613600137216 | K58: 6.362064581e+11 | L58: 6.043961352e+11
A59: 2000-02-23 | B59: 258 | D59: 67 | E59: 19 | F59: 0.006500171057 | G59: 0.2723229559 | H59: 0.7276770441 | I59: 655681167360 | J59: 622897108992 | K59: 6.458459498e+11 | L59: 6.135536524e+11
A60: 2000-02-24 | B60: 383 | D60: 68 | E60: 24 | F60: 0.008210742388 | G60: 0.2805336983 | H60: 0.7194663017 | I60: 6.654674534e+11 | J60: 6.321940808e+11 | K60: 6.554854416e+11 | L60: 6.227111696e+11
A61: 2000-02-25 | B61: 166 | D61: 69 | E61: 22 | F61: 0.007526513856 | G61: 0.2880602121 | H61: 0.7119397879 | I61: 675253739520 | J61: 641491052544 | K61: 6.651249334e+11 | L61: 6.318686868e+11
A62: 2000-02-26 | B62: 102 | D62: 70 | E62: 17 | F62: 0.005815942525 | G62: 0.2938761546 | H62: 0.7061238454 | I62: 685040025600 | J62: 650788024320 | K62: 6.747644252e+11 | L62: 6.41026204e+11
A63: 2000-02-27 | B63: 72 | D63: 71 | E63: 23 | F63: 0.007868628122 | G63: 0.3017447828 | H63: 0.6982552172 | I63: 694826311680 | J63: 660084996096 | K63: 6.84403917e+11 | L63: 6.501837212e+11
A64: 2000-02-28 | B64: 52 | D64: 72 | E64: 24 | F64: 0.008210742388 | G64: 0.3099555251 | H64: 0.6900444749 | I64: 704612597760 | J64: 669381967872 | K64: 6.940434088e+11 | L64: 6.593412384e+11
A65: 2000-02-29 | B65: 43 | D65: 73 | E65: 18 | F65: 0.006158056791 | G65: 0.3161135819 | H65: 0.6838864181 | I65: 7.143988838e+11 | J65: 6.786789396e+11 | K65: 7.036829006e+11 | L65: 6.684987556e+11
A66: 2000-03-01 | B66: 41 | D66: 74 | E66: 21 | F66: 0.007184399589 | G66: 0.3232979815 | H66: 0.6767020185 | I66: 724185169920 | J66: 687975911424 | K66: 7.133223924e+11 | L66: 6.776562728e+11
A67: 2000-03-02 | B67: 38 | D67: 75 | E67: 28 | F67: 0.009579199453 | G67: 0.332877181 | H67: 0.667122819 | I67: 733971456000 | J67: 697272883200 | K67: 722961884160 | L67: 686813789952
A68: 2000-03-03 | B68: 38 | D68: 76 | E68: 11 | F68: 0.003763256928 | G68: 0.3366404379 | H68: 0.6633595621 | I68: 7.437577421e+11 | J68: 7.06569855e+11 | K68: 7.326013759e+11 | L68: 6.959713072e+11
A69: 2000-03-04 | B69: 36 | D69: 77 | E69: 18 | F69: 0.006158056791 | G69: 0.3427984947 | H69: 0.6572015053 | I69: 753544028160 | J69: 715866826752 | K69: 7.422408677e+11 | L69: 7.051288244e+11
A70: 2000-03-05 | B70: 36 | D70: 78 | E70: 20 | F70: =E70/2923 -> 0.006842285323 | G70: 0.34964078 | H70: =1-G70 -> 0.65035922 | I70: =((400/100)*1000*D70)*28.3168*60*60*24 -> 763330314240 | J70: =(1-0.05)*I70 -> 725163798528 | K70: =((394/100)*1000*D70)*28.3168*60*60*24 -> 7.518803595e+11 | L70: =(1-0.05)*K70 -> 7.142863416e+11
A71: 2000-03-06 | B71: 37 | D71: 79 | E71: 18 | F71: 0.006158056791 | G71: =G70 + F71 -> 0.3557988368 | H71: 0.6442011632 | I71: 773116600320 | J71: 734460770304 | K71: 7.615198513e+11 | L71: 7.234438587e+11
A72: 2000-03-07 | B72: 39 | D72: 80 | E72: 19 | F72: 0.006500171057 | G72: 0.3622990079 | H72: 0.6377009921 | I72: 782902886400 | J72: 743757742080 | K72: 7.711593431e+11 | L72: 7.326013759e+11
A73: 2000-03-08 | B73: 36 | D73: 81 | E73: 15 | F73: 0.005131713992 | G73: 0.3674307219 | H73: 0.6325692781 | I73: 7.926891725e+11 | J73: 7.530547139e+11 | K73: 7.807988349e+11 | L73: 7.417588931e+11
A74: 2000-03-09 | B74: 37 | D74: 82 | E74: 16 | F74: 0.005473828259 | G74: 0.3729045501 | H74: 0.6270954499 | I74: 802475458560 | J74: 762351685632 | K74: 7.904383267e+11 | L74: 7.509164103e+11
A75: 2000-03-10 | B75: 37 | D75: 83 | E75: 14 | F75: 0.004789599726 | G75: 0.3776941498 | H75: 0.6223058502 | I75: 812261744640 | J75: 771648657408 | K75: 8.000778185e+11 | L75: 7.600739275e+11
A76: 2000-03-11 | B76: 118 | D76: 84 | E76: 16 | F76: 0.005473828259 | G76: 0.3831679781 | H76: 0.6168320219 | I76: 822048030720 | J76: 780945629184 | K76: 8.097173103e+11 | L76: 7.692314447e+11
A77: 2000-03-12 | B77: 84 | D77: 85 | E77: 12 | F77: 0.004105371194 | G77: 0.3872733493 | H77: 0.6127266507 | I77: 831834316800 | J77: 790242600960 | K77: 8.19356802e+11 | L77: 7.783889619e+11
A78: 2000-03-13 | B78: 50 | D78: 86 | E78: 21 | F78: 0.007184399589 | G78: 0.3944577489 | H78: 0.6055422511 | I78: 8.416206029e+11 | J78: 7.995395727e+11 | K78: 8.289962938e+11 | L78: 7.875464791e+11
A79: 2000-03-14 | B79: 81 | D79: 87 | E79: 14 | F79: 0.004789599726 | G79: 0.3992473486 | H79: 0.6007526514 | I79: 851406888960 | J79: 808836544512 | K79: 8.386357856e+11 | L79: 7.967039963e+11
A80: 2000-03-15 | B80: 68 | D80: 88 | E80: 16 | F80: 0.005473828259 | G80: 0.4047211769 | H80: 0.5952788231 | I80: 861193175040 | J80: 818133516288 | K80: 8.482752774e+11 | L80: 8.058615135e+11
A81: 2000-03-16 | B81: 264 | D81: 89 | E81: 10 | F81: 0.003421142662 | G81: 0.4081423195 | H81: 0.5918576805 | I81: 870979461120 | J81: 827430488064 | K81: 8.579147692e+11 | L81: 8.150190307e+11
A82: 2000-03-17 | B82: 115 | D82: 90 | E82: 12 | F82: 0.004105371194 | G82: 0.4122476907 | H82: 0.5877523093 | I82: 880765747200 | J82: 836727459840 | K82: 867554260992 | L82: 8.241765479e+11
A83: 2000-03-18 | B83: 57 | D83: 91 | E83: 14 | F83: 0.004789599726 | G83: 0.4170372905 | H83: 0.5829627095 | I83: 8.905520333e+11 | J83: 8.460244316e+11 | K83: 8.771937528e+11 | L83: 8.333340651e+11
A84: 2000-03-19 | B84: 51 | D84: 92 | E84: 10 | F84: 0.003421142662 | G84: 0.4204584331 | H84: 0.5795415669 | I84: 900338319360 | J84: 855321403392 | K84: 8.868332446e+11 | L84: 8.424915823e+11
A85: 2000-03-20 | B85: 52 | D85: 93 | E85: 19 | F85: 0.006500171057 | G85: 0.4269586042 | H85: 0.5730413958 | I85: 910124605440 | J85: 864618375168 | K85: 8.964727364e+11 | L85: 8.516490995e+11
A86: 2000-03-21 | B86: 44 | D86: 94 | E86: 17 | F86: 0.005815942525 | G86: 0.4327745467 | H86: 0.5672254533 | I86: 919910891520 | J86: 873915346944 | K86: 9.061122281e+11 | L86: 8.608066167e+11
A87: 2000-03-22 | B87: 65 | D87: 95 | E87: 13 | F87: 0.00444748546 | G87: 0.4372220322 | H87: 0.5627779678 | I87: 929697177600 | J87: 883212318720 | K87: 915751719936 | L87: 8.699641339e+11
A88: 2000-03-23 | B88: 56 | D88: 96 | E88: 14 | F88: 0.004789599726 | G88: 0.4420116319 | H88: 0.5579883681 | I88: 9.394834637e+11 | J88: 8.925092905e+11 | K88: 9.253912117e+11 | L88: 8.791216511e+11
A89: 2000-03-24 | B89: 47 | D89: 97 | E89: 11 | F89: 0.003763256928 | G89: 0.4457748888 | H89: 0.5542251112 | I89: 949269749760 | J89: 901806262272 | K89: 9.350307035e+11 | L89: 8.882791683e+11
A90: 2000-03-25 | B90: 45 | D90: 98 | E90: 14 | F90: 0.004789599726 | G90: 0.4505644885 | H90: 0.5494355115 | I90: 959056035840 | J90: 911103234048 | K90: 9.446701953e+11 | L90: 8.974366855e+11
A91: 2000-03-26 | B91: 42 | D91: 99 | E91: 12 | F91: 0.004105371194 | G91: 0.4546698597 | H91: 0.5453301403 | I91: 968842321920 | J91: 920400205824 | K91: 9.543096871e+11 | L91: 9.065942027e+11
A92: 2000-03-27 | B92: 40 | D92: 100 | E92: 14 | F92: 0.004789599726 | G92: 0.4594594595 | H92: 0.5405405405 | I92: 978628608000 | J92: 929697177600 | K92: 9.639491789e+11 | L92: 9.157517199e+11
A93: 2000-03-28 | B93: 39 | D93: 101 | E93: 6 | F93: 0.002052685597 | G93: 0.4615121451 | H93: 0.5384878549 | I93: 9.884148941e+11 | J93: 9.389941494e+11 | K93: 9.735886707e+11 | L93: 9.249092371e+11
A94: 2000-03-29 | B94: 40 | D94: 102 | E94: 18 | F94: 0.006158056791 | G94: 0.4676702018 | H94: 0.5323297982 | I94: 998201180160 | J94: 948291121152 | K94: 9.832281625e+11 | L94: 9.340667543e+11
A95: 2000-03-30 | B95: 38 | D95: 103 | E95: 7 | F95: 0.002394799863 | G95: 0.4700650017 | H95: 0.5299349983 | I95: 1007987466240 | J95: 957588092928 | K95: 9.928676542e+11 | L95: 9.432242715e+11
A96: 2000-03-31 | B96: 35 | D96: 104 | E96: 8 | F96: 0.002736914129 | G96: 0.4728019158 | H96: 0.5271980842 | I96: 1017773752320 | J96: 966885064704 | K96: 1.002507146e+12 | L96: 9.523817887e+11
A97: 2000-04-01 | B97: 42 | D97: 105 | E97: 7 | F97: 0.002394799863 | G97: 0.4751967157 | H97: 0.5248032843 | I97: 1027560038400 | J97: 976182036480 | K97: 1012146637824 | L97: 9.615393059e+11
A98: 2000-04-02 | B98: 413 | D98: 106 | E98: 15 | F98: 0.005131713992 | G98: 0.4803284297 | H98: 0.5196715703 | I98: 1.037346324e+12 | J98: 9.854790083e+11 | K98: 1.02178613e+12 | L98: 9.706968231e+11
A99: 2000-04-03 | B99: 222 | D99: 107 | E99: 11 | F99: 0.003763256928 | G99: 0.4840916866 | H99: 0.5159083134 | I99: 1047132610560 | J99: 994775980032 | K99: 1.031425621e+12 | L99: 9.798543403e+11
A100: 2000-04-04 | B100: 849 | D100: 108 | E100: 15 | F100: 0.005131713992 | G100: 0.4892234006 | H100: 0.5107765994 | I100: 1056918896640 | J100: 1004072951808 | K100: 1.041065113e+12 | L100: 9.890118575e+11
A101: 2000-04-05 | B101: 1670 | D101: 109 | E101: 9 | F101: 0.003079028395 | G101: 0.492302429 | H101: 0.507697571 | I101: 1066705182720 | J101: 1013369923584 | K101: 1.050704605e+12 | L101: 9.981693747e+11
A102: 2000-04-06 | B102: 1200 | D102: 110 | E102: 14 | F102: 0.004789599726 | G102: 0.4970920287 | H102: 0.5029079713 | I102: 1076491468800 | J102: 1022666895360 | K102: 1060344096768 | L102: 1.007326892e+12
A103: 2000-04-07 | B103: 395 | D103: 111 | E103: 5 | F103: 0.001710571331 | G103: 0.4988026001 | H103: 0.5011973999 | I103: 1.086277755e+12 | J103: 1.031963867e+12 | K103: 1.069983589e+12 | L103: 1.016484409e+12
A104: 2000-04-08 | B104: 29 | D104: 112 | E104: 13 | F104: 0.00444748546 | G104: 0.5032500855 | H104: 0.4967499145 | I104: 1096064040960 | J104: 1041260838912 | K104: 1.07962308e+12 | L104: 1.025641926e+12
A105: 2000-04-09 | B105: 21 | D105: 113 | E105: 8 | F105: 0.002736914129 | G105: 0.5059869997 | H105: 0.4940130003 | I105: 1105850327040 | J105: 1050557810688 | K105: 1.089262572e+12 | L105: 1.034799444e+12
A106: 2000-04-10 | B106: 19 | D106: 114 | E106: 3 | F106: 0.001026342798 | G106: 0.5070133425 | H106: 0.4929866575 | I106: 1115636613120 | J106: 1059854782464 | K106: 1.098902064e+12 | L106: 1.043956961e+12
A107: 2000-04-11 | B107: 22 | D107: 115 | E107: 7 | F107: 0.002394799863 | G107: 0.5094081423 | H107: 0.4905918577 | I107: 1125422899200 | J107: 1069151754240 | K107: 1108541555712 | L107: 1.053114478e+12
A108: 2000-04-12 | B108: 475 | D108: 116 | E108: 6 | F108: 0.002052685597 | G108: 0.5114608279 | H108: 0.4885391721 | I108: 1.135209185e+12 | J108: 1.078448726e+12 | K108: 1.118181048e+12 | L108: 1.062271995e+12
A109: 2000-04-13 | B109: 663 | D109: 117 | E109: 4 | F109: 0.001368457065 | G109: 0.512829285 | H109: 0.487170715 | I109: 1144995471360 | J109: 1087745697792 | K109: 1.127820539e+12 | L109: 1.071429512e+12
A110: 2000-04-14 | B110: 1350 | D110: 118 | E110: 5 | F110: 0.001710571331 | G110: 0.5145398563 | H110: 0.4854601437 | I110: 1154781757440 | J110: 1097042669568 | K110: 1.137460031e+12 | L110: 1.08058703e+12
A111: 2000-04-15 | B111: 846 | D111: 119 | E111: 7 | F111: 0.002394799863 | G111: 0.5169346562 | H111: 0.4830653438 | I111: 1164568043520 | J111: 1106339641344 | K111: 1.147099523e+12 | L111: 1.089744547e+12
A112: 2000-04-16 | B112: 28 | D112: 120 | E112: 7 | F112: 0.002394799863 | G112: 0.519329456 | H112: 0.480670544 | I112: 1174354329600 | J112: 1115636613120 | K112: 1.156739015e+12 | L112: 1.098902064e+12
A113: 2000-04-17 | B113: 24 | D113: 121 | E113: 9 | F113: 0.003079028395 | G113: 0.5224084844 | H113: 0.4775915156 | I113: 1.184140616e+12 | J113: 1.124933585e+12 | K113: 1.166378506e+12 | L113: 1.108059581e+12
A114: 2000-04-18 | B114: 23 | D114: 122 | E114: 7 | F114: 0.002394799863 | G114: 0.5248032843 | H114: 0.4751967157 | I114: 1193926901760 | J114: 1134230556672 | K114: 1.176017998e+12 | L114: 1.117217098e+12
A115: 2000-04-19 | B115: 20 | D115: 123 | E115: 13 | F115: 0.00444748546 | G115: 0.5292507698 | H115: 0.4707492302 | I115: 1203713187840 | J115: 1143527528448 | K115: 1.18565749e+12 | L115: 1.126374616e+12
A116: 2000-04-20 | B116: 19 | D116: 124 | E116: 1 | F116: 0.0003421142662 | G116: 0.529592884 | H116: 0.470407116 | I116: 1213499473920 | J116: 1152824500224 | K116: 1.195296982e+12 | L116: 1.135532133e+12
A117: 2000-04-21 | B117: 18 | D117: 125 | E117: 7 | F117: 0.002394799863 | G117: 0.5319876839 | H117: 0.4680123161 | I117: 1223285760000 | J117: 1162121472000 | K117: 1204936473600 | L117: 1144689649920
A118: 2000-04-22 | B118: 17 | D118: 126 | E118: 4 | F118: 0.001368457065 | G118: 0.533356141 | H118: 0.466643859 | I118: 1.233072046e+12 | J118: 1.171418444e+12 | K118: 1.214575965e+12 | L118: 1.153847167e+12
A119: 2000-04-23 | B119: 16 | D119: 127 | E119: 7 | F119: 0.002394799863 | G119: 0.5357509408 | H119: 0.4642490592 | I119: 1242858332160 | J119: 1180715415552 | K119: 1.224215457e+12 | L119: 1.163004684e+12
A120: 2000-04-24 | B120: 17 | D120: 128 | E120: 8 | F120: 0.002736914129 | G120: 0.5384878549 | H120: 0.4615121451 | I120: 1252644618240 | J120: 1190012387328 | K120: 1.233854949e+12 | L120: 1.172162202e+12
A121: 2000-04-25 | B121: 17 | D121: 129 | E121: 5 | F121: 0.001710571331 | G121: 0.5401984263 | H121: 0.4598015737 | I121: 1262430904320 | J121: 1199309359104 | K121: 1.243494441e+12 | L121: 1.181319719e+12
A122: 2000-04-26 | B122: 17 | D122: 130 | E122: 6 | F122: 0.002052685597 | G122: 0.5422511119 | H122: 0.4577488881 | I122: 1272217190400 | J122: 1208606330880 | K122: 1253133932544 | L122: 1.190477236e+12
A123: 2000-04-27 | B123: 17 | D123: 131 | E123: 3 | F123: 0.001026342798 | G123: 0.5432774547 | H123: 0.4567225453 | I123: 1.282003476e+12 | J123: 1.217903303e+12 | K123: 1.262773424e+12 | L123: 1.199634753e+12
A124: 2000-04-28 | B124: 16 | D124: 132 | E124: 6 | F124: 0.002052685597 | G124: 0.5453301403 | H124: 0.4546698597 | I124: 1291789762560 | J124: 1227200274432 | K124: 1.272412916e+12 | L124: 1.20879227e+12
A125: 2000-04-29 | B125: 21 | D125: 133 | E125: 5 | F125: 0.001710571331 | G125: 0.5470407116 | H125: 0.4529592884 | I125: 1301576048640 | J125: 1236497246208 | K125: 1.282052408e+12 | L125: 1.217949788e+12
A126: 2000-04-30 | B126: 17 | D126: 134 | E126: 8 | F126: 0.002736914129 | G126: 0.5497776257 | H126: 0.4502223743 | I126: 1311362334720 | J126: 1245794217984 | K126: 1.2916919e+12 | L126: 1.227107305e+12
A127: 2000-05-01 | B127: 23 | D127: 135 | E127: 6 | F127: 0.002052685597 | G127: 0.5518303113 | H127: 0.4481696887 | I127: 1321148620800 | J127: 1255091189760 | K127: 1301331391488 | L127: 1.236264822e+12
A128: 2000-05-02 | B128: 330 | D128: 136 | E128: 1 | F128: 0.0003421142662 | G128: 0.5521724256 | H128: 0.4478275744 | I128: 1.330934907e+12 | J128: 1.264388162e+12 | K128: 1.310970883e+12 | L128: 1.245422339e+12
A129: 2000-05-03 | B129: 109 | D129: 137 | E129: 4 | F129: 0.001368457065 | G129: 0.5535408827 | H129: 0.4464591173 | I129: 1340721192960 | J129: 1273685133312 | K129: 1.320610375e+12 | L129: 1.254579856e+12
A130: 2000-05-04 | B130: 77 | D130: 138 | E130: 5 | F130: 0.001710571331 | G130: 0.555251454 | H130: 0.444748546 | I130: 1350507479040 | J130: 1282982105088 | K130: 1.330249867e+12 | L130: 1.263737374e+12
A131: 2000-05-05 | B131: 244 | D131: 139 | E131: 3 | F131: 0.001026342798 | G131: 0.5562777968 | H131: 0.4437222032 | I131: 1360293765120 | J131: 1292279076864 | K131: 1.339889359e+12 | L131: 1.272894891e+12
A132: 2000-05-06 | B132: 473 | D132: 140 | E132: 6 | F132: 0.002052685597 | G132: 0.5583304824 | H132: 0.4416695176 | I132: 1370080051200 | J132: 1301576048640 | K132: 1.34952885e+12 | L132: 1.282052408e+12
A133: 2000-05-07 | B133: 1450 | D133: 141 | E133: 4 | F133: 0.001368457065 | G133: 0.5596989394 | H133: 0.4403010606 | I133: 1.379866337e+12 | J133: 1.31087302e+12 | K133: 1.359168342e+12 | L133: 1.291209925e+12
A134: 2000-05-08 | B134: 1490 | D134: 142 | E134: 2 | F134: =E134/2923 -> 0.0006842285323 | G134: 0.560383168 | H134: =1-G134 -> 0.439616832 | I134: =((400/100)*1000*D134)*28.3168*60*60*24 -> 1389652623360 | J134: =(1-0.05)*I134 -> 1320169992192 | K134: =((394/100)*1000*D134)*28.3168*60*60*24 -> 1.368807834e+12 | L134: =(1-0.05)*K134 -> 1.300367442e+12
A135: 2000-05-09 | B135: 1250 | D135: 143 | E135: 2 | F135: 0.0006842285323 | G135: =G134 + F135 -> 0.5610673965 | H135: 0.4389326035 | I135: 1399438909440 | J135: 1329466963968 | K135: 1.378447326e+12 | L135: 1.30952496e+12
A136: 2000-05-10 | B136: 350 | D136: 144 | E136: 4 | F136: 0.001368457065 | G136: 0.5624358536 | H136: 0.4375641464 | I136: 1409225195520 | J136: 1338763935744 | K136: 1.388086818e+12 | L136: 1.318682477e+12
A137: 2000-05-11 | B137: 83 | D137: 145 | E137: 5 | F137: 0.001710571331 | G137: 0.5641464249 | H137: 0.4358535751 | I137: 1419011481600 | J137: 1348060907520 | K137: 1397726309376 | L137: 1.327839994e+12
A138: 2000-05-12 | B138: 62 | D138: 146 | E138: 2 | F138: 0.0006842285323 | G138: 0.5648306534 | H138: 0.4351693466 | I138: 1.428797768e+12 | J138: 1.357357879e+12 | K138: 1.407365801e+12 | L138: 1.336997511e+12
A139: 2000-05-13 | B139: 74 | D139: 147 | E139: 4 | F139: 0.001368457065 | G139: 0.5661991105 | H139: 0.4338008895 | I139: 1438584053760 | J139: 1366654851072 | K139: 1.417005293e+12 | L139: 1.346155028e+12
A140: 2000-05-14 | B140: 61 | D140: 148 | E140: 2 | F140: 0.0006842285323 | G140: 0.566883339 | H140: 0.433116661 | I140: 1448370339840 | J140: 1375951822848 | K140: 1.426644785e+12 | L140: 1.355312546e+12
A141: 2000-05-15 | B141: 50 | D141: 149 | E141: 8 | F141: 0.002736914129 | G141: 0.5696202532 | H141: 0.4303797468 | I141: 1458156625920 | J141: 1385248794624 | K141: 1.436284277e+12 | L141: 1.364470063e+12
A142: 2000-05-16 | B142: 51 | D142: 150 | E142: 4 | F142: 0.001368457065 | G142: 0.5709887102 | H142: 0.4290112898 | I142: 1467942912000 | J142: 1394545766400 | K142: 1445923768320 | L142: 1373627579904
A143: 2000-05-17 | B143: 48 | D143: 151 | E143: 3 | F143: 0.001026342798 | G143: 0.572015053 | H143: 0.427984947 | I143: 1477729198080 | J143: 1403842738176 | K143: 1.45556326e+12 | L143: 1.382785097e+12
A144: 2000-05-18 | B144: 50 | D144: 153 | E144: 6 | F144: 0.002052685597 | G144: 0.5740677386 | H144: 0.4259322614 | I144: 1.49730177e+12 | J144: 1.422436682e+12 | K144: 1.474842244e+12 | L144: 1.401100132e+12
A145: 2000-05-19 | B145: 51 | D145: 154 | E145: 4 | F145: 0.001368457065 | G145: 0.5754361957 | H145: 0.4245638043 | I145: 1507088056320 | J145: 1431733653504 | K145: 1.484481735e+12 | L145: 1.410257649e+12
A146: 2000-05-20 | B146: 448 | D146: 155 | E146: 3 | F146: 0.001026342798 | G146: 0.5764625385 | H146: 0.4235374615 | I146: 1516874342400 | J146: 1441030625280 | K146: 1.494121227e+12 | L146: 1.419415166e+12
A147: 2000-05-21 | B147: 69 | D147: 156 | E147: 4 | F147: 0.001368457065 | G147: 0.5778309956 | H147: 0.4221690044 | I147: 1526660628480 | J147: 1450327597056 | K147: 1.503760719e+12 | L147: 1.428572683e+12
A148: 2000-05-22 | B148: 641 | D148: 157 | E148: 2 | F148: 0.0006842285323 | G148: 0.5785152241 | H148: 0.4214847759 | I148: 1.536446915e+12 | J148: 1.459624569e+12 | K148: 1.513400211e+12 | L148: 1.4377302e+12
A149: 2000-05-23 | B149: 1570 | D149: 158 | E149: 3 | F149: 0.001026342798 | G149: 0.5795415669 | H149: 0.4204584331 | I149: 1546233200640 | J149: 1468921540608 | K149: 1.523039703e+12 | L149: 1.446887717e+12
A150: 2000-05-24 | B150: 889 | D150: 159 | E150: 4 | F150: 0.001368457065 | G150: 0.5809100239 | H150: 0.4190899761 | I150: 1556019486720 | J150: 1478218512384 | K150: 1.532679194e+12 | L150: 1.456045235e+12
A151: 2000-05-25 | B151: 139 | D151: 160 | E151: 3 | F151: 0.001026342798 | G151: 0.5819363667 | H151: 0.4180636333 | I151: 1565805772800 | J151: 1487515484160 | K151: 1.542318686e+12 | L151: 1.465202752e+12
A152: 2000-05-26 | B152: 89 | D152: 161 | E152: 2 | F152: 0.0006842285323 | G152: 0.5826205953 | H152: 0.4173794047 | I152: 1575592058880 | J152: 1496812455936 | K152: 1.551958178e+12 | L152: 1.474360269e+12
A153: 2000-05-27 | B153: 76 | D153: 162 | E153: 3 | F153: 0.001026342798 | G153: 0.5836469381 | H153: 0.4163530619 | I153: 1.585378345e+12 | J153: 1.506109428e+12 | K153: 1.56159767e+12 | L153: 1.483517786e+12
A154: 2000-05-28 | B154: 110 | D154: 163 | E154: 4 | F154: 0.001368457065 | G154: 0.5850153951 | H154: 0.4149846049 | I154: 1595164631040 | J154: 1515406399488 | K154: 1.571237162e+12 | L154: 1.492675303e+12
A155: 2000-05-29 | B155: 109 | D155: 164 | E155: 3 | F155: 0.001026342798 | G155: 0.5860417379 | H155: 0.4139582621 | I155: 1604950917120 | J155: 1524703371264 | K155: 1.580876653e+12 | L155: 1.501832821e+12
A156: 2000-05-30 | B156: 80 | D156: 165 | E156: 3 | F156: 0.001026342798 | G156: 0.5870680807 | H156: 0.4129319193 | I156: 1614737203200 | J156: 1534000343040 | K156: 1590516145152 | L156: 1.510990338e+12
A157: 2000-05-31 | B157: 68 | D157: 166 | E157: 5 | F157: 0.001710571331 | G157: 0.5887786521 | H157: 0.4112213479 | I157: 1624523489280 | J157: 1543297314816 | K157: 1.600155637e+12 | L157: 1.520147855e+12
A158: 2000-06-01 | B158: 56 | D158: 167 | E158: 6 | F158: 0.002052685597 | G158: 0.5908313377 | H158: 0.4091686623 | I158: 1.634309775e+12 | J158: 1.552594287e+12 | K158: 1.609795129e+12 | L158: 1.529305372e+12
A159: 2000-06-02 | B159: 59 | D159: 168 | E159: 4 | F159: 0.001368457065 | G159: 0.5921997947 | H159: 0.4078002053 | I159: 1644096061440 | J159: 1561891258368 | K159: 1.619434621e+12 | L159: 1.538462889e+12
A160: 2000-06-03 | B160: 306 | D160: 169 | E160: 4 | F160: 0.001368457065 | G160: 0.5935682518 | H160: 0.4064317482 | I160: 1653882347520 | J160: 1571188230144 | K160: 1.629074112e+12 | L160: 1.547620407e+12
A161: 2000-06-04 | B161: 204 | D161: 170 | E161: 2 | F161: 0.0006842285323 | G161: 0.5942524803 | H161: 0.4057475197 | I161: 1663668633600 | J161: 1580485201920 | K161: 1.638713604e+12 | L161: 1.556777924e+12
A162: 2000-06-05 | B162: 97 | D162: 172 | E162: 1 | F162: 0.0003421142662 | G162: 0.5945945946 | H162: 0.4054054054 | I162: 1.683241206e+12 | J162: 1.599079145e+12 | K162: 1.657992588e+12 | L162: 1.575092958e+12
A163: 2000-06-06 | B163: 487 | D163: 173 | E163: 1 | F163: 0.0003421142662 | G163: 0.5949367089 | H163: 0.4050632911 | I163: 1693027491840 | J163: 1608376117248 | K163: 1.667632079e+12 | L163: 1.584250475e+12
A164: 2000-06-07 | B164: 502 | D164: 174 | E164: 2 | F164: 0.0006842285323 | G164: 0.5956209374 | H164: 0.4043790626 | I164: 1702813777920 | J164: 1617673089024 | K164: 1.677271571e+12 | L164: 1.593407993e+12
A165: 2000-06-08 | B165: 89 | D165: 176 | E165: 1 | F165: 0.0003421142662 | G165: 0.5959630517 | H165: 0.4040369483 | I165: 1722386350080 | J165: 1636267032576 | K165: 1.696550555e+12 | L165: 1.611723027e+12
A166: 2000-06-09 | B166: 125 | D166: 177 | E166: 5 | F166: 0.001710571331 | G166: 0.597673623 | H166: 0.402326377 | I166: 1.732172636e+12 | J166: 1.645564004e+12 | K166: 1.706190047e+12 | L166: 1.620880544e+12
A167: 2000-06-10 | B167: 255 | D167: 178 | E167: 8 | F167: 0.002736914129 | G167: 0.6004105371 | H167: 0.3995894629 | I167: 1741958922240 | J167: 1654860976128 | K167: 1.715829538e+12 | L167: 1.630038061e+12
A168: 2000-06-11 | B168: 66 | D168: 179 | E168: 5 | F168: 0.001710571331 | G168: 0.6021211085 | H168: 0.3978788915 | I168: 1751745208320 | J168: 1664157947904 | K168: 1.72546903e+12 | L168: 1.639195579e+12
A169: 2000-06-12 | B169: 614 | D169: 180 | E169: 1 | F169: 0.0003421142662 | G169: 0.6024632227 | H169: 0.3975367773 | I169: 1761531494400 | J169: 1673454919680 | K169: 1735108521984 | L169: 1.648353096e+12
A170: 2000-06-13 | B170: 435 | D170: 181 | E170: 3 | F170: 0.001026342798 | G170: 0.6034895655 | H170: 0.3965104345 | I170: 1771317780480 | J170: 1682751891456 | K170: 1.744748014e+12 | L170: 1.657510613e+12
A171: 2000-06-14 | B171: 135 | D171: 182 | E171: 5 | F171: 0.001710571331 | G171: 0.6052001368 | H171: 0.3947998632 | I171: 1.781104067e+12 | J171: 1.692048863e+12 | K171: 1.754387506e+12 | L171: 1.66666813e+12
A172: 2000-06-15 | B172: 95 | D172: 183 | E172: 3 | F172: 0.001026342798 | G172: 0.6062264796 | H172: 0.3937735204 | I172: 1790890352640 | J172: 1701345835008 | K172: 1.764026997e+12 | L172: 1.675825647e+12
A173: 2000-06-16 | B173: 72 | D173: 184 | E173: 5 | F173: 0.001710571331 | G173: 0.607937051 | H173: 0.392062949 | I173: 1800676638720 | J173: 1710642806784 | K173: 1.773666489e+12 | L173: 1.684983165e+12
A174: 2000-06-17 | B174: 77 | D174: 185 | E174: 3 | F174: 0.001026342798 | G174: 0.6089633938 | H174: 0.3910366062 | I174: 1810462924800 | J174: 1719939778560 | K174: 1783305980928 | L174: 1.694140682e+12
A175: 2000-06-18 | B175: 223 | D175: 186 | E175: 4 | F175: 0.001368457065 | G175: 0.6103318508 | H175: 0.3896681492 | I175: 1820249210880 | J175: 1729236750336 | K175: 1.792945473e+12 | L175: 1.703298199e+12
A176: 2000-06-19 | B176: 266 | D176: 187 | E176: 3 | F176: 0.001026342798 | G176: 0.6113581936 | H176: 0.3886418064 | I176: 1.830035497e+12 | J176: 1.738533722e+12 | K176: 1.802584965e+12 | L176: 1.712455716e+12
A177: 2000-06-20 | B177: 179 | D177: 188 | E177: 2 | F177: 0.0006842285323 | G177: 0.6120424222 | H177: 0.3879575778 | I177: 1839821783040 | J177: 1747830693888 | K177: 1.812224456e+12 | L177: 1.721613233e+12
A178: 2000-06-21 | B178: 108 | D178: 189 | E178: 6 | F178: 0.002052685597 | G178: 0.6140951078 | H178: 0.3859048922 | I178: 1849608069120 | J178: 1757127665664 | K178: 1.821863948e+12 | L178: 1.730770751e+12
A179: 2000-06-22 | B179: 78 | D179: 190 | E179: 2 | F179: 0.0006842285323 | G179: 0.6147793363 | H179: 0.3852206637 | I179: 1859394355200 | J179: 1766424637440 | K179: 1831503439872 | L179: 1.739928268e+12
A180: 2000-06-23 | B180: 51 | D180: 191 | E180: 2 | F180: 0.0006842285323 | G180: 0.6154635648 | H180: 0.3845364352 | I180: 1869180641280 | J180: 1775721609216 | K180: 1.841142932e+12 | L180: 1.749085785e+12
A181: 2000-06-24 | B181: 36 | D181: 192 | E181: 3 | F181: 0.001026342798 | G181: 0.6164899076 | H181: 0.3835100924 | I181: 1.878966927e+12 | J181: 1.785018581e+12 | K181: 1.850782423e+12 | L181: 1.758243302e+12
A182: 2000-06-25 | B182: 35 | D182: 193 | E182: 3 | F182: 0.001026342798 | G182: 0.6175162504 | H182: 0.3824837496 | I182: 1888753213440 | J182: 1794315552768 | K182: 1.860421915e+12 | L182: 1.767400819e+12
A183: 2000-06-26 | B183: 44 | D183: 194 | E183: 2 | F183: 0.0006842285323 | G183: 0.618200479 | H183: 0.381799521 | I183: 1898539499520 | J183: 1803612524544 | K183: 1.870061407e+12 | L183: 1.776558337e+12
A184: 2000-06-27 | B184: 112 | D184: 195 | E184: 2 | F184: 0.0006842285323 | G184: 0.6188847075 | H184: 0.3811152925 | I184: 1908325785600 | J184: 1812909496320 | K184: 1879700898816 | L184: 1.785715854e+12
A185: 2000-06-28 | B185: 86 | D185: 196 | E185: 2 | F185: 0.0006842285323 | G185: 0.619568936 | H185: 0.380431064 | I185: 1918112071680 | J185: 1822206468096 | K185: 1.889340391e+12 | L185: 1.794873371e+12
A186: 2000-06-29 | B186: 69 | D186: 197 | E186: 1 | F186: 0.0003421142662 | G186: 0.6199110503 | H186: 0.3800889497 | I186: 1.927898358e+12 | J186: 1.83150344e+12 | K186: 1.898979882e+12 | L186: 1.804030888e+12
A187: 2000-06-30 | B187: 54 | D187: 198 | E187: 2 | F187: 0.0006842285323 | G187: 0.6205952788 | H187: 0.3794047212 | I187: 1937684643840 | J187: 1840800411648 | K187: 1.908619374e+12 | L187: 1.813188405e+12
A188: 2000-07-01 | B188: 48 | D188: 199 | E188: 5 | F188: 0.001710571331 | G188: 0.6223058502 | H188: 0.3776941498 | I188: 1947470929920 | J188: 1850097383424 | K188: 1.918258866e+12 | L188: 1.822345923e+12
A189: 2000-07-02 | B189: 48 | D189: 200 | E189: 2 | F189: 0.0006842285323 | G189: 0.6229900787 | H189: 0.3770099213 | I189: 1957257216000 | J189: 1859394355200 | K189: 1.927898358e+12 | L189: 1.83150344e+12
A190: 2000-07-03 | B190: 42 | D190: 201 | E190: 6 | F190: 0.002052685597 | G190: 0.6250427643 | H190: 0.3749572357 | I190: 1967043502080 | J190: 1868691326976 | K190: 1.93753785e+12 | L190: 1.840660957e+12
A191: 2000-07-04 | B191: 47 | D191: 202 | E191: 3 | F191: 0.001026342798 | G191: 0.6260691071 | H191: 0.3739308929 | I191: 1.976829788e+12 | J191: 1.877988299e+12 | K191: 1.947177341e+12 | L191: 1.849818474e+12
A192: 2000-07-05 | B192: 189 | D192: 203 | E192: 1 | F192: 0.0003421142662 | G192: 0.6264112213 | H192: 0.3735887787 | I192: 1986616074240 | J192: 1887285270528 | K192: 1.956816833e+12 | L192: 1.858975991e+12
A193: 2000-07-06 | B193: 108 | D193: 204 | E193: 4 | F193: 0.001368457065 | G193: 0.6277796784 | H193: 0.3722203216 | I193: 1996402360320 | J193: 1896582242304 | K193: 1.966456325e+12 | L193: 1.868133509e+12
A194: 2000-07-07 | B194: 67 | D194: 205 | E194: 2 | F194: 0.0006842285323 | G194: 0.6284639069 | H194: 0.3715360931 | I194: 2006188646400 | J194: 1905879214080 | K194: 1976095816704 | L194: 1.877291026e+12
A195: 2000-07-08 | B195: 52 | D195: 207 | E195: 3 | F195: 0.001026342798 | G195: 0.6294902497 | H195: 0.3705097503 | I195: 2.025761219e+12 | J195: 1.924473158e+12 | K195: 1.9953748e+12 | L195: 1.89560606e+12
A196: 2000-07-09 | B196: 47 | D196: 209 | E196: 3 | F196: 0.001026342798 | G196: 0.6305165925 | H196: 0.3694834075 | I196: 2045333790720 | J196: 1943067101184 | K196: 2.014653784e+12 | L196: 1.913921095e+12
A197: 2000-07-10 | B197: 44 | D197: 210 | E197: 5 | F197: 0.001710571331 | G197: 0.6322271639 | H197: 0.3677728361 | I197: 2055120076800 | J197: 1952364072960 | K197: 2024293275648 | L197: 1.923078612e+12
A198: 2000-07-11 | B198: 43 | D198: 211 | E198: 1 | F198: =E198/2923 -> 0.0003421142662 | G198: 0.6325692781 | H198: =1-G198 -> 0.3674307219 | I198: =((400/100)*1000*D198)*28.3168*60*60*24 -> 2064906362880 | J198: =(1-0.05)*I198 -> 1961661044736 | K198: =((394/100)*1000*D198)*28.3168*60*60*24 -> 2.033932767e+12 | L198: =(1-0.05)*K198 -> 1.932236129e+12
A199: 2000-07-12 | B199: 45 | D199: 212 | E199: 2 | F199: 0.0006842285323 | G199: =G198 + F199 -> 0.6332535067 | H199: 0.3667464933 | I199: 2.074692649e+12 | J199: 1.970958017e+12 | K199: 2.043572259e+12 | L199: 1.941393646e+12
A200: 2000-07-13 | B200: 41 | D200: 213 | E200: 2 | F200: 0.0006842285323 | G200: 0.6339377352 | H200: 0.3660622648 | I200: 2084478935040 | J200: 1980254988288 | K200: 2.053211751e+12 | L200: 1.950551163e+12
A201: 2000-07-14 | B201: 41 | D201: 214 | E201: 2 | F201: 0.0006842285323 | G201: 0.6346219637 | H201: 0.3653780363 | I201: 2094265221120 | J201: 1989551960064 | K201: 2.062851243e+12 | L201: 1.959708681e+12
A202: 2000-07-15 | B202: 39 | D202: 215 | E202: 3 | F202: 0.001026342798 | G202: 0.6356483065 | H202: 0.3643516935 | I202: 2104051507200 | J202: 1998848931840 | K202: 2.072490735e+12 | L202: 1.968866198e+12
A203: 2000-07-16 | B203: 38 | D203: 216 | E203: 2 | F203: 0.0006842285323 | G203: 0.6363325351 | H203: 0.3636674649 | I203: 2113837793280 | J203: 2008145903616 | K203: 2.082130226e+12 | L203: 1.978023715e+12
... 2725 more rows

Sheet Fecal Coliform
A2: TRACS | E2: USGS Flow (cfs) | F2: Calculated Values
A3: Date | B3: Storet Code | C3: Qualifier | D3: Value (CFU/100 mL) | F3: Probability of Flow | G3: Fecal Coliform Load (CFU/day)
A4: 2001-04-04 | B4: 31616 | D4: 500 | E4: =LOOKUP(A4,'Flow Data'!A$6:A$2928,'Flow Data'!B$6:B$2928) -> 1800 | F4: =LOOKUP(E4,'Flow Data'!D$6:D$737,'Flow Data'!H$6:H$737) -> 0.0444748546 | G4: =((D4/100)*1000*E4*28.3168)*60*60*24 -> 22019143680000
A5: 2002-11-25 | B5: 31613 | D5: 81 | E5: =LOOKUP(A5,'Flow Data'!A$6:A$2928,'Flow Data'!B$6:B$2928) -> 1790 | F5: =LOOKUP(E5,'Flow Data'!D$6:D$737,'Flow Data'!H$6:H$737) -> 0.04618542593 | G5: =((D5/100)*1000*E5*28.3168)*60*60*24 -> 3547284046848
A6: 2002-11-25 | B6: 31613 | C6: < | D6: 10 | E6: =LOOKUP(A6,'Flow Data'!A$6:A$2928,'Flow Data'!B$6:B$2928) -> 1790 | F6: =LOOKUP(E6,'Flow Data'!D$6:D$737,'Flow Data'!H$6:H$737) -> 0.04618542593 | G6: =((D6/100)*1000*E6*28.3168)*60*60*24 -> 437936302080
A7: 2000-04-05 | B7: 31616 | D7: 540 | E7: =LOOKUP(A7,'Flow Data'!A$6:A$2928,'Flow Data'!B$6:B$2928) -> 1670 | F7: =LOOKUP(E7,'Flow Data'!D$6:D$737,'Flow Data'!H$6:H$737) -> 0.0677386247 | G7: =((D7/100)*1000*E7*28.3168)*60*60*24 -> 22063181967360
A8: 2000-04-05 | B8: 31616 | D8: 2000 | E8: =LOOKUP(A8,'Flow Data'!A$6:A$2928,'Flow Data'!B$6:B$2928) -> 1670 | F8: =LOOKUP(E8,'Flow Data'!D$6:D$737,'Flow Data'!H$6:H$737) -> 0.0677386247 | G8: =((D8/100)*1000*E8*28.3168)*60*60*24 -> 81715488768000
A9: 2000-04-05 | B9: 31616 | D9: 850 | E9: =LOOKUP(A9,'Flow Data'!A$6:A$2928,'Flow Data'!B$6:B$2928) -> 1670 | F9: =LOOKUP(E9,'Flow Data'!D$6:D$737,'Flow Data'!H$6:H$737) -> 0.0677386247 | G9: =((D9/100)*1000*E9*28.3168)*60*60*24 -> 34729082726400
A10: 2000-04-05 | B10: 31616 | D10: 870 | E10: =LOOKUP(A10,'Flow Data'!A$6:A$2928,'Flow Data'!B$6:B$2928) -> 1670 | F10: =LOOKUP(E10,'Flow Data'!D$6:D$737,'Flow Data'!H$6:H$737) -> 0.0677386247 | G10: =((D10/100)*1000*E10*28.3168)*60*60*24 -> 35546237614080
A11: 2000-04-05 | B11: 31616 | D11: 740 | E11: =LOOKUP(A11,'Flow Data'!A$6:A$2928,'Flow Data'!B$6:B$2928) -> 1670 | F11: =LOOKUP(E11,'Flow Data'!D$6:D$737,'Flow Data'!H$6:H$737) -> 0.0677386247 | G11: =((D11/100)*1000*E11*28.3168)*60*60*24 -> 3.023473084e+13
A12: 2000-04-05 | B12: 31616 | D12: 1200 | E12: =LOOKUP(A12,'Flow Data'!A$6:A$2928,'Flow Data'!B$6:B$2928) -> 1670 | F12: =LOOKUP(E12,'Flow Data'!D$6:D$737,'Flow Data'!H$6:H$737) -> 0.0677386247 | G12: =((D12/100)*1000*E12*28.3168)*60*60*24 -> 49029293260800
A13: 2001-03-06 | B13: 31616 | D13: 890 | E13: =LOOKUP(A13,'Flow Data'!A$6:A$2928,'Flow Data'!B$6:B$2928) -> 1630 | F13: =LOOKUP(E13,'Flow Data'!D$6:D$737,'Flow Data'!H$6:H$737) -> 0.07184399589 | G13: =((D13/100)*1000*E13*28.3168)*60*60*24 -> 35492413040640
A14: 2001-03-06 | B14: 31616 | D14: 600 | E14: =LOOKUP(A14,'Flow Data'!A$6:A$2928,'Flow Data'!B$6:B$2928) -> 1630 | F14: =LOOKUP(E14,'Flow Data'!D$6:D$737,'Flow Data'!H$6:H$737) -> 0.07184399589 | G14: =((D14/100)*1000*E14*28.3168)*60*60*24 -> 23927469465600
A15: 2001-03-06 | B15: 31616 | D15: 580 | E15: =LOOKUP(A15,'Flow Data'!A$6:A$2928,'Flow Data'!B$6:B$2928) -> 1630 | F15: =LOOKUP(E15,'Flow Data'!D$6:D$737,'Flow Data'!H$6:H$737) -> 0.07184399589 | G15: =((D15/100)*1000*E15*28.3168)*60*60*24 -> 2.312988715e+13
A16: 2001-03-06 | B16: 31616 | D16: 750 | E16: =LOOKUP(A16,'Flow Data'!A$6:A$2928,'Flow Data'!B$6:B$2928) -> 1630 | F16: =LOOKUP(E16,'Flow Data'!D$6:D$737,'Flow Data'!H$6:H$737) -> 0.07184399589 | G16: =((D16/100)*1000*E16*28.3168)*60*60*24 -> 29909336832000
A17: 2001-03-06 | B17: 31616 | D17: 420 | E17: =LOOKUP(A17,'Flow Data'!A$6:A$2928,'Flow Data'!B$6:B$2928) -> 1630 | F17: =LOOKUP(E17,'Flow Data'!D$6:D$737,'Flow Data'!H$6:H$737) -> 0.07184399589 | G17: =((D17/100)*1000*E17*28.3168)*60*60*24 -> 16749228625920
A18: 2001-03-06 | B18: 31616 | D18: 480 | E18: =LOOKUP(A18,'Flow Data'!A$6:A$2928,'Flow Data'!B$6:B$2928) -> 1630 | F18: =LOOKUP(E18,'Flow Data'!D$6:D$737,'Flow Data'!H$6:H$737) -> 0.07184399589 | G18: =((D18/100)*1000*E18*28.3168)*60*60*24 -> 1.914197557e+13
A19: 2001-04-03 | B19: 31616 | D19: 350 | E19: =LOOKUP(A19,'Flow Data'!A$6:A$2928,'Flow Data'!B$6:B$2928) -> 1630 | F19: =LOOKUP(E19,'Flow Data'!D$6:D$737,'Flow Data'!H$6:H$737) -> 0.07184399589 | G19: =((D19/100)*1000*E19*28.3168)*60*60*24 -> 13957690521600
A20: 2001-04-03 | B20: 31616 | D20: 380 | E20: =LOOKUP(A20,'Flow Data'!A$6:A$2928,'Flow Data'!B$6:B$2928) -> 1630 | F20: =LOOKUP(E20,'Flow Data'!D$6:D$737,'Flow Data'!H$6:H$737) -> 0.07184399589 | G20: =((D20/100)*1000*E20*28.3168)*60*60*24 -> 1.515406399e+13
A21: 2001-04-03 | B21: 31616 | D21: 310 | E21: =LOOKUP(A21,'Flow Data'!A$6:A$2928,'Flow Data'!B$6:B$2928) -> 1630 | F21: =LOOKUP(E21,'Flow Data'!D$6:D$737,'Flow Data'!H$6:H$737) -> 0.07184399589 | G21: =((D21/100)*1000*E21*28.3168)*60*60*24 -> 12362525890560
A22: 2001-04-03 | B22: 31616 | D22: 200 | E22: =LOOKUP(A22,'Flow Data'!A$6:A$2928,'Flow Data'!B$6:B$2928) -> 1630 | F22: =LOOKUP(E22,'Flow Data'!D$6:D$737,'Flow Data'!H$6:H$737) -> 0.07184399589 | G22: =((D22/100)*1000*E22*28.3168)*60*60*24 -> 7975823155200
A23: 2001-04-03 | B23: 31616 | C23: < | D23: 10 | E23: =LOOKUP(A23,'Flow Data'!A$6:A$2928,'Flow Data'!B$6:B$2928) -> 1630 | F23: =LOOKUP(E23,'Flow Data'!D$6:D$737,'Flow Data'!H$6:H$737) -> 0.07184399589 | G23: =((D23/100)*1000*E23*28.3168)*60*60*24 -> 398791157760
A24: 2001-04-03 | B24: 31616 | D24: 2100 | E24: =LOOKUP(A24,'Flow Data'!A$6:A$2928,'Flow Data'!B$6:B$2928) -> 1630 | F24: =LOOKUP(E24,'Flow Data'!D$6:D$737,'Flow Data'!H$6:H$737) -> 0.07184399589 | G24: =((D24/100)*1000*E24*28.3168)*60*60*24 -> 83746143129600
A25: 2001-06-13 | B25: 31613 | D25: 2400 | E25: =LOOKUP(A25,'Flow Data'!A$6:A$2928,'Flow Data'!B$6:B$2928) -> 1630 | F25: =LOOKUP(E25,'Flow Data'!D$6:D$737,'Flow Data'!H$6:H$737) -> 0.07184399589 | G25: =((D25/100)*1000*E25*28.3168)*60*60*24 -> 95709877862400
A26: 2000-11-20 | B26: 31616 | D26: 4800 | E26: =LOOKUP(A26,'Flow Data'!A$6:A$2928,'Flow Data'!B$6:B$2928) -> 1460 | F26: =LOOKUP(E26,'Flow Data'!D$6:D$737,'Flow Data'!H$6:H$737) -> 0.09339719466 | G26: =((D26/100)*1000*E26*28.3168)*60*60*24 -> 171455732121600
A27: 2000-11-20 | B27: 31616 | D27: 6900 | E27: =LOOKUP(A27,'Flow Data'!A$6:A$2928,'Flow Data'!B$6:B$2928) -> 1460 | F27: =LOOKUP(E27,'Flow Data'!D$6:D$737,'Flow Data'!H$6:H$737) -> 0.09339719466 | G27: =((D27/100)*1000*E27*28.3168)*60*60*24 -> 246467614924800
A28: 2000-11-20 | B28: 31616 | D28: 6000 | E28: =LOOKUP(A28,'Flow Data'!A$6:A$2928,'Flow Data'!B$6:B$2928) -> 1460 | F28: =LOOKUP(E28,'Flow Data'!D$6:D$737,'Flow Data'!H$6:H$737) -> 0.09339719466 | G28: =((D28/100)*1000*E28*28.3168)*60*60*24 -> 214319665152000
A29: 2000-11-20 | B29: 31616 | D29: 4900 | E29: =LOOKUP(A29,'Flow Data'!A$6:A$2928,'Flow Data'!B$6:B$2928) -> 1460 | F29: =LOOKUP(E29,'Flow Data'!D$6:D$737,'Flow Data'!H$6:H$737) -> 0.09339719466 | G29: =((D29/100)*1000*E29*28.3168)*60*60*24 -> 175027726540800
A30: 2000-11-20 | B30: 31616 | D30: 4700 | E30: =LOOKUP(A30,'Flow Data'!A$6:A$2928,'Flow Data'!B$6:B$2928) -> 1460 | F30: =LOOKUP(E30,'Flow Data'!D$6:D$737,'Flow Data'!H$6:H$737) -> 0.09339719466 | G30: =((D30/100)*1000*E30*28.3168)*60*60*24 -> 167883737702400
A31: 2001-05-10 | B31: 31616 | D31: 20000 | E31: =LOOKUP(A31,'Flow Data'!A$6:A$2928,'Flow Data'!B$6:B$2928) -> 1350 | F31: =LOOKUP(E31,'Flow Data'!D$6:D$737,'Flow Data'!H$6:H$737) -> 0.1033185084 | G31: =((D31/100)*1000*E31*28.3168)*60*60*24 -> 660574310400000
A32: 2001-05-10 | B32: 31616 | D32: 3300 | E32: =LOOKUP(A32,'Flow Data'!A$6:A$2928,'Flow Data'!B$6:B$2928) -> 1350 | F32: =LOOKUP(E32,'Flow Data'!D$6:D$737,'Flow Data'!H$6:H$737) -> 0.1033185084 | G32: =((D32/100)*1000*E32*28.3168)*60*60*24 -> 108994761216000
A33: 2001-05-10 | B33: 31616 | D33: 410 | E33: =LOOKUP(A33,'Flow Data'!A$6:A$2928,'Flow Data'!B$6:B$2928) -> 1350 | F33: =LOOKUP(E33,'Flow Data'!D$6:D$737,'Flow Data'!H$6:H$737) -> 0.1033185084 | G33: =((D33/100)*1000*E33*28.3168)*60*60*24 -> 13541773363200
A34: 2001-05-10 | B34: 31616 | D34: 600 | E34: =LOOKUP(A34,'Flow Data'!A$6:A$2928,'Flow Data'!B$6:B$2928) -> 1350 | F34: =LOOKUP(E34,'Flow Data'!D$6:D$737,'Flow Data'!H$6:H$737) -> 0.1033185084 | G34: =((D34/100)*1000*E34*28.3168)*60*60*24 -> 19817229312000
A35: 2001-05-10 | B35: 31616 | D35: 210 | E35: =LOOKUP(A35,'Flow Data'!A$6:A$2928,'Flow Data'!B$6:B$2928) -> 1350 | F35: =LOOKUP(E35,'Flow Data'!D$6:D$737,'Flow Data'!H$6:H$737) -> 0.1033185084 | G35: =((D35/100)*1000*E35*28.3168)*60*60*24 -> 6936030259200
A36: 2001-05-10 | B36: 31616 | D36: 800 | E36: =LOOKUP(A36,'Flow Data'!A$6:A$2928,'Flow Data'!B$6:B$2928) -> 1350 | F36: =LOOKUP(E36,'Flow Data'!D$6:D$737,'Flow Data'!H$6:H$737) -> 0.1033185084 | G36: =((D36/100)*1000*E36*28.3168)*60*60*24 -> 26422972416000
A37: 2001-04-02 | B37: 31616 | D37: 210 | E37: =LOOKUP(A37,'Flow Data'!A$6:A$2928,'Flow Data'!B$6:B$2928) -> 1320 | F37: =LOOKUP(E37,'Flow Data'!D$6:D$737,'Flow Data'!H$6:H$737) -> 0.106739651 | G37: =((D37/100)*1000*E37*28.3168)*60*60*24 -> 6.781896253e+12
A38: 2001-04-02 | B38: 31616 | D38: 170 | E38: =LOOKUP(A38,'Flow Data'!A$6:A$2928,'Flow Data'!B$6:B$2928) -> 1320 | F38: =LOOKUP(E38,'Flow Data'!D$6:D$737,'Flow Data'!H$6:H$737) -> 0.106739651 | G38: =((D38/100)*1000*E38*28.3168)*60*60*24 -> 5490106490880
A39: 2001-04-02 | B39: 31616 | D39: 180 | E39: =LOOKUP(A39,'Flow Data'!A$6:A$2928,'Flow Data'!B$6:B$2928) -> 1320 | F39: =LOOKUP(E39,'Flow Data'!D$6:D$737,'Flow Data'!H$6:H$737) -> 0.106739651 | G39: =((D39/100)*1000*E39*28.3168)*60*60*24 -> 5813053931520
A40: 2001-04-02 | B40: 31616 | D40: 230 | E40: =LOOKUP(A40,'Flow Data'!A$6:A$2928,'Flow Data'!B$6:B$2928) -> 1320 | F40: =LOOKUP(E40,'Flow Data'!D$6:D$737,'Flow Data'!H$6:H$737) -> 0.106739651 | G40: =((D40/100)*1000*E40*28.3168)*60*60*24 -> 7427791134720
A41: 2001-04-02 | B41: 31616 | D41: 820 | E41: =LOOKUP(A41,'Flow Data'!A$6:A$2928,'Flow Data'!B$6:B$2928) -> 1320 | F41: =LOOKUP(E41,'Flow Data'!D$6:D$737,'Flow Data'!H$6:H$737) -> 0.106739651 | G41: =((D41/100)*1000*E41*28.3168)*60*60*24 -> 26481690132480
A42: 2000-04-06 | B42: 31616 | D42: 2100 | E42: =LOOKUP(A42,'Flow Data'!A$6:A$2928,'Flow Data'!B$6:B$2928) -> 1200 | F42: =LOOKUP(E42,'Flow Data'!D$6:D$737,'Flow Data'!H$6:H$737) -> 0.1211084502 | G42: =((D42/100)*1000*E42*28.3168)*60*60*24 -> 61653602304000
A43: 2001-01-22 | B43: 31616 | D43: 470 | E43: =LOOKUP(A43,'Flow Data'!A$6:A$2928,'Flow Data'!B$6:B$2928) -> 1170 | F43: =LOOKUP(E43,'Flow Data'!D$6:D$737,'Flow Data'!H$6:H$737) -> 0.1235032501 | G43: =((D43/100)*1000*E43*28.3168)*60*60*24 -> 1.345369679e+13
A44: 2001-01-22 | B44: 31616 | D44: 3100 | E44: =LOOKUP(A44,'Flow Data'!A$6:A$2928,'Flow Data'!B$6:B$2928) -> 1170 | F44: =LOOKUP(E44,'Flow Data'!D$6:D$737,'Flow Data'!H$6:H$737) -> 0.1235032501 | G44: =((D44/100)*1000*E44*28.3168)*60*60*24 -> 88737149030400
A45: 2001-06-18 | B45: 31613 | D45: 580 | E45: =LOOKUP(A45,'Flow Data'!A$6:A$2928,'Flow Data'!B$6:B$2928) -> 1170 | F45: =LOOKUP(E45,'Flow Data'!D$6:D$737,'Flow Data'!H$6:H$737) -> 0.1235032501 | G45: =((D45/100)*1000*E45*28.3168)*60*60*24 -> 16602434334720
A46: 2000-11-06 | B46: 31616 | D46: 31000 | E46: =LOOKUP(A46,'Flow Data'!A$6:A$2928,'Flow Data'!B$6:B$2928) -> 1000 | F46: =LOOKUP(E46,'Flow Data'!D$6:D$737,'Flow Data'!H$6:H$737) -> 0.1450564489 | G46: =((D46/100)*1000*E46*28.3168)*60*60*24 -> 758437171200000
A47: 2000-11-06 | B47: 31616 | D47: 40000 | E47: =LOOKUP(A47,'Flow Data'!A$6:A$2928,'Flow Data'!B$6:B$2928) -> 1000 | F47: =LOOKUP(E47,'Flow Data'!D$6:D$737,'Flow Data'!H$6:H$737) -> 0.1450564489 | G47: =((D47/100)*1000*E47*28.3168)*60*60*24 -> 978628608000000
A48: 2000-11-06 | B48: 31616 | D48: 45000 | E48: =LOOKUP(A48,'Flow Data'!A$6:A$2928,'Flow Data'!B$6:B$2928) -> 1000 | F48: =LOOKUP(E48,'Flow Data'!D$6:D$737,'Flow Data'!H$6:H$737) -> 0.1450564489 | G48: =((D48/100)*1000*E48*28.3168)*60*60*24 -> 1100957184000000
A49: 2000-11-06 | B49: 31616 | D49: 37000 | E49: =LOOKUP(A49,'Flow Data'!A$6:A$2928,'Flow Data'!B$6:B$2928) -> 1000 | F49: =LOOKUP(E49,'Flow Data'!D$6:D$737,'Flow Data'!H$6:H$737) -> 0.1450564489 | G49: =((D49/100)*1000*E49*28.3168)*60*60*24 -> 905231462400000
A50: 2000-11-06 | B50: 31616 | D50: 55000 | E50: =LOOKUP(A50,'Flow Data'!A$6:A$2928,'Flow Data'!B$6:B$2928) -> 1000 | F50: =LOOKUP(E50,'Flow Data'!D$6:D$737,'Flow Data'!H$6:H$737) -> 0.1450564489 | G50: =((D50/100)*1000*E50*28.3168)*60*60*24 -> 1345614336000000
A51: 2000-11-06 | B51: 31616 | D51: 33000 | E51: =LOOKUP(A51,'Flow Data'!A$6:A$2928,'Flow Data'!B$6:B$2928) -> 1000 | F51: =LOOKUP(E51,'Flow Data'!D$6:D$737,'Flow Data'!H$6:H$737) -> 0.1450564489 | G51: =((D51/100)*1000*E51*28.3168)*60*60*24 -> 807368601600000
A52: 2001-03-15 | B52: 31616 | D52: 22000 | E52: =LOOKUP(A52,'Flow Data'!A$6:A$2928,'Flow Data'!B$6:B$2928) -> 993 | F52: =LOOKUP(E52,'Flow Data'!D$6:D$737,'Flow Data'!H$6:H$737) -> 0.1464249059 | G52: =((D52/100)*1000*E52*28.3168)*60*60*24 -> 534478014259200
A53: 2000-11-14 | B53: 31613 | D53: 21000 | E53: =LOOKUP(A53,'Flow Data'!A$6:A$2928,'Flow Data'!B$6:B$2928) -> 964 | F53: =LOOKUP(E53,'Flow Data'!D$6:D$737,'Flow Data'!H$6:H$737) -> 0.1515566199 | G53: =((D53/100)*1000*E53*28.3168)*60*60*24 -> 495283938508800
A54: 2001-04-09 | B54: 31616 | D54: 220 | E54: =LOOKUP(A54,'Flow Data'!A$6:A$2928,'Flow Data'!B$6:B$2928) -> 904 | F54: =LOOKUP(E54,'Flow Data'!D$6:D$737,'Flow Data'!H$6:H$737) -> 0.1625042764 | G54: =((D54/100)*1000*E54*28.3168)*60*60*24 -> 4865741438976
A55: 2001-04-09 | B55: 31616 | D55: 410 | E55: =LOOKUP(A55,'Flow Data'!A$6:A$2928,'Flow Data'!B$6:B$2928) -> 904 | F55: =LOOKUP(E55,'Flow Data'!D$6:D$737,'Flow Data'!H$6:H$737) -> 0.1625042764 | G55: =((D55/100)*1000*E55*28.3168)*60*60*24 -> 9067972681728
A56: 2001-04-09 | B56: 31616 | D56: 210 | E56: =LOOKUP(A56,'Flow Data'!A$6:A$2928,'Flow Data'!B$6:B$2928) -> 904 | F56: =LOOKUP(E56,'Flow Data'!D$6:D$737,'Flow Data'!H$6:H$737) -> 0.1625042764 | G56: =((D56/100)*1000*E56*28.3168)*60*60*24 -> 4.644571374e+12
A57: 2001-04-09 | B57: 31616 | D57: 320 | E57: =LOOKUP(A57,'Flow Data'!A$6:A$2928,'Flow Data'!B$6:B$2928) -> 904 | F57: =LOOKUP(E57,'Flow Data'!D$6:D$737,'Flow Data'!H$6:H$737) -> 0.1625042764 | G57: =((D57/100)*1000*E57*28.3168)*60*60*24 -> 7.077442093e+12
A58: 2001-04-09 | B58: 31616 | D58: 340 | E58: =LOOKUP(A58,'Flow Data'!A$6:A$2928,'Flow Data'!B$6:B$2928) -> 904 | F58: =LOOKUP(E58,'Flow Data'!D$6:D$737,'Flow Data'!H$6:H$737) -> 0.1625042764 | G58: =((D58/100)*1000*E58*28.3168)*60*60*24 -> 7519782223872
A59: 2000-04-04 | B59: 31616 | D59: 4000 | E59: =LOOKUP(A59,'Flow Data'!A$6:A$2928,'Flow Data'!B$6:B$2928) -> 849 | F59: =LOOKUP(E59,'Flow Data'!D$6:D$737,'Flow Data'!H$6:H$737) -> 0.1717413616 | G59: =((D59/100)*1000*E59*28.3168)*60*60*24 -> 83085568819200
A60: 2000-04-04 | B60: 31616 | D60: 18000 | E60: =LOOKUP(A60,'Flow Data'!A$6:A$2928,'Flow Data'!B$6:B$2928) -> 849 | F60: =LOOKUP(E60,'Flow Data'!D$6:D$737,'Flow Data'!H$6:H$737) -> 0.1717413616 | G60: =((D60/100)*1000*E60*28.3168)*60*60*24 -> 373885059686400
A61: 2000-04-04 | B61: 31616 | D61: 28000 | E61: =LOOKUP(A61,'Flow Data'!A$6:A$2928,'Flow Data'!B$6:B$2928) -> 849 | F61: =LOOKUP(E61,'Flow Data'!D$6:D$737,'Flow Data'!H$6:H$737) -> 0.1717413616 | G61: =((D61/100)*1000*E61*28.3168)*60*60*24 -> 581598981734400
A62: 2000-04-04 | B62: 31616 | D62: 7400 | E62: =LOOKUP(A62,'Flow Data'!A$6:A$2928,'Flow Data'!B$6:B$2928) -> 849 | F62: =LOOKUP(E62,'Flow Data'!D$6:D$737,'Flow Data'!H$6:H$737) -> 0.1717413616 | G62: =((D62/100)*1000*E62*28.3168)*60*60*24 -> 153708302315520
A63: 2000-04-04 | B63: 31616 | D63: 8400 | E63: =LOOKUP(A63,'Flow Data'!A$6:A$2928,'Flow Data'!B$6:B$2928) -> 849 | F63: =LOOKUP(E63,'Flow Data'!D$6:D$737,'Flow Data'!H$6:H$737) -> 0.1717413616 | G63: =((D63/100)*1000*E63*28.3168)*60*60*24 -> 174479694520320
A64: 2001-03-05 | B64: 31616 | D64: 2600 | E64: =LOOKUP(A64,'Flow Data'!A$6:A$2928,'Flow Data'!B$6:B$2928) -> 836 | F64: =LOOKUP(E64,'Flow Data'!D$6:D$737,'Flow Data'!H$6:H$737) -> 0.1758467328 | G64: =((D64/100)*1000*E64*28.3168)*60*60*24 -> 5.317867856e+13
A65: 2001-03-05 | B65: 31616 | D65: 2100 | E65: =LOOKUP(A65,'Flow Data'!A$6:A$2928,'Flow Data'!B$6:B$2928) -> 836 | F65: =LOOKUP(E65,'Flow Data'!D$6:D$737,'Flow Data'!H$6:H$737) -> 0.1758467328 | G65: =((D65/100)*1000*E65*28.3168)*60*60*24 -> 42952009605120
A66: 2001-03-05 | B66: 31616 | D66: 3200 | E66: =LOOKUP(A66,'Flow Data'!A$6:A$2928,'Flow Data'!B$6:B$2928) -> 836 | F66: =LOOKUP(E66,'Flow Data'!D$6:D$737,'Flow Data'!H$6:H$737) -> 0.1758467328 | G66: =((D66/100)*1000*E66*28.3168)*60*60*24 -> 65450681303040
A67: 2001-03-05 | B67: 31616 | D67: 3100 | E67: =LOOKUP(A67,'Flow Data'!A$6:A$2928,'Flow Data'!B$6:B$2928) -> 836 | F67: =LOOKUP(E67,'Flow Data'!D$6:D$737,'Flow Data'!H$6:H$737) -> 0.1758467328 | G67: =((D67/100)*1000*E67*28.3168)*60*60*24 -> 6.340534751e+13
A68: 2001-03-05 | B68: 31616 | D68: 2900 | E68: =LOOKUP(A68,'Flow Data'!A$6:A$2928,'Flow Data'!B$6:B$2928) -> 836 | F68: =LOOKUP(E68,'Flow Data'!D$6:D$737,'Flow Data'!H$6:H$737) -> 0.1758467328 | G68: =((D68/100)*1000*E68*28.3168)*60*60*24 -> 59314679930880
A69: 2001-04-18 | B69: 31616 | D69: 6600 | E69: =LOOKUP(A69,'Flow Data'!A$6:A$2928,'Flow Data'!B$6:B$2928) -> 695 | F69: =LOOKUP(E69,'Flow Data'!D$6:D$737,'Flow Data'!H$6:H$737) -> 0.20047896 | G69: =((D69/100)*1000*E69*28.3168)*60*60*24 -> 112224235622400
A70: 2001-01-11 | B70: 31616 | D70: 8700 | E70: =LOOKUP(A70,'Flow Data'!A$6:A$2928,'Flow Data'!B$6:B$2928) -> 669 | F70: =LOOKUP(E70,'Flow Data'!D$6:D$737,'Flow Data'!H$6:H$737) -> 0.2059527882 | G70: =((D70/100)*1000*E70*28.3168)*60*60*24 -> 142397802178560
A71: 2001-01-11 | B71: 31616 | D71: 9300 | E71: =LOOKUP(A71,'Flow Data'!A$6:A$2928,'Flow Data'!B$6:B$2928) -> 669 | F71: =LOOKUP(E71,'Flow Data'!D$6:D$737,'Flow Data'!H$6:H$737) -> 0.2059527882 | G71: =((D71/100)*1000*E71*28.3168)*60*60*24 -> 1.522183403e+14
A72: 2001-01-11 | B72: 31616 | D72: 5900 | E72: =LOOKUP(A72,'Flow Data'!A$6:A$2928,'Flow Data'!B$6:B$2928) -> 669 | F72: =LOOKUP(E72,'Flow Data'!D$6:D$737,'Flow Data'!H$6:H$737) -> 0.2059527882 | G72: =((D72/100)*1000*E72*28.3168)*60*60*24 -> 96568624465920
A73: 2001-01-11 | B73: 31616 | D73: 5100 | E73: =LOOKUP(A73,'Flow Data'!A$6:A$2928,'Flow Data'!B$6:B$2928) -> 669 | F73: =LOOKUP(E73,'Flow Data'!D$6:D$737,'Flow Data'!H$6:H$737) -> 0.2059527882 | G73: =((D73/100)*1000*E73*28.3168)*60*60*24 -> 83474573690880
A74: 2001-01-11 | B74: 31616 | D74: 6200 | E74: =LOOKUP(A74,'Flow Data'!A$6:A$2928,'Flow Data'!B$6:B$2928) -> 669 | F74: =LOOKUP(E74,'Flow Data'!D$6:D$737,'Flow Data'!H$6:H$737) -> 0.2059527882 | G74: =((D74/100)*1000*E74*28.3168)*60*60*24 -> 101478893506560
A75: 2001-01-11 | B75: 31616 | D75: 6700 | E75: =LOOKUP(A75,'Flow Data'!A$6:A$2928,'Flow Data'!B$6:B$2928) -> 669 | F75: =LOOKUP(E75,'Flow Data'!D$6:D$737,'Flow Data'!H$6:H$737) -> 0.2059527882 | G75: =((D75/100)*1000*E75*28.3168)*60*60*24 -> 109662675240960
A76: 2000-04-13 | B76: 31616 | D76: 90 | E76: =LOOKUP(A76,'Flow Data'!A$6:A$2928,'Flow Data'!B$6:B$2928) -> 663 | F76: =LOOKUP(E76,'Flow Data'!D$6:D$737,'Flow Data'!H$6:H$737) -> 0.2066370168 | G76: =((D76/100)*1000*E76*28.3168)*60*60*24 -> 1.459869226e+12
A77: 2000-06-12 | B77: 31616 | D77: 930 | E77: =LOOKUP(A77,'Flow Data'!A$6:A$2928,'Flow Data'!B$6:B$2928) -> 614 | F77: =LOOKUP(E77,'Flow Data'!D$6:D$737,'Flow Data'!H$6:H$737) -> 0.2165583305 | G77: =((D77/100)*1000*E77*28.3168)*60*60*24 -> 13970412693504
A78: 2000-11-15 | B78: 31616 | D78: 3500 | E78: =LOOKUP(A78,'Flow Data'!A$6:A$2928,'Flow Data'!B$6:B$2928) -> 572 | F78: =LOOKUP(E78,'Flow Data'!D$6:D$737,'Flow Data'!H$6:H$737) -> 0.2261375299 | G78: =((D78/100)*1000*E78*28.3168)*60*60*24 -> 48980361830400
A79: 2001-01-29 | B79: 31616 | C79: > | D79: 200000 | E79: =LOOKUP(A79,'Flow Data'!A$6:A$2928,'Flow Data'!B$6:B$2928) -> 568 | F79: =LOOKUP(E79,'Flow Data'!D$6:D$737,'Flow Data'!H$6:H$737) -> 0.2271638727 | G79: =((D79/100)*1000*E79*28.3168)*60*60*24 -> 2779305246720000
A80: 2001-05-07 | B80: 31616 | D80: 1600 | E80: =LOOKUP(A80,'Flow Data'!A$6:A$2928,'Flow Data'!B$6:B$2928) -> 503 | F80: =LOOKUP(E80,'Flow Data'!D$6:D$737,'Flow Data'!H$6:H$737) -> 0.2411905576 | G80: =((D80/100)*1000*E80*28.3168)*60*60*24 -> 19690007592960
A81: 2001-05-07 | B81: 31616 | D81: 5700 | E81: =LOOKUP(A81,'Flow Data'!A$6:A$2928,'Flow Data'!B$6:B$2928) -> 503 | F81: =LOOKUP(E81,'Flow Data'!D$6:D$737,'Flow Data'!H$6:H$737) -> 0.2411905576 | G81: =((D81/100)*1000*E81*28.3168)*60*60*24 -> 7.014565205e+13
A82: 2001-05-07 | B82: 31616 | D82: 22000 | E82: =LOOKUP(A82,'Flow Data'!A$6:A$2928,'Flow Data'!B$6:B$2928) -> 503 | F82: =LOOKUP(E82,'Flow Data'!D$6:D$737,'Flow Data'!H$6:H$737) -> 0.2411905576 | G82: =((D82/100)*1000*E82*28.3168)*60*60*24 -> 270737604403200
A83: 2001-05-07 | B83: 31616 | D83: 26000 | E83: =LOOKUP(A83,'Flow Data'!A$6:A$2928,'Flow Data'!B$6:B$2928) -> 503 | F83: =LOOKUP(E83,'Flow Data'!D$6:D$737,'Flow Data'!H$6:H$737) -> 0.2411905576 | G83: =((D83/100)*1000*E83*28.3168)*60*60*24 -> 319962623385600
A84: 2001-05-07 | B84: 31616 | D84: 21000 | E84: =LOOKUP(A84,'Flow Data'!A$6:A$2928,'Flow Data'!B$6:B$2928) -> 503 | F84: =LOOKUP(E84,'Flow Data'!D$6:D$737,'Flow Data'!H$6:H$737) -> 0.2411905576 | G84: =((D84/100)*1000*E84*28.3168)*60*60*24 -> 258431349657600
A85: 2001-01-23 | B85: 31616 | D85: 240 | E85: =LOOKUP(A85,'Flow Data'!A$6:A$2928,'Flow Data'!B$6:B$2928) -> 482 | F85: =LOOKUP(E85,'Flow Data'!D$6:D$737,'Flow Data'!H$6:H$737) -> 0.2483749572 | G85: =((D85/100)*1000*E85*28.3168)*60*60*24 -> 2830193934336
A86: 2000-06-13 | B86: 31616 | D86: 2000 | E86: =LOOKUP(A86,'Flow Data'!A$6:A$2928,'Flow Data'!B$6:B$2928) -> 435 | F86: =LOOKUP(E86,'Flow Data'!D$6:D$737,'Flow Data'!H$6:H$737) -> 0.2665070133 | G86: =((D86/100)*1000*E86*28.3168)*60*60*24 -> 21285172224000
A87: 2000-06-13 | B87: 31616 | D87: 830 | E87: =LOOKUP(A87,'Flow Data'!A$6:A$2928,'Flow Data'!B$6:B$2928) -> 435 | F87: =LOOKUP(E87,'Flow Data'!D$6:D$737,'Flow Data'!H$6:H$737) -> 0.2665070133 | G87: =((D87/100)*1000*E87*28.3168)*60*60*24 -> 8833346472960
A88: 2000-06-13 | B88: 31616 | D88: 440 | E88: =LOOKUP(A88,'Flow Data'!A$6:A$2928,'Flow Data'!B$6:B$2928) -> 435 | F88: =LOOKUP(E88,'Flow Data'!D$6:D$737,'Flow Data'!H$6:H$737) -> 0.2665070133 | G88: =((D88/100)*1000*E88*28.3168)*60*60*24 -> 4682737889280
A89: 2000-06-13 | B89: 31616 | D89: 99 | E89: =LOOKUP(A89,'Flow Data'!A$6:A$2928,'Flow Data'!B$6:B$2928) -> 435 | F89: =LOOKUP(E89,'Flow Data'!D$6:D$737,'Flow Data'!H$6:H$737) -> 0.2665070133 | G89: =((D89/100)*1000*E89*28.3168)*60*60*24 -> 1053616025088
A90: 2000-06-13 | B90: 31616 | D90: 360 | E90: =LOOKUP(A90,'Flow Data'!A$6:A$2928,'Flow Data'!B$6:B$2928) -> 435 | F90: =LOOKUP(E90,'Flow Data'!D$6:D$737,'Flow Data'!H$6:H$737) -> 0.2665070133 | G90: =((D90/100)*1000*E90*28.3168)*60*60*24 -> 3.831331e+12
A91: 2001-03-08 | B91: 31616 | D91: 2600 | E91: =LOOKUP(A91,'Flow Data'!A$6:A$2928,'Flow Data'!B$6:B$2928) -> 434 | F91: =LOOKUP(E91,'Flow Data'!D$6:D$737,'Flow Data'!H$6:H$737) -> 0.2671912419 | G91: =((D91/100)*1000*E91*28.3168)*60*60*24 -> 27607113031680
A92: 2001-07-30 | B92: 31613 | D92: 340 | E92: =LOOKUP(A92,'Flow Data'!A$6:A$2928,'Flow Data'!B$6:B$2928) -> 411 | F92: =LOOKUP(E92,'Flow Data'!D$6:D$737,'Flow Data'!H$6:H$737) -> 0.2754019843 | G92: =((D92/100)*1000*E92*28.3168)*60*60*24 -> 3418839042048
A93: 2001-05-14 | B93: 31616 | D93: 9100 | E93: =LOOKUP(A93,'Flow Data'!A$6:A$2928,'Flow Data'!B$6:B$2928) -> 394 | F93: =LOOKUP(E93,'Flow Data'!D$6:D$737,'Flow Data'!H$6:H$737) -> 0.2819021553 | G93: =((D93/100)*1000*E93*28.3168)*60*60*24 -> 87719375278080
A94: 2001-05-14 | B94: 31616 | D94: 1800 | E94: =LOOKUP(A94,'Flow Data'!A$6:A$2928,'Flow Data'!B$6:B$2928) -> 394 | F94: =LOOKUP(E94,'Flow Data'!D$6:D$737,'Flow Data'!H$6:H$737) -> 0.2819021553 | G94: =((D94/100)*1000*E94*28.3168)*60*60*24 -> 17351085219840
A95: 2001-05-14 | B95: 31616 | D95: 1800 | E95: =LOOKUP(A95,'Flow Data'!A$6:A$2928,'Flow Data'!B$6:B$2928) -> 394 | F95: =LOOKUP(E95,'Flow Data'!D$6:D$737,'Flow Data'!H$6:H$737) -> 0.2819021553 | G95: =((D95/100)*1000*E95*28.3168)*60*60*24 -> 17351085219840
A96: 2001-05-14 | B96: 31616 | D96: 1800 | E96: =LOOKUP(A96,'Flow Data'!A$6:A$2928,'Flow Data'!B$6:B$2928) -> 394 | F96: =LOOKUP(E96,'Flow Data'!D$6:D$737,'Flow Data'!H$6:H$737) -> 0.2819021553 | G96: =((D96/100)*1000*E96*28.3168)*60*60*24 -> 17351085219840
A97: 2001-05-14 | B97: 31616 | D97: 2700 | E97: =LOOKUP(A97,'Flow Data'!A$6:A$2928,'Flow Data'!B$6:B$2928) -> 394 | F97: =LOOKUP(E97,'Flow Data'!D$6:D$737,'Flow Data'!H$6:H$737) -> 0.2819021553 | G97: =((D97/100)*1000*E97*28.3168)*60*60*24 -> 2.602662783e+13
A98: 2000-11-16 | B98: 31616 | D98: 24000 | E98: =LOOKUP(A98,'Flow Data'!A$6:A$2928,'Flow Data'!B$6:B$2928) -> 324 | F98: =LOOKUP(E98,'Flow Data'!D$6:D$737,'Flow Data'!H$6:H$737) -> 0.3079028395 | G98: =((D98/100)*1000*E98*28.3168)*60*60*24 -> 190245401395200
A99: 2001-01-17 | B99: 31616 | D99: 2800 | E99: =LOOKUP(A99,'Flow Data'!A$6:A$2928,'Flow Data'!B$6:B$2928) -> 319 | F99: =LOOKUP(E99,'Flow Data'!D$6:D$737,'Flow Data'!H$6:H$737) -> 0.3096134109 | G99: =((D99/100)*1000*E99*28.3168)*60*60*24 -> 21852776816640
A100: 2001-01-17 | B100: 31616 | D100: 2900 | E100: =LOOKUP(A100,'Flow Data'!A$6:A$2928,'Flow Data'!B$6:B$2928) -> 319 | F100: =LOOKUP(E100,'Flow Data'!D$6:D$737,'Flow Data'!H$6:H$737) -> 0.3096134109 | G100: =((D100/100)*1000*E100*28.3168)*60*60*24 -> 22633233131520
A101: 2001-01-17 | B101: 31616 | D101: 2600 | E101: =LOOKUP(A101,'Flow Data'!A$6:A$2928,'Flow Data'!B$6:B$2928) -> 319 | F101: =LOOKUP(E101,'Flow Data'!D$6:D$737,'Flow Data'!H$6:H$737) -> 0.3096134109 | G101: =((D101/100)*1000*E101*28.3168)*60*60*24 -> 2.029186419e+13
A102: 2001-01-17 | B102: 31616 | D102: 3100 | E102: =LOOKUP(A102,'Flow Data'!A$6:A$2928,'Flow Data'!B$6:B$2928) -> 319 | F102: =LOOKUP(E102,'Flow Data'!D$6:D$737,'Flow Data'!H$6:H$737) -> 0.3096134109 | G102: =((D102/100)*1000*E102*28.3168)*60*60*24 -> 24194145761280
A103: 2001-04-10 | B103: 31616 | D103: 410 | E103: =LOOKUP(A103,'Flow Data'!A$6:A$2928,'Flow Data'!B$6:B$2928) -> 290 | F103: =LOOKUP(E103,'Flow Data'!D$6:D$737,'Flow Data'!H$6:H$737) -> 0.3243243243 | G103: =((D103/100)*1000*E103*28.3168)*60*60*24 -> 2.908973537e+12
A104: 2001-04-10 | B104: 31616 | D104: 220 | E104: =LOOKUP(A104,'Flow Data'!A$6:A$2928,'Flow Data'!B$6:B$2928) -> 290 | F104: =LOOKUP(E104,'Flow Data'!D$6:D$737,'Flow Data'!H$6:H$737) -> 0.3243243243 | G104: =((D104/100)*1000*E104*28.3168)*60*60*24 -> 1.56091263e+12
A105: 2001-04-10 | B105: 31616 | D105: 110 | E105: =LOOKUP(A105,'Flow Data'!A$6:A$2928,'Flow Data'!B$6:B$2928) -> 290 | F105: =LOOKUP(E105,'Flow Data'!D$6:D$737,'Flow Data'!H$6:H$737) -> 0.3243243243 | G105: =((D105/100)*1000*E105*28.3168)*60*60*24 -> 7.804563149e+11
A106: 2001-04-10 | B106: 31616 | D106: 160 | E106: =LOOKUP(A106,'Flow Data'!A$6:A$2928,'Flow Data'!B$6:B$2928) -> 290 | F106: =LOOKUP(E106,'Flow Data'!D$6:D$737,'Flow Data'!H$6:H$737) -> 0.3243243243 | G106: =((D106/100)*1000*E106*28.3168)*60*60*24 -> 1.135209185e+12
A107: 2001-04-10 | B107: 31616 | D107: 200 | E107: =LOOKUP(A107,'Flow Data'!A$6:A$2928,'Flow Data'!B$6:B$2928) -> 290 | F107: =LOOKUP(E107,'Flow Data'!D$6:D$737,'Flow Data'!H$6:H$737) -> 0.3243243243 | G107: =((D107/100)*1000*E107*28.3168)*60*60*24 -> 1419011481600
A108: 2001-04-10 | B108: 31616 | D108: 510 | E108: =LOOKUP(A108,'Flow Data'!A$6:A$2928,'Flow Data'!B$6:B$2928) -> 290 | F108: =LOOKUP(E108,'Flow Data'!D$6:D$737,'Flow Data'!H$6:H$737) -> 0.3243243243 | G108: =((D108/100)*1000*E108*28.3168)*60*60*24 -> 3618479278080
A109: 2000-02-23 | B109: 31616 | D109: 44000 | E109: =LOOKUP(A109,'Flow Data'!A$6:A$2928,'Flow Data'!B$6:B$2928) -> 258 | F109: =LOOKUP(E109,'Flow Data'!D$6:D$737,'Flow Data'!H$6:H$737) -> 0.3404036948 | G109: =((D109/100)*1000*E109*28.3168)*60*60*24 -> 277734798950400
A110: 2000-02-23 | B110: 31616 | D110: 28000 | E110: =LOOKUP(A110,'Flow Data'!A$6:A$2928,'Flow Data'!B$6:B$2928) -> 258 | F110: =LOOKUP(E110,'Flow Data'!D$6:D$737,'Flow Data'!H$6:H$737) -> 0.3404036948 | G110: =((D110/100)*1000*E110*28.3168)*60*60*24 -> 176740326604800
A111: 2000-02-23 | B111: 31616 | D111: 8000 | E111: =LOOKUP(A111,'Flow Data'!A$6:A$2928,'Flow Data'!B$6:B$2928) -> 258 | F111: =LOOKUP(E111,'Flow Data'!D$6:D$737,'Flow Data'!H$6:H$737) -> 0.3404036948 | G111: =((D111/100)*1000*E111*28.3168)*60*60*24 -> 50497236172800
A112: 2002-08-14 | B112: 31613 | D112: 8000 | E112: =LOOKUP(A112,'Flow Data'!A$6:A$2928,'Flow Data'!B$6:B$2928) -> 256 | F112: =LOOKUP(E112,'Flow Data'!D$6:D$737,'Flow Data'!H$6:H$737) -> 0.3414300376 | G112: =((D112/100)*1000*E112*28.3168)*60*60*24 -> 50105784729600
A113: 2002-08-14 | B113: 31613 | D113: 12000 | E113: =LOOKUP(A113,'Flow Data'!A$6:A$2928,'Flow Data'!B$6:B$2928) -> 256 | F113: =LOOKUP(E113,'Flow Data'!D$6:D$737,'Flow Data'!H$6:H$737) -> 0.3414300376 | G113: =((D113/100)*1000*E113*28.3168)*60*60*24 -> 75158677094400
A114: 2000-11-07 | B114: 31616 | D114: 6200 | E114: =LOOKUP(A114,'Flow Data'!A$6:A$2928,'Flow Data'!B$6:B$2928) -> 240 | F114: =LOOKUP(E114,'Flow Data'!D$6:D$737,'Flow Data'!H$6:H$737) -> 0.3489565515 | G114: =((D114/100)*1000*E114*28.3168)*60*60*24 -> 36404984217600
A115: 2000-11-07 | B115: 31616 | D115: 3800 | E115: =LOOKUP(A115,'Flow Data'!A$6:A$2928,'Flow Data'!B$6:B$2928) -> 240 | F115: =LOOKUP(E115,'Flow Data'!D$6:D$737,'Flow Data'!H$6:H$737) -> 0.3489565515 | G115: =((D115/100)*1000*E115*28.3168)*60*60*24 -> 22312732262400
A116: 2000-11-07 | B116: 31616 | D116: 5400 | E116: =LOOKUP(A116,'Flow Data'!A$6:A$2928,'Flow Data'!B$6:B$2928) -> 240 | F116: =LOOKUP(E116,'Flow Data'!D$6:D$737,'Flow Data'!H$6:H$737) -> 0.3489565515 | G116: =((D116/100)*1000*E116*28.3168)*60*60*24 -> 31707566899200
A117: 2000-11-07 | B117: 31616 | D117: 4600 | E117: =LOOKUP(A117,'Flow Data'!A$6:A$2928,'Flow Data'!B$6:B$2928) -> 240 | F117: =LOOKUP(E117,'Flow Data'!D$6:D$737,'Flow Data'!H$6:H$737) -> 0.3489565515 | G117: =((D117/100)*1000*E117*28.3168)*60*60*24 -> 27010149580800
A118: 2000-11-07 | B118: 31616 | D118: 5400 | E118: =LOOKUP(A118,'Flow Data'!A$6:A$2928,'Flow Data'!B$6:B$2928) -> 240 | F118: =LOOKUP(E118,'Flow Data'!D$6:D$737,'Flow Data'!H$6:H$737) -> 0.3489565515 | G118: =((D118/100)*1000*E118*28.3168)*60*60*24 -> 31707566899200
A119: 2000-11-07 | B119: 31616 | D119: 4700 | E119: =LOOKUP(A119,'Flow Data'!A$6:A$2928,'Flow Data'!B$6:B$2928) -> 240 | F119: =LOOKUP(E119,'Flow Data'!D$6:D$737,'Flow Data'!H$6:H$737) -> 0.3489565515 | G119: =((D119/100)*1000*E119*28.3168)*60*60*24 -> 27597326745600
A120: 2001-03-12 | B120: 31616 | D120: 31000 | E120: =LOOKUP(A120,'Flow Data'!A$6:A$2928,'Flow Data'!B$6:B$2928) -> 227 | F120: =LOOKUP(E120,'Flow Data'!D$6:D$737,'Flow Data'!H$6:H$737) -> 0.3564830653 | G120: =((D120/100)*1000*E120*28.3168)*60*60*24 -> 172165237862400
A121: 2001-03-12 | B121: 31616 | D121: 1500 | E121: =LOOKUP(A121,'Flow Data'!A$6:A$2928,'Flow Data'!B$6:B$2928) -> 227 | F121: =LOOKUP(E121,'Flow Data'!D$6:D$737,'Flow Data'!H$6:H$737) -> 0.3564830653 | G121: =((D121/100)*1000*E121*28.3168)*60*60*24 -> 8330576025600
A122: 2001-03-12 | B122: 31616 | D122: 2500 | E122: =LOOKUP(A122,'Flow Data'!A$6:A$2928,'Flow Data'!B$6:B$2928) -> 227 | F122: =LOOKUP(E122,'Flow Data'!D$6:D$737,'Flow Data'!H$6:H$737) -> 0.3564830653 | G122: =((D122/100)*1000*E122*28.3168)*60*60*24 -> 13884293376000
A123: 2001-03-12 | B123: 31616 | D123: 4300 | E123: =LOOKUP(A123,'Flow Data'!A$6:A$2928,'Flow Data'!B$6:B$2928) -> 227 | F123: =LOOKUP(E123,'Flow Data'!D$6:D$737,'Flow Data'!H$6:H$737) -> 0.3564830653 | G123: =((D123/100)*1000*E123*28.3168)*60*60*24 -> 23880984606720
A124: 2001-03-12 | B124: 31616 | D124: 22000 | E124: =LOOKUP(A124,'Flow Data'!A$6:A$2928,'Flow Data'!B$6:B$2928) -> 227 | F124: =LOOKUP(E124,'Flow Data'!D$6:D$737,'Flow Data'!H$6:H$737) -> 0.3564830653 | G124: =((D124/100)*1000*E124*28.3168)*60*60*24 -> 122181781708800
A125: 2000-02-09 | B125: 31616 | D125: 3300 | E125: =LOOKUP(A125,'Flow Data'!A$6:A$2928,'Flow Data'!B$6:B$2928) -> 199 | F125: =LOOKUP(E125,'Flow Data'!D$6:D$737,'Flow Data'!H$6:H$737) -> 0.3776941498 | G125: =((D125/100)*1000*E125*28.3168)*60*60*24 -> 16066635171840
A126: 2000-02-09 | B126: 31616 | D126: 2700 | E126: =LOOKUP(A126,'Flow Data'!A$6:A$2928,'Flow Data'!B$6:B$2928) -> 199 | F126: =LOOKUP(E126,'Flow Data'!D$6:D$737,'Flow Data'!H$6:H$737) -> 0.3776941498 | G126: =((D126/100)*1000*E126*28.3168)*60*60*24 -> 13145428776960
A127: 2000-02-09 | B127: 31616 | D127: 2800 | E127: =LOOKUP(A127,'Flow Data'!A$6:A$2928,'Flow Data'!B$6:B$2928) -> 199 | F127: =LOOKUP(E127,'Flow Data'!D$6:D$737,'Flow Data'!H$6:H$737) -> 0.3776941498 | G127: =((D127/100)*1000*E127*28.3168)*60*60*24 -> 13632296509440
A128: 2001-03-13 | B128: 31616 | D128: 540 | E128: =LOOKUP(A128,'Flow Data'!A$6:A$2928,'Flow Data'!B$6:B$2928) -> 189 | F128: =LOOKUP(E128,'Flow Data'!D$6:D$737,'Flow Data'!H$6:H$737) -> 0.3859048922 | G128: =((D128/100)*1000*E128*28.3168)*60*60*24 -> 2.496970893e+12
A129: 2001-03-13 | B129: 31616 | D129: 2300 | E129: =LOOKUP(A129,'Flow Data'!A$6:A$2928,'Flow Data'!B$6:B$2928) -> 189 | F129: =LOOKUP(E129,'Flow Data'!D$6:D$737,'Flow Data'!H$6:H$737) -> 0.3859048922 | G129: =((D129/100)*1000*E129*28.3168)*60*60*24 -> 1.06352464e+13
A130: 2001-03-13 | B130: 31616 | D130: 2400 | E130: =LOOKUP(A130,'Flow Data'!A$6:A$2928,'Flow Data'!B$6:B$2928) -> 189 | F130: =LOOKUP(E130,'Flow Data'!D$6:D$737,'Flow Data'!H$6:H$737) -> 0.3859048922 | G130: =((D130/100)*1000*E130*28.3168)*60*60*24 -> 11097648414720
A131: 2001-03-13 | B131: 31616 | D131: 4100 | E131: =LOOKUP(A131,'Flow Data'!A$6:A$2928,'Flow Data'!B$6:B$2928) -> 189 | F131: =LOOKUP(E131,'Flow Data'!D$6:D$737,'Flow Data'!H$6:H$737) -> 0.3859048922 | G131: =((D131/100)*1000*E131*28.3168)*60*60*24 -> 1.895848271e+13
A132: 2001-03-13 | B132: 31616 | D132: 1400 | E132: =LOOKUP(A132,'Flow Data'!A$6:A$2928,'Flow Data'!B$6:B$2928) -> 189 | F132: =LOOKUP(E132,'Flow Data'!D$6:D$737,'Flow Data'!H$6:H$737) -> 0.3859048922 | G132: =((D132/100)*1000*E132*28.3168)*60*60*24 -> 6473628241920
A133: 2001-03-13 | B133: 31616 | D133: 560 | E133: =LOOKUP(A133,'Flow Data'!A$6:A$2928,'Flow Data'!B$6:B$2928) -> 189 | F133: =LOOKUP(E133,'Flow Data'!D$6:D$737,'Flow Data'!H$6:H$737) -> 0.3859048922 | G133: =((D133/100)*1000*E133*28.3168)*60*60*24 -> 2589451296768
A134: 2001-05-08 | B134: 31616 | D134: 9000 | E134: =LOOKUP(A134,'Flow Data'!A$6:A$2928,'Flow Data'!B$6:B$2928) -> 188 | F134: =LOOKUP(E134,'Flow Data'!D$6:D$737,'Flow Data'!H$6:H$737) -> 0.3879575778 | G134: =((D134/100)*1000*E134*28.3168)*60*60*24 -> 41395990118400
A135: 2001-01-02 | B135: 31616 | D135: 5800 | E135: =LOOKUP(A135,'Flow Data'!A$6:A$2928,'Flow Data'!B$6:B$2928) -> 177 | F135: =LOOKUP(E135,'Flow Data'!D$6:D$737,'Flow Data'!H$6:H$737) -> 0.402326377 | G135: =((D135/100)*1000*E135*28.3168)*60*60*24 -> 25116503224320
A136: 2001-01-02 | B136: 31616 | D136: 2100 | E136: =LOOKUP(A136,'Flow Data'!A$6:A$2928,'Flow Data'!B$6:B$2928) -> 177 | F136: =LOOKUP(E136,'Flow Data'!D$6:D$737,'Flow Data'!H$6:H$737) -> 0.402326377 | G136: =((D136/100)*1000*E136*28.3168)*60*60*24 -> 9.09390634e+12
A137: 2001-01-02 | B137: 31616 | D137: 240 | E137: =LOOKUP(A137,'Flow Data'!A$6:A$2928,'Flow Data'!B$6:B$2928) -> 177 | F137: =LOOKUP(E137,'Flow Data'!D$6:D$737,'Flow Data'!H$6:H$737) -> 0.402326377 | G137: =((D137/100)*1000*E137*28.3168)*60*60*24 -> 1.039303582e+12
A138: 2001-01-02 | B138: 31616 | D138: 210 | E138: =LOOKUP(A138,'Flow Data'!A$6:A$2928,'Flow Data'!B$6:B$2928) -> 177 | F138: =LOOKUP(E138,'Flow Data'!D$6:D$737,'Flow Data'!H$6:H$737) -> 0.402326377 | G138: =((D138/100)*1000*E138*28.3168)*60*60*24 -> 909390633984
A139: 2001-01-02 | B139: 31616 | D139: 240 | E139: =LOOKUP(A139,'Flow Data'!A$6:A$2928,'Flow Data'!B$6:B$2928) -> 177 | F139: =LOOKUP(E139,'Flow Data'!D$6:D$737,'Flow Data'!H$6:H$737) -> 0.402326377 | G139: =((D139/100)*1000*E139*28.3168)*60*60*24 -> 1.039303582e+12
A140: 2001-05-15 | B140: 31616 | D140: 2400 | E140: =LOOKUP(A140,'Flow Data'!A$6:A$2928,'Flow Data'!B$6:B$2928) -> 169 | F140: =LOOKUP(E140,'Flow Data'!D$6:D$737,'Flow Data'!H$6:H$737) -> 0.4064317482 | G140: =((D140/100)*1000*E140*28.3168)*60*60*24 -> 9923294085120
A141: 2001-05-15 | B141: 31616 | D141: 2100 | E141: =LOOKUP(A141,'Flow Data'!A$6:A$2928,'Flow Data'!B$6:B$2928) -> 169 | F141: =LOOKUP(E141,'Flow Data'!D$6:D$737,'Flow Data'!H$6:H$737) -> 0.4064317482 | G141: =((D141/100)*1000*E141*28.3168)*60*60*24 -> 8682882324480
A142: 2001-05-15 | B142: 31616 | D142: 1900 | E142: =LOOKUP(A142,'Flow Data'!A$6:A$2928,'Flow Data'!B$6:B$2928) -> 169 | F142: =LOOKUP(E142,'Flow Data'!D$6:D$737,'Flow Data'!H$6:H$737) -> 0.4064317482 | G142: =((D142/100)*1000*E142*28.3168)*60*60*24 -> 7855941150720
A143: 2001-05-15 | B143: 31616 | D143: 1700 | E143: =LOOKUP(A143,'Flow Data'!A$6:A$2928,'Flow Data'!B$6:B$2928) -> 169 | F143: =LOOKUP(E143,'Flow Data'!D$6:D$737,'Flow Data'!H$6:H$737) -> 0.4064317482 | G143: =((D143/100)*1000*E143*28.3168)*60*60*24 -> 7028999976960
A144: 2001-05-15 | B144: 31616 | D144: 2600 | E144: =LOOKUP(A144,'Flow Data'!A$6:A$2928,'Flow Data'!B$6:B$2928) -> 169 | F144: =LOOKUP(E144,'Flow Data'!D$6:D$737,'Flow Data'!H$6:H$737) -> 0.4064317482 | G144: =((D144/100)*1000*E144*28.3168)*60*60*24 -> 10750235258880
A145: 2001-05-15 | B145: 31616 | D145: 4700 | E145: =LOOKUP(A145,'Flow Data'!A$6:A$2928,'Flow Data'!B$6:B$2928) -> 169 | F145: =LOOKUP(E145,'Flow Data'!D$6:D$737,'Flow Data'!H$6:H$737) -> 0.4064317482 | G145: =((D145/100)*1000*E145*28.3168)*60*60*24 -> 19433117583360
A146: 2000-12-13 | B146: 31616 | D146: 43000 | E146: =LOOKUP(A146,'Flow Data'!A$6:A$2928,'Flow Data'!B$6:B$2928) -> 159 | F146: =LOOKUP(E146,'Flow Data'!D$6:D$737,'Flow Data'!H$6:H$737) -> 0.4190899761 | G146: =((D146/100)*1000*E146*28.3168)*60*60*24 -> 167272094822400
A147: 2000-12-13 | B147: 31616 | D147: 18000 | E147: =LOOKUP(A147,'Flow Data'!A$6:A$2928,'Flow Data'!B$6:B$2928) -> 159 | F147: =LOOKUP(E147,'Flow Data'!D$6:D$737,'Flow Data'!H$6:H$737) -> 0.4190899761 | G147: =((D147/100)*1000*E147*28.3168)*60*60*24 -> 70020876902400
A148: 2000-12-13 | B148: 31616 | D148: 10000 | E148: =LOOKUP(A148,'Flow Data'!A$6:A$2928,'Flow Data'!B$6:B$2928) -> 159 | F148: =LOOKUP(E148,'Flow Data'!D$6:D$737,'Flow Data'!H$6:H$737) -> 0.4190899761 | G148: =((D148/100)*1000*E148*28.3168)*60*60*24 -> 38900487168000
A149: 2000-12-13 | B149: 31616 | D149: 35000 | E149: =LOOKUP(A149,'Flow Data'!A$6:A$2928,'Flow Data'!B$6:B$2928) -> 159 | F149: =LOOKUP(E149,'Flow Data'!D$6:D$737,'Flow Data'!H$6:H$737) -> 0.4190899761 | G149: =((D149/100)*1000*E149*28.3168)*60*60*24 -> 136151705088000
A150: 2000-12-13 | B150: 31616 | D150: 37000 | E150: =LOOKUP(A150,'Flow Data'!A$6:A$2928,'Flow Data'!B$6:B$2928) -> 159 | F150: =LOOKUP(E150,'Flow Data'!D$6:D$737,'Flow Data'!H$6:H$737) -> 0.4190899761 | G150: =((D150/100)*1000*E150*28.3168)*60*60*24 -> 143931802521600
A151: 2000-12-13 | B151: 31616 | D151: 28000 | E151: =LOOKUP(A151,'Flow Data'!A$6:A$2928,'Flow Data'!B$6:B$2928) -> 159 | F151: =LOOKUP(E151,'Flow Data'!D$6:D$737,'Flow Data'!H$6:H$737) -> 0.4190899761 | G151: =((D151/100)*1000*E151*28.3168)*60*60*24 -> 108921364070400
A152: 2001-08-06 | B152: 31613 | D152: 310 | E152: =LOOKUP(A152,'Flow Data'!A$6:A$2928,'Flow Data'!B$6:B$2928) -> 151 | F152: =LOOKUP(E152,'Flow Data'!D$6:D$737,'Flow Data'!H$6:H$737) -> 0.427984947 | G152: =((D152/100)*1000*E152*28.3168)*60*60*24 -> 1145240128512
A153: 2000-10-09 | B153: 31616 | D153: 3800 | E153: =LOOKUP(A153,'Flow Data'!A$6:A$2928,'Flow Data'!B$6:B$2928) -> 140 | F153: =LOOKUP(E153,'Flow Data'!D$6:D$737,'Flow Data'!H$6:H$737) -> 0.4416695176 | G153: =((D153/100)*1000*E153*28.3168)*60*60*24 -> 13015760486400
A154: 2000-10-09 | B154: 31616 | D154: 5100 | E154: =LOOKUP(A154,'Flow Data'!A$6:A$2928,'Flow Data'!B$6:B$2928) -> 140 | F154: =LOOKUP(E154,'Flow Data'!D$6:D$737,'Flow Data'!H$6:H$737) -> 0.4416695176 | G154: =((D154/100)*1000*E154*28.3168)*60*60*24 -> 17468520652800
A155: 2000-10-09 | B155: 31616 | D155: 4800 | E155: =LOOKUP(A155,'Flow Data'!A$6:A$2928,'Flow Data'!B$6:B$2928) -> 140 | F155: =LOOKUP(E155,'Flow Data'!D$6:D$737,'Flow Data'!H$6:H$737) -> 0.4416695176 | G155: =((D155/100)*1000*E155*28.3168)*60*60*24 -> 16440960614400
A156: 2000-10-09 | B156: 31616 | D156: 3900 | E156: =LOOKUP(A156,'Flow Data'!A$6:A$2928,'Flow Data'!B$6:B$2928) -> 140 | F156: =LOOKUP(E156,'Flow Data'!D$6:D$737,'Flow Data'!H$6:H$737) -> 0.4416695176 | G156: =((D156/100)*1000*E156*28.3168)*60*60*24 -> 13358280499200
A157: 2000-10-09 | B157: 31616 | D157: 5800 | E157: =LOOKUP(A157,'Flow Data'!A$6:A$2928,'Flow Data'!B$6:B$2928) -> 140 | F157: =LOOKUP(E157,'Flow Data'!D$6:D$737,'Flow Data'!H$6:H$737) -> 0.4416695176 | G157: =((D157/100)*1000*E157*28.3168)*60*60*24 -> 19866160742400
A158: 2000-10-09 | B158: 31616 | D158: 4600 | E158: =LOOKUP(A158,'Flow Data'!A$6:A$2928,'Flow Data'!B$6:B$2928) -> 140 | F158: =LOOKUP(E158,'Flow Data'!D$6:D$737,'Flow Data'!H$6:H$737) -> 0.4416695176 | G158: =((D158/100)*1000*E158*28.3168)*60*60*24 -> 15755920588800
A159: 2000-06-14 | B159: 31616 | D159: 4200 | E159: =LOOKUP(A159,'Flow Data'!A$6:A$2928,'Flow Data'!B$6:B$2928) -> 135 | F159: =LOOKUP(E159,'Flow Data'!D$6:D$737,'Flow Data'!H$6:H$737) -> 0.4481696887 | G159: =((D159/100)*1000*E159*28.3168)*60*60*24 -> 13872060518400
A160: 2000-06-14 | B160: 31616 | D160: 2500 | E160: =LOOKUP(A160,'Flow Data'!A$6:A$2928,'Flow Data'!B$6:B$2928) -> 135 | F160: =LOOKUP(E160,'Flow Data'!D$6:D$737,'Flow Data'!H$6:H$737) -> 0.4481696887 | G160: =((D160/100)*1000*E160*28.3168)*60*60*24 -> 8257178880000
A161: 2000-06-14 | B161: 31616 | D161: 220 | E161: =LOOKUP(A161,'Flow Data'!A$6:A$2928,'Flow Data'!B$6:B$2928) -> 135 | F161: =LOOKUP(E161,'Flow Data'!D$6:D$737,'Flow Data'!H$6:H$737) -> 0.4481696887 | G161: =((D161/100)*1000*E161*28.3168)*60*60*24 -> 726631741440
A162: 2000-06-14 | B162: 31616 | D162: 1700 | E162: =LOOKUP(A162,'Flow Data'!A$6:A$2928,'Flow Data'!B$6:B$2928) -> 135 | F162: =LOOKUP(E162,'Flow Data'!D$6:D$737,'Flow Data'!H$6:H$737) -> 0.4481696887 | G162: =((D162/100)*1000*E162*28.3168)*60*60*24 -> 5614881638400
A163: 2000-06-14 | B163: 31616 | D163: 360 | E163: =LOOKUP(A163,'Flow Data'!A$6:A$2928,'Flow Data'!B$6:B$2928) -> 135 | F163: =LOOKUP(E163,'Flow Data'!D$6:D$737,'Flow Data'!H$6:H$737) -> 0.4481696887 | G163: =((D163/100)*1000*E163*28.3168)*60*60*24 -> 1189033758720
A164: 2000-06-14 | B164: 31616 | D164: 2200 | E164: =LOOKUP(A164,'Flow Data'!A$6:A$2928,'Flow Data'!B$6:B$2928) -> 135 | F164: =LOOKUP(E164,'Flow Data'!D$6:D$737,'Flow Data'!H$6:H$737) -> 0.4481696887 | G164: =((D164/100)*1000*E164*28.3168)*60*60*24 -> 7266317414400
A165: 2000-08-02 | B165: 31616 | D165: 3900 | E165: =LOOKUP(A165,'Flow Data'!A$6:A$2928,'Flow Data'!B$6:B$2928) -> 128 | F165: =LOOKUP(E165,'Flow Data'!D$6:D$737,'Flow Data'!H$6:H$737) -> 0.4615121451 | G165: =((D165/100)*1000*E165*28.3168)*60*60*24 -> 12213285027840
A166: 2000-08-02 | B166: 31616 | D166: 2200 | E166: =LOOKUP(A166,'Flow Data'!A$6:A$2928,'Flow Data'!B$6:B$2928) -> 128 | F166: =LOOKUP(E166,'Flow Data'!D$6:D$737,'Flow Data'!H$6:H$737) -> 0.4615121451 | G166: =((D166/100)*1000*E166*28.3168)*60*60*24 -> 6889545400320
A167: 2000-08-02 | B167: 31616 | D167: 2100 | E167: =LOOKUP(A167,'Flow Data'!A$6:A$2928,'Flow Data'!B$6:B$2928) -> 128 | F167: =LOOKUP(E167,'Flow Data'!D$6:D$737,'Flow Data'!H$6:H$737) -> 0.4615121451 | G167: =((D167/100)*1000*E167*28.3168)*60*60*24 -> 6576384245760
A168: 2000-08-02 | B168: 31616 | D168: 2900 | E168: =LOOKUP(A168,'Flow Data'!A$6:A$2928,'Flow Data'!B$6:B$2928) -> 128 | F168: =LOOKUP(E168,'Flow Data'!D$6:D$737,'Flow Data'!H$6:H$737) -> 0.4615121451 | G168: =((D168/100)*1000*E168*28.3168)*60*60*24 -> 9.081673482e+12
A169: 2000-08-02 | B169: 31616 | D169: 2800 | E169: =LOOKUP(A169,'Flow Data'!A$6:A$2928,'Flow Data'!B$6:B$2928) -> 128 | F169: =LOOKUP(E169,'Flow Data'!D$6:D$737,'Flow Data'!H$6:H$737) -> 0.4615121451 | G169: =((D169/100)*1000*E169*28.3168)*60*60*24 -> 8768512327680
A170: 2003-01-30 | B170: 31613 | D170: 1820 | E170: =LOOKUP(A170,'Flow Data'!A$6:A$2928,'Flow Data'!B$6:B$2928) -> 127 | F170: =LOOKUP(E170,'Flow Data'!D$6:D$737,'Flow Data'!H$6:H$737) -> 0.4642490592 | G170: =((D170/100)*1000*E170*28.3168)*60*60*24 -> 5.655005411e+12
A171: 2003-01-30 | B171: 31613 | D171: 636 | E171: =LOOKUP(A171,'Flow Data'!A$6:A$2928,'Flow Data'!B$6:B$2928) -> 127 | F171: =LOOKUP(E171,'Flow Data'!D$6:D$737,'Flow Data'!H$6:H$737) -> 0.4642490592 | G171: =((D171/100)*1000*E171*28.3168)*60*60*24 -> 1.976144748e+12
A172: 2000-09-13 | B172: 31616 | D172: 56000 | E172: =LOOKUP(A172,'Flow Data'!A$6:A$2928,'Flow Data'!B$6:B$2928) -> 121 | F172: =LOOKUP(E172,'Flow Data'!D$6:D$737,'Flow Data'!H$6:H$737) -> 0.4775915156 | G172: =((D172/100)*1000*E172*28.3168)*60*60*24 -> 165779686195200
A173: 2000-09-13 | B173: 31616 | D173: 57000 | E173: =LOOKUP(A173,'Flow Data'!A$6:A$2928,'Flow Data'!B$6:B$2928) -> 121 | F173: =LOOKUP(E173,'Flow Data'!D$6:D$737,'Flow Data'!H$6:H$737) -> 0.4775915156 | G173: =((D173/100)*1000*E173*28.3168)*60*60*24 -> 168740037734400
A174: 2000-09-13 | B174: 31616 | D174: 34000 | E174: =LOOKUP(A174,'Flow Data'!A$6:A$2928,'Flow Data'!B$6:B$2928) -> 121 | F174: =LOOKUP(E174,'Flow Data'!D$6:D$737,'Flow Data'!H$6:H$737) -> 0.4775915156 | G174: =((D174/100)*1000*E174*28.3168)*60*60*24 -> 100651952332800
A175: 2000-09-13 | B175: 31616 | D175: 5100 | E175: =LOOKUP(A175,'Flow Data'!A$6:A$2928,'Flow Data'!B$6:B$2928) -> 121 | F175: =LOOKUP(E175,'Flow Data'!D$6:D$737,'Flow Data'!H$6:H$737) -> 0.4775915156 | G175: =((D175/100)*1000*E175*28.3168)*60*60*24 -> 15097792849920
A176: 2000-09-13 | B176: 31616 | D176: 41000 | E176: =LOOKUP(A176,'Flow Data'!A$6:A$2928,'Flow Data'!B$6:B$2928) -> 121 | F176: =LOOKUP(E176,'Flow Data'!D$6:D$737,'Flow Data'!H$6:H$737) -> 0.4775915156 | G176: =((D176/100)*1000*E176*28.3168)*60*60*24 -> 121374413107200
A177: 2000-09-13 | B177: 31616 | D177: 38000 | E177: =LOOKUP(A177,'Flow Data'!A$6:A$2928,'Flow Data'!B$6:B$2928) -> 121 | F177: =LOOKUP(E177,'Flow Data'!D$6:D$737,'Flow Data'!H$6:H$737) -> 0.4775915156 | G177: =((D177/100)*1000*E177*28.3168)*60*60*24 -> 112493358489600
A178: 2001-05-16 | B178: 31616 | D178: 990 | E178: =LOOKUP(A178,'Flow Data'!A$6:A$2928,'Flow Data'!B$6:B$2928) -> 119 | F178: =LOOKUP(E178,'Flow Data'!D$6:D$737,'Flow Data'!H$6:H$737) -> 0.4830653438 | G178: =((D178/100)*1000*E178*28.3168)*60*60*24 -> 2.882305908e+12
A179: 2000-01-10 | B179: 31616 | D179: 8400 | E179: =LOOKUP(A179,'Flow Data'!A$6:A$2928,'Flow Data'!B$6:B$2928) -> 110 | F179: =LOOKUP(E179,'Flow Data'!D$6:D$737,'Flow Data'!H$6:H$737) -> 0.5029079713 | G179: =((D179/100)*1000*E179*28.3168)*60*60*24 -> 22606320844800
A180: 2000-01-10 | B180: 31616 | D180: 3000 | E180: =LOOKUP(A180,'Flow Data'!A$6:A$2928,'Flow Data'!B$6:B$2928) -> 110 | F180: =LOOKUP(E180,'Flow Data'!D$6:D$737,'Flow Data'!H$6:H$737) -> 0.5029079713 | G180: =((D180/100)*1000*E180*28.3168)*60*60*24 -> 8073686016000
A181: 2000-08-03 | B181: 31616 | D181: 5100 | E181: =LOOKUP(A181,'Flow Data'!A$6:A$2928,'Flow Data'!B$6:B$2928) -> 110 | F181: =LOOKUP(E181,'Flow Data'!D$6:D$737,'Flow Data'!H$6:H$737) -> 0.5029079713 | G181: =((D181/100)*1000*E181*28.3168)*60*60*24 -> 13725266227200
A182: 2000-08-03 | B182: 31616 | D182: 25000 | E182: =LOOKUP(A182,'Flow Data'!A$6:A$2928,'Flow Data'!B$6:B$2928) -> 110 | F182: =LOOKUP(E182,'Flow Data'!D$6:D$737,'Flow Data'!H$6:H$737) -> 0.5029079713 | G182: =((D182/100)*1000*E182*28.3168)*60*60*24 -> 67280716800000
A183: 2000-08-03 | B183: 31616 | D183: 4600 | E183: =LOOKUP(A183,'Flow Data'!A$6:A$2928,'Flow Data'!B$6:B$2928) -> 110 | F183: =LOOKUP(E183,'Flow Data'!D$6:D$737,'Flow Data'!H$6:H$737) -> 0.5029079713 | G183: =((D183/100)*1000*E183*28.3168)*60*60*24 -> 12379651891200
A184: 2000-08-03 | B184: 31616 | D184: 2900 | E184: =LOOKUP(A184,'Flow Data'!A$6:A$2928,'Flow Data'!B$6:B$2928) -> 110 | F184: =LOOKUP(E184,'Flow Data'!D$6:D$737,'Flow Data'!H$6:H$737) -> 0.5029079713 | G184: =((D184/100)*1000*E184*28.3168)*60*60*24 -> 7804563148800
A185: 2000-08-03 | B185: 31616 | D185: 2400 | E185: =LOOKUP(A185,'Flow Data'!A$6:A$2928,'Flow Data'!B$6:B$2928) -> 110 | F185: =LOOKUP(E185,'Flow Data'!D$6:D$737,'Flow Data'!H$6:H$737) -> 0.5029079713 | G185: =((D185/100)*1000*E185*28.3168)*60*60*24 -> 6458948812800
A186: 2000-08-03 | B186: 31616 | D186: 21000 | E186: =LOOKUP(A186,'Flow Data'!A$6:A$2928,'Flow Data'!B$6:B$2928) -> 110 | F186: =LOOKUP(E186,'Flow Data'!D$6:D$737,'Flow Data'!H$6:H$737) -> 0.5029079713 | G186: =((D186/100)*1000*E186*28.3168)*60*60*24 -> 56515802112000
A187: 2002-08-13 | B187: 31613 | D187: 300 | E187: =LOOKUP(A187,'Flow Data'!A$6:A$2928,'Flow Data'!B$6:B$2928) -> 110 | F187: =LOOKUP(E187,'Flow Data'!D$6:D$737,'Flow Data'!H$6:H$737) -> 0.5029079713 | G187: =((D187/100)*1000*E187*28.3168)*60*60*24 -> 807368601600
A188: 2000-05-03 | B188: 31616 | D188: 4300 | E188: =LOOKUP(A188,'Flow Data'!A$6:A$2928,'Flow Data'!B$6:B$2928) -> 109 | F188: =LOOKUP(E188,'Flow Data'!D$6:D$737,'Flow Data'!H$6:H$737) -> 0.507697571 | G188: =((D188/100)*1000*E188*28.3168)*60*60*24 -> 1.146708071e+13
A189: 2000-05-03 | B189: 31616 | D189: 24000 | E189: =LOOKUP(A189,'Flow Data'!A$6:A$2928,'Flow Data'!B$6:B$2928) -> 109 | F189: =LOOKUP(E189,'Flow Data'!D$6:D$737,'Flow Data'!H$6:H$737) -> 0.507697571 | G189: =((D189/100)*1000*E189*28.3168)*60*60*24 -> 64002310963200
A190: 2000-05-03 | B190: 31616 | D190: 10000 | E190: =LOOKUP(A190,'Flow Data'!A$6:A$2928,'Flow Data'!B$6:B$2928) -> 109 | F190: =LOOKUP(E190,'Flow Data'!D$6:D$737,'Flow Data'!H$6:H$737) -> 0.507697571 | G190: =((D190/100)*1000*E190*28.3168)*60*60*24 -> 26667629568000
A191: 2000-05-03 | B191: 31616 | D191: 8000 | E191: =LOOKUP(A191,'Flow Data'!A$6:A$2928,'Flow Data'!B$6:B$2928) -> 109 | F191: =LOOKUP(E191,'Flow Data'!D$6:D$737,'Flow Data'!H$6:H$737) -> 0.507697571 | G191: =((D191/100)*1000*E191*28.3168)*60*60*24 -> 21334103654400
A192: 2000-05-03 | B192: 31616 | D192: 20000 | E192: =LOOKUP(A192,'Flow Data'!A$6:A$2928,'Flow Data'!B$6:B$2928) -> 109 | F192: =LOOKUP(E192,'Flow Data'!D$6:D$737,'Flow Data'!H$6:H$737) -> 0.507697571 | G192: =((D192/100)*1000*E192*28.3168)*60*60*24 -> 53335259136000
A193: 2000-12-04 | B193: 31616 | D193: 22000 | E193: =LOOKUP(A193,'Flow Data'!A$6:A$2928,'Flow Data'!B$6:B$2928) -> 100 | F193: =LOOKUP(E193,'Flow Data'!D$6:D$737,'Flow Data'!H$6:H$737) -> 0.5405405405 | G193: =((D193/100)*1000*E193*28.3168)*60*60*24 -> 53824573440000
A194: 2000-12-04 | B194: 31616 | D194: 19000 | E194: =LOOKUP(A194,'Flow Data'!A$6:A$2928,'Flow Data'!B$6:B$2928) -> 100 | F194: =LOOKUP(E194,'Flow Data'!D$6:D$737,'Flow Data'!H$6:H$737) -> 0.5405405405 | G194: =((D194/100)*1000*E194*28.3168)*60*60*24 -> 46484858880000
A195: 2000-12-04 | B195: 31616 | D195: 14000 | E195: =LOOKUP(A195,'Flow Data'!A$6:A$2928,'Flow Data'!B$6:B$2928) -> 100 | F195: =LOOKUP(E195,'Flow Data'!D$6:D$737,'Flow Data'!H$6:H$737) -> 0.5405405405 | G195: =((D195/100)*1000*E195*28.3168)*60*60*24 -> 34252001280000
A196: 2000-12-04 | B196: 31616 | D196: 46000 | E196: =LOOKUP(A196,'Flow Data'!A$6:A$2928,'Flow Data'!B$6:B$2928) -> 100 | F196: =LOOKUP(E196,'Flow Data'!D$6:D$737,'Flow Data'!H$6:H$737) -> 0.5405405405 | G196: =((D196/100)*1000*E196*28.3168)*60*60*24 -> 112542289920000
A197: 2000-12-04 | B197: 31616 | D197: 340 | E197: =LOOKUP(A197,'Flow Data'!A$6:A$2928,'Flow Data'!B$6:B$2928) -> 100 | F197: =LOOKUP(E197,'Flow Data'!D$6:D$737,'Flow Data'!H$6:H$737) -> 0.5405405405 | G197: =((D197/100)*1000*E197*28.3168)*60*60*24 -> 831834316800
A198: 2001-01-03 | B198: 31616 | D198: 380 | E198: =LOOKUP(A198,'Flow Data'!A$6:A$2928,'Flow Data'!B$6:B$2928) -> 100 | F198: =LOOKUP(E198,'Flow Data'!D$6:D$737,'Flow Data'!H$6:H$737) -> 0.5405405405 | G198: =((D198/100)*1000*E198*28.3168)*60*60*24 -> 929697177600
A199: 2001-01-03 | B199: 31616 | D199: 420 | E199: =LOOKUP(A199,'Flow Data'!A$6:A$2928,'Flow Data'!B$6:B$2928) -> 100 | F199: =LOOKUP(E199,'Flow Data'!D$6:D$737,'Flow Data'!H$6:H$737) -> 0.5405405405 | G199: =((D199/100)*1000*E199*28.3168)*60*60*24 -> 1027560038400
A200: 2001-01-03 | B200: 31616 | D200: 400 | E200: =LOOKUP(A200,'Flow Data'!A$6:A$2928,'Flow Data'!B$6:B$2928) -> 100 | F200: =LOOKUP(E200,'Flow Data'!D$6:D$737,'Flow Data'!H$6:H$737) -> 0.5405405405 | G200: =((D200/100)*1000*E200*28.3168)*60*60*24 -> 978628608000
A201: 2001-01-03 | B201: 31616 | D201: 90 | E201: =LOOKUP(A201,'Flow Data'!A$6:A$2928,'Flow Data'!B$6:B$2928) -> 100 | F201: =LOOKUP(E201,'Flow Data'!D$6:D$737,'Flow Data'!H$6:H$737) -> 0.5405405405 | G201: =((D201/100)*1000*E201*28.3168)*60*60*24 -> 220191436800
... 206 more rows

Sheet E. Coli
A2: TRACS | E2: USGS Flow (cfs) | F2: Calculated Values
A3: Date | B3: Storet Code | C3: Qualifier | D3: Value (CFU/100mL) | F3: Probability of Flow | G3: E. Coli Load (CFU/day)
A4: 2002-11-19 | B4: 31699 | D4: 52 | E4: =LOOKUP(A4,'Flow Data'!A$6:A$2928,'Flow Data'!B$6:B$2928) -> 2010 | F4: =LOOKUP(E4,'Flow Data'!D$6:D$737,'Flow Data'!H$6:H$737) -> 0.01539514198 | G4: =((D4/100)*1000*E4*28.3168)*60*60*24 -> 2557156552704
A5: 2002-11-19 | B5: 31699 | D5: 20 | E5: =LOOKUP(A5,'Flow Data'!A$6:A$2928,'Flow Data'!B$6:B$2928) -> 2010 | F5: =LOOKUP(E5,'Flow Data'!D$6:D$737,'Flow Data'!H$6:H$737) -> 0.01539514198 | G5: =((D5/100)*1000*E5*28.3168)*60*60*24 -> 983521751040
A6: 2002-11-19 | B6: 31699 | C6: < | D6: 10 | E6: =LOOKUP(A6,'Flow Data'!A$6:A$2928,'Flow Data'!B$6:B$2928) -> 2010 | F6: =LOOKUP(E6,'Flow Data'!D$6:D$737,'Flow Data'!H$6:H$737) -> 0.01539514198 | G6: =((D6/100)*1000*E6*28.3168)*60*60*24 -> 491760875520
A7: 2002-11-19 | B7: 31699 | C7: < | D7: 10 | E7: =LOOKUP(A7,'Flow Data'!A$6:A$2928,'Flow Data'!B$6:B$2928) -> 2010 | F7: =LOOKUP(E7,'Flow Data'!D$6:D$737,'Flow Data'!H$6:H$737) -> 0.01539514198 | G7: =((D7/100)*1000*E7*28.3168)*60*60*24 -> 491760875520
A8: 2002-11-12 | B8: 31699 | D8: 160 | E8: =LOOKUP(A8,'Flow Data'!A$6:A$2928,'Flow Data'!B$6:B$2928) -> 1980 | F8: =LOOKUP(E8,'Flow Data'!D$6:D$737,'Flow Data'!H$6:H$737) -> 0.01984262744 | G8: =((D8/100)*1000*E8*28.3168)*60*60*24 -> 7750738575360
A9: 2002-11-12 | B9: 31699 | D9: 52 | E9: =LOOKUP(A9,'Flow Data'!A$6:A$2928,'Flow Data'!B$6:B$2928) -> 1980 | F9: =LOOKUP(E9,'Flow Data'!D$6:D$737,'Flow Data'!H$6:H$737) -> 0.01984262744 | G9: =((D9/100)*1000*E9*28.3168)*60*60*24 -> 2.518990037e+12
A10: 2002-11-12 | B10: 31699 | D10: 240 | E10: =LOOKUP(A10,'Flow Data'!A$6:A$2928,'Flow Data'!B$6:B$2928) -> 1980 | F10: =LOOKUP(E10,'Flow Data'!D$6:D$737,'Flow Data'!H$6:H$737) -> 0.01984262744 | G10: =((D10/100)*1000*E10*28.3168)*60*60*24 -> 11626107863040
A11: 2002-11-12 | B11: 31699 | D11: 140 | E11: =LOOKUP(A11,'Flow Data'!A$6:A$2928,'Flow Data'!B$6:B$2928) -> 1980 | F11: =LOOKUP(E11,'Flow Data'!D$6:D$737,'Flow Data'!H$6:H$737) -> 0.01984262744 | G11: =((D11/100)*1000*E11*28.3168)*60*60*24 -> 6.781896253e+12
A12: 2002-11-12 | B12: 31699 | D12: 410 | E12: =LOOKUP(A12,'Flow Data'!A$6:A$2928,'Flow Data'!B$6:B$2928) -> 1980 | F12: =LOOKUP(E12,'Flow Data'!D$6:D$737,'Flow Data'!H$6:H$737) -> 0.01984262744 | G12: =((D12/100)*1000*E12*28.3168)*60*60*24 -> 19861267599360
A13: 2004-05-06 | B13: 31699 | D13: 98 | E13: =LOOKUP(A13,'Flow Data'!A$6:A$2928,'Flow Data'!B$6:B$2928) -> 1860 | F13: =LOOKUP(E13,'Flow Data'!D$6:D$737,'Flow Data'!H$6:H$737) -> 0.03557988368 | G13: =((D13/100)*1000*E13*28.3168)*60*60*24 -> 4459610566656
A14: 2004-05-06 | B14: 31699 | D14: 510 | E14: =LOOKUP(A14,'Flow Data'!A$6:A$2928,'Flow Data'!B$6:B$2928) -> 1860 | F14: =LOOKUP(E14,'Flow Data'!D$6:D$737,'Flow Data'!H$6:H$737) -> 0.03557988368 | G14: =((D14/100)*1000*E14*28.3168)*60*60*24 -> 23208177438720
A15: 2004-05-06 | B15: 31699 | D15: 110 | E15: =LOOKUP(A15,'Flow Data'!A$6:A$2928,'Flow Data'!B$6:B$2928) -> 1860 | F15: =LOOKUP(E15,'Flow Data'!D$6:D$737,'Flow Data'!H$6:H$737) -> 0.03557988368 | G15: =((D15/100)*1000*E15*28.3168)*60*60*24 -> 5.00568533e+12
A16: 2004-05-06 | B16: 31699 | D16: 100 | E16: =LOOKUP(A16,'Flow Data'!A$6:A$2928,'Flow Data'!B$6:B$2928) -> 1860 | F16: =LOOKUP(E16,'Flow Data'!D$6:D$737,'Flow Data'!H$6:H$737) -> 0.03557988368 | G16: =((D16/100)*1000*E16*28.3168)*60*60*24 -> 4550623027200
A17: 2004-07-13 | B17: 31699 | D17: 780 | E17: =LOOKUP(A17,'Flow Data'!A$6:A$2928,'Flow Data'!B$6:B$2928) -> 1850 | F17: =LOOKUP(E17,'Flow Data'!D$6:D$737,'Flow Data'!H$6:H$737) -> 0.03729045501 | G17: =((D17/100)*1000*E17*28.3168)*60*60*24 -> 35304027033600
A18: 2004-07-13 | B18: 31699 | D18: 41 | E18: =LOOKUP(A18,'Flow Data'!A$6:A$2928,'Flow Data'!B$6:B$2928) -> 1850 | F18: =LOOKUP(E18,'Flow Data'!D$6:D$737,'Flow Data'!H$6:H$737) -> 0.03729045501 | G18: =((D18/100)*1000*E18*28.3168)*60*60*24 -> 1855724497920
A19: 2004-07-13 | B19: 31699 | D19: 63 | E19: =LOOKUP(A19,'Flow Data'!A$6:A$2928,'Flow Data'!B$6:B$2928) -> 1850 | F19: =LOOKUP(E19,'Flow Data'!D$6:D$737,'Flow Data'!H$6:H$737) -> 0.03729045501 | G19: =((D19/100)*1000*E19*28.3168)*60*60*24 -> 2.851479107e+12
A20: 2004-07-13 | B20: 31699 | D20: 20 | E20: =LOOKUP(A20,'Flow Data'!A$6:A$2928,'Flow Data'!B$6:B$2928) -> 1850 | F20: =LOOKUP(E20,'Flow Data'!D$6:D$737,'Flow Data'!H$6:H$737) -> 0.03729045501 | G20: =((D20/100)*1000*E20*28.3168)*60*60*24 -> 905231462400
A21: 2001-06-13 | B21: 31699 | D21: 1246 | E21: =LOOKUP(A21,'Flow Data'!A$6:A$2928,'Flow Data'!B$6:B$2928) -> 1630 | F21: =LOOKUP(E21,'Flow Data'!D$6:D$737,'Flow Data'!H$6:H$737) -> 0.07184399589 | G21: =((D21/100)*1000*E21*28.3168)*60*60*24 -> 49689378256896
A22: 2003-10-13 | B22: 31699 | D22: 490 | E22: =LOOKUP(A22,'Flow Data'!A$6:A$2928,'Flow Data'!B$6:B$2928) -> 1500 | F22: =LOOKUP(E22,'Flow Data'!D$6:D$737,'Flow Data'!H$6:H$737) -> 0.089976052 | G22: =((D22/100)*1000*E22*28.3168)*60*60*24 -> 17982300672000
A23: 2003-10-13 | B23: 31699 | D23: 620 | E23: =LOOKUP(A23,'Flow Data'!A$6:A$2928,'Flow Data'!B$6:B$2928) -> 1500 | F23: =LOOKUP(E23,'Flow Data'!D$6:D$737,'Flow Data'!H$6:H$737) -> 0.089976052 | G23: =((D23/100)*1000*E23*28.3168)*60*60*24 -> 22753115136000
A24: 2003-10-13 | B24: 31699 | D24: 580 | E24: =LOOKUP(A24,'Flow Data'!A$6:A$2928,'Flow Data'!B$6:B$2928) -> 1500 | F24: =LOOKUP(E24,'Flow Data'!D$6:D$737,'Flow Data'!H$6:H$737) -> 0.089976052 | G24: =((D24/100)*1000*E24*28.3168)*60*60*24 -> 21285172224000
A25: 2003-10-13 | B25: 31699 | D25: 720 | E25: =LOOKUP(A25,'Flow Data'!A$6:A$2928,'Flow Data'!B$6:B$2928) -> 1500 | F25: =LOOKUP(E25,'Flow Data'!D$6:D$737,'Flow Data'!H$6:H$737) -> 0.089976052 | G25: =((D25/100)*1000*E25*28.3168)*60*60*24 -> 26422972416000
A26: 2003-10-13 | B26: 31699 | D26: 670 | E26: =LOOKUP(A26,'Flow Data'!A$6:A$2928,'Flow Data'!B$6:B$2928) -> 1500 | F26: =LOOKUP(E26,'Flow Data'!D$6:D$737,'Flow Data'!H$6:H$737) -> 0.089976052 | G26: =((D26/100)*1000*E26*28.3168)*60*60*24 -> 24588043776000
A27: 2003-10-14 | B27: 31699 | D27: 310 | E27: =LOOKUP(A27,'Flow Data'!A$6:A$2928,'Flow Data'!B$6:B$2928) -> 1450 | F27: =LOOKUP(E27,'Flow Data'!D$6:D$737,'Flow Data'!H$6:H$737) -> 0.09510776599 | G27: =((D27/100)*1000*E27*28.3168)*60*60*24 -> 10997338982400
A28: 2003-10-14 | B28: 31699 | D28: 320 | E28: =LOOKUP(A28,'Flow Data'!A$6:A$2928,'Flow Data'!B$6:B$2928) -> 1450 | F28: =LOOKUP(E28,'Flow Data'!D$6:D$737,'Flow Data'!H$6:H$737) -> 0.09510776599 | G28: =((D28/100)*1000*E28*28.3168)*60*60*24 -> 11352091852800
A29: 2003-10-14 | B29: 31699 | D29: 1100 | E29: =LOOKUP(A29,'Flow Data'!A$6:A$2928,'Flow Data'!B$6:B$2928) -> 1450 | F29: =LOOKUP(E29,'Flow Data'!D$6:D$737,'Flow Data'!H$6:H$737) -> 0.09510776599 | G29: =((D29/100)*1000*E29*28.3168)*60*60*24 -> 39022815744000
A30: 2003-10-14 | B30: 31699 | D30: 210 | E30: =LOOKUP(A30,'Flow Data'!A$6:A$2928,'Flow Data'!B$6:B$2928) -> 1450 | F30: =LOOKUP(E30,'Flow Data'!D$6:D$737,'Flow Data'!H$6:H$737) -> 0.09510776599 | G30: =((D30/100)*1000*E30*28.3168)*60*60*24 -> 7449810278400
A31: 2004-04-13 | B31: 31699 | D31: 1800 | E31: =LOOKUP(A31,'Flow Data'!A$6:A$2928,'Flow Data'!B$6:B$2928) -> 1360 | F31: =LOOKUP(E31,'Flow Data'!D$6:D$737,'Flow Data'!H$6:H$737) -> 0.1019500513 | G31: =((D31/100)*1000*E31*28.3168)*60*60*24 -> 59892070809600
A32: 2004-04-13 | B32: 31699 | D32: 4300 | E32: =LOOKUP(A32,'Flow Data'!A$6:A$2928,'Flow Data'!B$6:B$2928) -> 1360 | F32: =LOOKUP(E32,'Flow Data'!D$6:D$737,'Flow Data'!H$6:H$737) -> 0.1019500513 | G32: =((D32/100)*1000*E32*28.3168)*60*60*24 -> 143075502489600
A33: 2004-04-13 | B33: 31699 | D33: 2400 | E33: =LOOKUP(A33,'Flow Data'!A$6:A$2928,'Flow Data'!B$6:B$2928) -> 1360 | F33: =LOOKUP(E33,'Flow Data'!D$6:D$737,'Flow Data'!H$6:H$737) -> 0.1019500513 | G33: =((D33/100)*1000*E33*28.3168)*60*60*24 -> 79856094412800
A34: 2004-04-13 | B34: 31699 | D34: 3900 | E34: =LOOKUP(A34,'Flow Data'!A$6:A$2928,'Flow Data'!B$6:B$2928) -> 1360 | F34: =LOOKUP(E34,'Flow Data'!D$6:D$737,'Flow Data'!H$6:H$737) -> 0.1019500513 | G34: =((D34/100)*1000*E34*28.3168)*60*60*24 -> 129766153420800
A35: 2004-05-04 | B35: 31699 | D35: 1200 | E35: =LOOKUP(A35,'Flow Data'!A$6:A$2928,'Flow Data'!B$6:B$2928) -> 1260 | F35: =LOOKUP(E35,'Flow Data'!D$6:D$737,'Flow Data'!H$6:H$737) -> 0.1108450222 | G35: =((D35/100)*1000*E35*28.3168)*60*60*24 -> 36992161382400
A36: 2004-05-04 | B36: 31699 | D36: 2100 | E36: =LOOKUP(A36,'Flow Data'!A$6:A$2928,'Flow Data'!B$6:B$2928) -> 1260 | F36: =LOOKUP(E36,'Flow Data'!D$6:D$737,'Flow Data'!H$6:H$737) -> 0.1108450222 | G36: =((D36/100)*1000*E36*28.3168)*60*60*24 -> 64736282419200
A37: 2004-05-04 | B37: 31699 | D37: 1800 | E37: =LOOKUP(A37,'Flow Data'!A$6:A$2928,'Flow Data'!B$6:B$2928) -> 1260 | F37: =LOOKUP(E37,'Flow Data'!D$6:D$737,'Flow Data'!H$6:H$737) -> 0.1108450222 | G37: =((D37/100)*1000*E37*28.3168)*60*60*24 -> 55488242073600
A38: 2004-05-04 | B38: 31699 | D38: 1600 | E38: =LOOKUP(A38,'Flow Data'!A$6:A$2928,'Flow Data'!B$6:B$2928) -> 1260 | F38: =LOOKUP(E38,'Flow Data'!D$6:D$737,'Flow Data'!H$6:H$737) -> 0.1108450222 | G38: =((D38/100)*1000*E38*28.3168)*60*60*24 -> 49322881843200
A39: 2004-05-04 | B39: 31699 | D39: 1600 | E39: =LOOKUP(A39,'Flow Data'!A$6:A$2928,'Flow Data'!B$6:B$2928) -> 1260 | F39: =LOOKUP(E39,'Flow Data'!D$6:D$737,'Flow Data'!H$6:H$737) -> 0.1108450222 | G39: =((D39/100)*1000*E39*28.3168)*60*60*24 -> 49322881843200
A40: 2001-06-18 | B40: 31699 | D40: 384 | E40: =LOOKUP(A40,'Flow Data'!A$6:A$2928,'Flow Data'!B$6:B$2928) -> 1170 | F40: =LOOKUP(E40,'Flow Data'!D$6:D$737,'Flow Data'!H$6:H$737) -> 0.1235032501 | G40: =((D40/100)*1000*E40*28.3168)*60*60*24 -> 1.099195653e+13
A41: 2001-12-04 | B41: 31699 | D41: 3900 | E41: =LOOKUP(A41,'Flow Data'!A$6:A$2928,'Flow Data'!B$6:B$2928) -> 1160 | F41: =LOOKUP(E41,'Flow Data'!D$6:D$737,'Flow Data'!H$6:H$737) -> 0.1255559357 | G41: =((D41/100)*1000*E41*28.3168)*60*60*24 -> 110682895564800
A42: 2001-12-04 | B42: 31699 | D42: 4500 | E42: =LOOKUP(A42,'Flow Data'!A$6:A$2928,'Flow Data'!B$6:B$2928) -> 1160 | F42: =LOOKUP(E42,'Flow Data'!D$6:D$737,'Flow Data'!H$6:H$737) -> 0.1255559357 | G42: =((D42/100)*1000*E42*28.3168)*60*60*24 -> 127711033344000
A43: 2001-12-04 | B43: 31699 | D43: 3300 | E43: =LOOKUP(A43,'Flow Data'!A$6:A$2928,'Flow Data'!B$6:B$2928) -> 1160 | F43: =LOOKUP(E43,'Flow Data'!D$6:D$737,'Flow Data'!H$6:H$737) -> 0.1255559357 | G43: =((D43/100)*1000*E43*28.3168)*60*60*24 -> 93654757785600
A44: 2001-12-04 | B44: 31699 | D44: 3300 | E44: =LOOKUP(A44,'Flow Data'!A$6:A$2928,'Flow Data'!B$6:B$2928) -> 1160 | F44: =LOOKUP(E44,'Flow Data'!D$6:D$737,'Flow Data'!H$6:H$737) -> 0.1255559357 | G44: =((D44/100)*1000*E44*28.3168)*60*60*24 -> 93654757785600
A45: 2001-12-04 | B45: 31699 | D45: 4100 | E45: =LOOKUP(A45,'Flow Data'!A$6:A$2928,'Flow Data'!B$6:B$2928) -> 1160 | F45: =LOOKUP(E45,'Flow Data'!D$6:D$737,'Flow Data'!H$6:H$737) -> 0.1255559357 | G45: =((D45/100)*1000*E45*28.3168)*60*60*24 -> 116358941491200
A46: 2001-12-04 | B46: 31699 | D46: 5700 | E46: =LOOKUP(A46,'Flow Data'!A$6:A$2928,'Flow Data'!B$6:B$2928) -> 1160 | F46: =LOOKUP(E46,'Flow Data'!D$6:D$737,'Flow Data'!H$6:H$737) -> 0.1255559357 | G46: =((D46/100)*1000*E46*28.3168)*60*60*24 -> 161767308902400
A47: 2001-12-19 | B47: 31699 | D47: 2800 | E47: =LOOKUP(A47,'Flow Data'!A$6:A$2928,'Flow Data'!B$6:B$2928) -> 1070 | F47: =LOOKUP(E47,'Flow Data'!D$6:D$737,'Flow Data'!H$6:H$737) -> 0.1378720493 | G47: =((D47/100)*1000*E47*28.3168)*60*60*24 -> 73299282739200
A48: 2001-12-19 | B48: 31699 | D48: 5200 | E48: =LOOKUP(A48,'Flow Data'!A$6:A$2928,'Flow Data'!B$6:B$2928) -> 1070 | F48: =LOOKUP(E48,'Flow Data'!D$6:D$737,'Flow Data'!H$6:H$737) -> 0.1378720493 | G48: =((D48/100)*1000*E48*28.3168)*60*60*24 -> 136127239372800
A49: 2001-12-19 | B49: 31699 | D49: 930 | E49: =LOOKUP(A49,'Flow Data'!A$6:A$2928,'Flow Data'!B$6:B$2928) -> 1070 | F49: =LOOKUP(E49,'Flow Data'!D$6:D$737,'Flow Data'!H$6:H$737) -> 0.1378720493 | G49: =((D49/100)*1000*E49*28.3168)*60*60*24 -> 24345833195520
A50: 2001-12-19 | B50: 31699 | D50: 810 | E50: =LOOKUP(A50,'Flow Data'!A$6:A$2928,'Flow Data'!B$6:B$2928) -> 1070 | F50: =LOOKUP(E50,'Flow Data'!D$6:D$737,'Flow Data'!H$6:H$737) -> 0.1378720493 | G50: =((D50/100)*1000*E50*28.3168)*60*60*24 -> 21204435363840
A51: 2001-12-19 | B51: 31699 | D51: 190 | E51: =LOOKUP(A51,'Flow Data'!A$6:A$2928,'Flow Data'!B$6:B$2928) -> 1070 | F51: =LOOKUP(E51,'Flow Data'!D$6:D$737,'Flow Data'!H$6:H$737) -> 0.1378720493 | G51: =((D51/100)*1000*E51*28.3168)*60*60*24 -> 4973879900160
A52: 2002-12-17 | B52: 31699 | D52: 790 | E52: =LOOKUP(A52,'Flow Data'!A$6:A$2928,'Flow Data'!B$6:B$2928) -> 1000 | F52: =LOOKUP(E52,'Flow Data'!D$6:D$737,'Flow Data'!H$6:H$737) -> 0.1450564489 | G52: =((D52/100)*1000*E52*28.3168)*60*60*24 -> 19327915008000
A53: 2002-12-17 | B53: 31699 | D53: 840 | E53: =LOOKUP(A53,'Flow Data'!A$6:A$2928,'Flow Data'!B$6:B$2928) -> 1000 | F53: =LOOKUP(E53,'Flow Data'!D$6:D$737,'Flow Data'!H$6:H$737) -> 0.1450564489 | G53: =((D53/100)*1000*E53*28.3168)*60*60*24 -> 20551200768000
A54: 2002-12-17 | B54: 31699 | D54: 990 | E54: =LOOKUP(A54,'Flow Data'!A$6:A$2928,'Flow Data'!B$6:B$2928) -> 1000 | F54: =LOOKUP(E54,'Flow Data'!D$6:D$737,'Flow Data'!H$6:H$737) -> 0.1450564489 | G54: =((D54/100)*1000*E54*28.3168)*60*60*24 -> 24221058048000
A55: 2002-12-17 | B55: 31699 | D55: 1000 | E55: =LOOKUP(A55,'Flow Data'!A$6:A$2928,'Flow Data'!B$6:B$2928) -> 1000 | F55: =LOOKUP(E55,'Flow Data'!D$6:D$737,'Flow Data'!H$6:H$737) -> 0.1450564489 | G55: =((D55/100)*1000*E55*28.3168)*60*60*24 -> 24465715200000
A56: 2002-12-17 | B56: 31699 | D56: 1100 | E56: =LOOKUP(A56,'Flow Data'!A$6:A$2928,'Flow Data'!B$6:B$2928) -> 1000 | F56: =LOOKUP(E56,'Flow Data'!D$6:D$737,'Flow Data'!H$6:H$737) -> 0.1450564489 | G56: =((D56/100)*1000*E56*28.3168)*60*60*24 -> 26912286720000
A57: 2000-11-14 | B57: 31699 | D57: 17329 | E57: =LOOKUP(A57,'Flow Data'!A$6:A$2928,'Flow Data'!B$6:B$2928) -> 964 | F57: =LOOKUP(E57,'Flow Data'!D$6:D$737,'Flow Data'!H$6:H$737) -> 0.1515566199 | G57: =((D57/100)*1000*E57*28.3168)*60*60*24 -> 4.087035891e+14
A58: 2000-11-14 | B58: 31699 | D58: 24192 | E58: =LOOKUP(A58,'Flow Data'!A$6:A$2928,'Flow Data'!B$6:B$2928) -> 964 | F58: =LOOKUP(E58,'Flow Data'!D$6:D$737,'Flow Data'!H$6:H$737) -> 0.1515566199 | G58: =((D58/100)*1000*E58*28.3168)*60*60*24 -> 5.705670972e+14
A59: 2004-02-02 | B59: 31699 | D59: 4000 | E59: =LOOKUP(A59,'Flow Data'!A$6:A$2928,'Flow Data'!B$6:B$2928) -> 922 | F59: =LOOKUP(E59,'Flow Data'!D$6:D$737,'Flow Data'!H$6:H$737) -> 0.159425248 | G59: =((D59/100)*1000*E59*28.3168)*60*60*24 -> 90229557657600
A60: 2004-02-02 | B60: 31699 | D60: 6200 | E60: =LOOKUP(A60,'Flow Data'!A$6:A$2928,'Flow Data'!B$6:B$2928) -> 922 | F60: =LOOKUP(E60,'Flow Data'!D$6:D$737,'Flow Data'!H$6:H$737) -> 0.159425248 | G60: =((D60/100)*1000*E60*28.3168)*60*60*24 -> 139855814369280
A61: 2004-02-02 | B61: 31699 | D61: 10000 | E61: =LOOKUP(A61,'Flow Data'!A$6:A$2928,'Flow Data'!B$6:B$2928) -> 922 | F61: =LOOKUP(E61,'Flow Data'!D$6:D$737,'Flow Data'!H$6:H$737) -> 0.159425248 | G61: =((D61/100)*1000*E61*28.3168)*60*60*24 -> 225573894144000
A62: 2004-02-02 | B62: 31699 | D62: 9600 | E62: =LOOKUP(A62,'Flow Data'!A$6:A$2928,'Flow Data'!B$6:B$2928) -> 922 | F62: =LOOKUP(E62,'Flow Data'!D$6:D$737,'Flow Data'!H$6:H$737) -> 0.159425248 | G62: =((D62/100)*1000*E62*28.3168)*60*60*24 -> 216550938378240
A63: 2004-02-02 | B63: 31699 | D63: 5900 | E63: =LOOKUP(A63,'Flow Data'!A$6:A$2928,'Flow Data'!B$6:B$2928) -> 922 | F63: =LOOKUP(E63,'Flow Data'!D$6:D$737,'Flow Data'!H$6:H$737) -> 0.159425248 | G63: =((D63/100)*1000*E63*28.3168)*60*60*24 -> 133088597544960
A64: 2002-09-11 | B64: 31699 | D64: 400 | E64: =LOOKUP(A64,'Flow Data'!A$6:A$2928,'Flow Data'!B$6:B$2928) -> 875 | F64: =LOOKUP(E64,'Flow Data'!D$6:D$737,'Flow Data'!H$6:H$737) -> 0.1676359904 | G64: =((D64/100)*1000*E64*28.3168)*60*60*24 -> 8563000320000
A65: 2002-09-11 | B65: 31699 | D65: 640 | E65: =LOOKUP(A65,'Flow Data'!A$6:A$2928,'Flow Data'!B$6:B$2928) -> 875 | F65: =LOOKUP(E65,'Flow Data'!D$6:D$737,'Flow Data'!H$6:H$737) -> 0.1676359904 | G65: =((D65/100)*1000*E65*28.3168)*60*60*24 -> 13700800512000
A66: 2002-09-11 | B66: 31699 | D66: 440 | E66: =LOOKUP(A66,'Flow Data'!A$6:A$2928,'Flow Data'!B$6:B$2928) -> 875 | F66: =LOOKUP(E66,'Flow Data'!D$6:D$737,'Flow Data'!H$6:H$737) -> 0.1676359904 | G66: =((D66/100)*1000*E66*28.3168)*60*60*24 -> 9419300352000
A67: 2002-09-11 | B67: 31699 | D67: 130 | E67: =LOOKUP(A67,'Flow Data'!A$6:A$2928,'Flow Data'!B$6:B$2928) -> 875 | F67: =LOOKUP(E67,'Flow Data'!D$6:D$737,'Flow Data'!H$6:H$737) -> 0.1676359904 | G67: =((D67/100)*1000*E67*28.3168)*60*60*24 -> 2782975104000
A68: 2002-08-15 | B68: 31699 | D68: 46000 | E68: =LOOKUP(A68,'Flow Data'!A$6:A$2928,'Flow Data'!B$6:B$2928) -> 872 | F68: =LOOKUP(E68,'Flow Data'!D$6:D$737,'Flow Data'!H$6:H$737) -> 0.1679781047 | G68: =((D68/100)*1000*E68*28.3168)*60*60*24 -> 981368768102400
A69: 2002-08-15 | B69: 31699 | D69: 39000 | E69: =LOOKUP(A69,'Flow Data'!A$6:A$2928,'Flow Data'!B$6:B$2928) -> 872 | F69: =LOOKUP(E69,'Flow Data'!D$6:D$737,'Flow Data'!H$6:H$737) -> 0.1679781047 | G69: =((D69/100)*1000*E69*28.3168)*60*60*24 -> 832030042521600
A70: 2002-08-15 | B70: 31699 | D70: 44000 | E70: =LOOKUP(A70,'Flow Data'!A$6:A$2928,'Flow Data'!B$6:B$2928) -> 872 | F70: =LOOKUP(E70,'Flow Data'!D$6:D$737,'Flow Data'!H$6:H$737) -> 0.1679781047 | G70: =((D70/100)*1000*E70*28.3168)*60*60*24 -> 938700560793600
A71: 2002-08-15 | B71: 31699 | D71: 24000 | E71: =LOOKUP(A71,'Flow Data'!A$6:A$2928,'Flow Data'!B$6:B$2928) -> 872 | F71: =LOOKUP(E71,'Flow Data'!D$6:D$737,'Flow Data'!H$6:H$737) -> 0.1679781047 | G71: =((D71/100)*1000*E71*28.3168)*60*60*24 -> 512018487705600
A72: 2002-12-10 | B72: 31699 | D72: 4000 | E72: =LOOKUP(A72,'Flow Data'!A$6:A$2928,'Flow Data'!B$6:B$2928) -> 850 | F72: =LOOKUP(E72,'Flow Data'!D$6:D$737,'Flow Data'!H$6:H$737) -> 0.1703729046 | G72: =((D72/100)*1000*E72*28.3168)*60*60*24 -> 83183431680000
A73: 2002-12-10 | B73: 31699 | D73: 1200 | E73: =LOOKUP(A73,'Flow Data'!A$6:A$2928,'Flow Data'!B$6:B$2928) -> 850 | F73: =LOOKUP(E73,'Flow Data'!D$6:D$737,'Flow Data'!H$6:H$737) -> 0.1703729046 | G73: =((D73/100)*1000*E73*28.3168)*60*60*24 -> 24955029504000
A74: 2002-12-10 | B74: 31699 | D74: 1000 | E74: =LOOKUP(A74,'Flow Data'!A$6:A$2928,'Flow Data'!B$6:B$2928) -> 850 | F74: =LOOKUP(E74,'Flow Data'!D$6:D$737,'Flow Data'!H$6:H$737) -> 0.1703729046 | G74: =((D74/100)*1000*E74*28.3168)*60*60*24 -> 20795857920000
A75: 2002-12-10 | B75: 31699 | D75: 910 | E75: =LOOKUP(A75,'Flow Data'!A$6:A$2928,'Flow Data'!B$6:B$2928) -> 850 | F75: =LOOKUP(E75,'Flow Data'!D$6:D$737,'Flow Data'!H$6:H$737) -> 0.1703729046 | G75: =((D75/100)*1000*E75*28.3168)*60*60*24 -> 18924230707200
A76: 2004-02-12 | B76: 31699 | D76: 5800 | E76: =LOOKUP(A76,'Flow Data'!A$6:A$2928,'Flow Data'!B$6:B$2928) -> 849 | F76: =LOOKUP(E76,'Flow Data'!D$6:D$737,'Flow Data'!H$6:H$737) -> 0.1717413616 | G76: =((D76/100)*1000*E76*28.3168)*60*60*24 -> 1.204740748e+14
A77: 2004-02-12 | B77: 31699 | D77: 2100 | E77: =LOOKUP(A77,'Flow Data'!A$6:A$2928,'Flow Data'!B$6:B$2928) -> 849 | F77: =LOOKUP(E77,'Flow Data'!D$6:D$737,'Flow Data'!H$6:H$737) -> 0.1717413616 | G77: =((D77/100)*1000*E77*28.3168)*60*60*24 -> 43619923630080
A78: 2004-05-11 | B78: 31699 | D78: 3900 | E78: =LOOKUP(A78,'Flow Data'!A$6:A$2928,'Flow Data'!B$6:B$2928) -> 792 | F78: =LOOKUP(E78,'Flow Data'!D$6:D$737,'Flow Data'!H$6:H$737) -> 0.1813205611 | G78: =((D78/100)*1000*E78*28.3168)*60*60*24 -> 75569701109760
A79: 2004-05-11 | B79: 31699 | D79: 17000 | E79: =LOOKUP(A79,'Flow Data'!A$6:A$2928,'Flow Data'!B$6:B$2928) -> 792 | F79: =LOOKUP(E79,'Flow Data'!D$6:D$737,'Flow Data'!H$6:H$737) -> 0.1813205611 | G79: =((D79/100)*1000*E79*28.3168)*60*60*24 -> 329406389452800
A80: 2003-12-02 | B80: 31699 | D80: 230 | E80: =LOOKUP(A80,'Flow Data'!A$6:A$2928,'Flow Data'!B$6:B$2928) -> 750 | F80: =LOOKUP(E80,'Flow Data'!D$6:D$737,'Flow Data'!H$6:H$737) -> 0.1881628464 | G80: =((D80/100)*1000*E80*28.3168)*60*60*24 -> 4220335872000
A81: 2003-12-02 | B81: 31699 | D81: 290 | E81: =LOOKUP(A81,'Flow Data'!A$6:A$2928,'Flow Data'!B$6:B$2928) -> 750 | F81: =LOOKUP(E81,'Flow Data'!D$6:D$737,'Flow Data'!H$6:H$737) -> 0.1881628464 | G81: =((D81/100)*1000*E81*28.3168)*60*60*24 -> 5321293056000
A82: 2003-12-02 | B82: 31699 | D82: 120 | E82: =LOOKUP(A82,'Flow Data'!A$6:A$2928,'Flow Data'!B$6:B$2928) -> 750 | F82: =LOOKUP(E82,'Flow Data'!D$6:D$737,'Flow Data'!H$6:H$737) -> 0.1881628464 | G82: =((D82/100)*1000*E82*28.3168)*60*60*24 -> 2201914368000
A83: 2003-12-02 | B83: 31699 | D83: 130 | E83: =LOOKUP(A83,'Flow Data'!A$6:A$2928,'Flow Data'!B$6:B$2928) -> 750 | F83: =LOOKUP(E83,'Flow Data'!D$6:D$737,'Flow Data'!H$6:H$737) -> 0.1881628464 | G83: =((D83/100)*1000*E83*28.3168)*60*60*24 -> 2385407232000
A84: 2003-12-02 | B84: 31699 | D84: 360 | E84: =LOOKUP(A84,'Flow Data'!A$6:A$2928,'Flow Data'!B$6:B$2928) -> 750 | F84: =LOOKUP(E84,'Flow Data'!D$6:D$737,'Flow Data'!H$6:H$737) -> 0.1881628464 | G84: =((D84/100)*1000*E84*28.3168)*60*60*24 -> 6605743104000
A85: 2004-07-01 | B85: 31699 | D85: 5900 | E85: =LOOKUP(A85,'Flow Data'!A$6:A$2928,'Flow Data'!B$6:B$2928) -> 743 | F85: =LOOKUP(E85,'Flow Data'!D$6:D$737,'Flow Data'!H$6:H$737) -> 0.1898734177 | G85: =((D85/100)*1000*E85*28.3168)*60*60*24 -> 1.072503557e+14
A86: 2004-07-01 | B86: 31699 | D86: 10000 | E86: =LOOKUP(A86,'Flow Data'!A$6:A$2928,'Flow Data'!B$6:B$2928) -> 743 | F86: =LOOKUP(E86,'Flow Data'!D$6:D$737,'Flow Data'!H$6:H$737) -> 0.1898734177 | G86: =((D86/100)*1000*E86*28.3168)*60*60*24 -> 181780263936000
A87: 2004-07-01 | B87: 31699 | D87: 22000 | E87: =LOOKUP(A87,'Flow Data'!A$6:A$2928,'Flow Data'!B$6:B$2928) -> 743 | F87: =LOOKUP(E87,'Flow Data'!D$6:D$737,'Flow Data'!H$6:H$737) -> 0.1898734177 | G87: =((D87/100)*1000*E87*28.3168)*60*60*24 -> 399916580659200
A88: 2004-07-01 | B88: 31699 | D88: 25000 | E88: =LOOKUP(A88,'Flow Data'!A$6:A$2928,'Flow Data'!B$6:B$2928) -> 743 | F88: =LOOKUP(E88,'Flow Data'!D$6:D$737,'Flow Data'!H$6:H$737) -> 0.1898734177 | G88: =((D88/100)*1000*E88*28.3168)*60*60*24 -> 454450659840000
A89: 2004-07-01 | B89: 31699 | D89: 28000 | E89: =LOOKUP(A89,'Flow Data'!A$6:A$2928,'Flow Data'!B$6:B$2928) -> 743 | F89: =LOOKUP(E89,'Flow Data'!D$6:D$737,'Flow Data'!H$6:H$737) -> 0.1898734177 | G89: =((D89/100)*1000*E89*28.3168)*60*60*24 -> 508984739020800
A90: 2002-04-15 | B90: 31699 | D90: 1200 | E90: =LOOKUP(A90,'Flow Data'!A$6:A$2928,'Flow Data'!B$6:B$2928) -> 606 | F90: =LOOKUP(E90,'Flow Data'!D$6:D$737,'Flow Data'!H$6:H$737) -> 0.2179267875 | G90: =((D90/100)*1000*E90*28.3168)*60*60*24 -> 17791468093440
A91: 2002-04-15 | B91: 31699 | D91: 1500 | E91: =LOOKUP(A91,'Flow Data'!A$6:A$2928,'Flow Data'!B$6:B$2928) -> 606 | F91: =LOOKUP(E91,'Flow Data'!D$6:D$737,'Flow Data'!H$6:H$737) -> 0.2179267875 | G91: =((D91/100)*1000*E91*28.3168)*60*60*24 -> 22239335116800
A92: 2004-02-05 | B92: 31699 | D92: 1800 | E92: =LOOKUP(A92,'Flow Data'!A$6:A$2928,'Flow Data'!B$6:B$2928) -> 526 | F92: =LOOKUP(E92,'Flow Data'!D$6:D$737,'Flow Data'!H$6:H$737) -> 0.2357167294 | G92: =((D92/100)*1000*E92*28.3168)*60*60*24 -> 23164139151360
A93: 2004-02-05 | B93: 31699 | D93: 7500 | E93: =LOOKUP(A93,'Flow Data'!A$6:A$2928,'Flow Data'!B$6:B$2928) -> 526 | F93: =LOOKUP(E93,'Flow Data'!D$6:D$737,'Flow Data'!H$6:H$737) -> 0.2357167294 | G93: =((D93/100)*1000*E93*28.3168)*60*60*24 -> 96517246464000
A94: 2004-02-05 | B94: 31699 | D94: 1800 | E94: =LOOKUP(A94,'Flow Data'!A$6:A$2928,'Flow Data'!B$6:B$2928) -> 526 | F94: =LOOKUP(E94,'Flow Data'!D$6:D$737,'Flow Data'!H$6:H$737) -> 0.2357167294 | G94: =((D94/100)*1000*E94*28.3168)*60*60*24 -> 23164139151360
A95: 2004-02-05 | B95: 31699 | D95: 1700 | E95: =LOOKUP(A95,'Flow Data'!A$6:A$2928,'Flow Data'!B$6:B$2928) -> 526 | F95: =LOOKUP(E95,'Flow Data'!D$6:D$737,'Flow Data'!H$6:H$737) -> 0.2357167294 | G95: =((D95/100)*1000*E95*28.3168)*60*60*24 -> 21877242531840
A96: 2004-02-05 | B96: 31699 | D96: 4100 | E96: =LOOKUP(A96,'Flow Data'!A$6:A$2928,'Flow Data'!B$6:B$2928) -> 526 | F96: =LOOKUP(E96,'Flow Data'!D$6:D$737,'Flow Data'!H$6:H$737) -> 0.2357167294 | G96: =((D96/100)*1000*E96*28.3168)*60*60*24 -> 5.27627614e+13
A97: 2004-11-02 | B97: 31699 | D97: 8200 | E97: =LOOKUP(A97,'Flow Data'!A$6:A$2928,'Flow Data'!B$6:B$2928) -> 514 | F97: =LOOKUP(E97,'Flow Data'!D$6:D$737,'Flow Data'!H$6:H$737) -> 0.2387957578 | G97: =((D97/100)*1000*E97*28.3168)*60*60*24 -> 103118096424960
A98: 2004-11-02 | B98: 31699 | D98: 24000 | E98: =LOOKUP(A98,'Flow Data'!A$6:A$2928,'Flow Data'!B$6:B$2928) -> 514 | F98: =LOOKUP(E98,'Flow Data'!D$6:D$737,'Flow Data'!H$6:H$737) -> 0.2387957578 | G98: =((D98/100)*1000*E98*28.3168)*60*60*24 -> 301809062707200
A99: 2001-12-11 | B99: 31699 | D99: 8200 | E99: =LOOKUP(A99,'Flow Data'!A$6:A$2928,'Flow Data'!B$6:B$2928) -> 455 | F99: =LOOKUP(E99,'Flow Data'!D$6:D$737,'Flow Data'!H$6:H$737) -> 0.2586383852 | G99: =((D99/100)*1000*E99*28.3168)*60*60*24 -> 91281583411200
A100: 2003-09-04 | B100: 31699 | D100: 180 | E100: =LOOKUP(A100,'Flow Data'!A$6:A$2928,'Flow Data'!B$6:B$2928) -> 441 | F100: =LOOKUP(E100,'Flow Data'!D$6:D$737,'Flow Data'!H$6:H$737) -> 0.2654806705 | G100: =((D100/100)*1000*E100*28.3168)*60*60*24 -> 1942088472576
A101: 2003-09-04 | B101: 31699 | D101: 470 | E101: =LOOKUP(A101,'Flow Data'!A$6:A$2928,'Flow Data'!B$6:B$2928) -> 441 | F101: =LOOKUP(E101,'Flow Data'!D$6:D$737,'Flow Data'!H$6:H$737) -> 0.2654806705 | G101: =((D101/100)*1000*E101*28.3168)*60*60*24 -> 5071008789504
A102: 2003-09-04 | B102: 31699 | D102: 680 | E102: =LOOKUP(A102,'Flow Data'!A$6:A$2928,'Flow Data'!B$6:B$2928) -> 441 | F102: =LOOKUP(E102,'Flow Data'!D$6:D$737,'Flow Data'!H$6:H$737) -> 0.2654806705 | G102: =((D102/100)*1000*E102*28.3168)*60*60*24 -> 7.336778674e+12
A103: 2003-09-04 | B103: 31699 | D103: 2500 | E103: =LOOKUP(A103,'Flow Data'!A$6:A$2928,'Flow Data'!B$6:B$2928) -> 441 | F103: =LOOKUP(E103,'Flow Data'!D$6:D$737,'Flow Data'!H$6:H$737) -> 0.2654806705 | G103: =((D103/100)*1000*E103*28.3168)*60*60*24 -> 26973451008000
A104: 2001-07-30 | B104: 31699 | D104: 933 | E104: =LOOKUP(A104,'Flow Data'!A$6:A$2928,'Flow Data'!B$6:B$2928) -> 411 | F104: =LOOKUP(E104,'Flow Data'!D$6:D$737,'Flow Data'!H$6:H$737) -> 0.2754019843 | G104: =((D104/100)*1000*E104*28.3168)*60*60*24 -> 9.381696548e+12
A105: 2004-07-25 | B105: 31699 | D105: 91000 | E105: =LOOKUP(A105,'Flow Data'!A$6:A$2928,'Flow Data'!B$6:B$2928) -> 409 | F105: =LOOKUP(E105,'Flow Data'!D$6:D$737,'Flow Data'!H$6:H$737) -> 0.2777967841 | G105: =((D105/100)*1000*E105*28.3168)*60*60*24 -> 910589454028800
A106: 2004-07-25 | B106: 31699 | D106: 69000 | E106: =LOOKUP(A106,'Flow Data'!A$6:A$2928,'Flow Data'!B$6:B$2928) -> 409 | F106: =LOOKUP(E106,'Flow Data'!D$6:D$737,'Flow Data'!H$6:H$737) -> 0.2777967841 | G106: =((D106/100)*1000*E106*28.3168)*60*60*24 -> 690446948659200
A107: 2004-07-25 | B107: 31699 | D107: 53000 | E107: =LOOKUP(A107,'Flow Data'!A$6:A$2928,'Flow Data'!B$6:B$2928) -> 409 | F107: =LOOKUP(E107,'Flow Data'!D$6:D$737,'Flow Data'!H$6:H$737) -> 0.2777967841 | G107: =((D107/100)*1000*E107*28.3168)*60*60*24 -> 530343308390400
A108: 2004-07-25 | B108: 31699 | D108: 31000 | E108: =LOOKUP(A108,'Flow Data'!A$6:A$2928,'Flow Data'!B$6:B$2928) -> 409 | F108: =LOOKUP(E108,'Flow Data'!D$6:D$737,'Flow Data'!H$6:H$737) -> 0.2777967841 | G108: =((D108/100)*1000*E108*28.3168)*60*60*24 -> 310200803020800
A109: 2004-07-25 | B109: 31699 | D109: 34000 | E109: =LOOKUP(A109,'Flow Data'!A$6:A$2928,'Flow Data'!B$6:B$2928) -> 409 | F109: =LOOKUP(E109,'Flow Data'!D$6:D$737,'Flow Data'!H$6:H$737) -> 0.2777967841 | G109: =((D109/100)*1000*E109*28.3168)*60*60*24 -> 340220235571200
A110: 2004-07-25 | B110: 31699 | D110: 30000 | E110: =LOOKUP(A110,'Flow Data'!A$6:A$2928,'Flow Data'!B$6:B$2928) -> 409 | F110: =LOOKUP(E110,'Flow Data'!D$6:D$737,'Flow Data'!H$6:H$737) -> 0.2777967841 | G110: =((D110/100)*1000*E110*28.3168)*60*60*24 -> 300194325504000
A111: 2001-12-05 | B111: 31699 | D111: 1400 | E111: =LOOKUP(A111,'Flow Data'!A$6:A$2928,'Flow Data'!B$6:B$2928) -> 361 | F111: =LOOKUP(E111,'Flow Data'!D$6:D$737,'Flow Data'!H$6:H$737) -> 0.2942182689 | G111: =((D111/100)*1000*E111*28.3168)*60*60*24 -> 1.236497246e+13
A112: 2001-12-05 | B112: 31699 | D112: 1300 | E112: =LOOKUP(A112,'Flow Data'!A$6:A$2928,'Flow Data'!B$6:B$2928) -> 361 | F112: =LOOKUP(E112,'Flow Data'!D$6:D$737,'Flow Data'!H$6:H$737) -> 0.2942182689 | G112: =((D112/100)*1000*E112*28.3168)*60*60*24 -> 11481760143360
A113: 2001-12-05 | B113: 31699 | D113: 910 | E113: =LOOKUP(A113,'Flow Data'!A$6:A$2928,'Flow Data'!B$6:B$2928) -> 361 | F113: =LOOKUP(E113,'Flow Data'!D$6:D$737,'Flow Data'!H$6:H$737) -> 0.2942182689 | G113: =((D113/100)*1000*E113*28.3168)*60*60*24 -> 8037232100352
A114: 2001-12-05 | B114: 31699 | D114: 1000 | E114: =LOOKUP(A114,'Flow Data'!A$6:A$2928,'Flow Data'!B$6:B$2928) -> 361 | F114: =LOOKUP(E114,'Flow Data'!D$6:D$737,'Flow Data'!H$6:H$737) -> 0.2942182689 | G114: =((D114/100)*1000*E114*28.3168)*60*60*24 -> 8832123187200
A115: 2001-12-05 | B115: 31699 | D115: 1400 | E115: =LOOKUP(A115,'Flow Data'!A$6:A$2928,'Flow Data'!B$6:B$2928) -> 361 | F115: =LOOKUP(E115,'Flow Data'!D$6:D$737,'Flow Data'!H$6:H$737) -> 0.2942182689 | G115: =((D115/100)*1000*E115*28.3168)*60*60*24 -> 1.236497246e+13
A116: 2001-12-10 | B116: 31699 | D116: 5400 | E116: =LOOKUP(A116,'Flow Data'!A$6:A$2928,'Flow Data'!B$6:B$2928) -> 313 | F116: =LOOKUP(E116,'Flow Data'!D$6:D$737,'Flow Data'!H$6:H$737) -> 0.3126924393 | G116: =((D116/100)*1000*E116*28.3168)*60*60*24 -> 41351951831040
A117: 2001-12-10 | B117: 31699 | D117: 6600 | E117: =LOOKUP(A117,'Flow Data'!A$6:A$2928,'Flow Data'!B$6:B$2928) -> 313 | F117: =LOOKUP(E117,'Flow Data'!D$6:D$737,'Flow Data'!H$6:H$737) -> 0.3126924393 | G117: =((D117/100)*1000*E117*28.3168)*60*60*24 -> 50541274460160
A118: 2001-12-10 | B118: 31699 | D118: 8100 | E118: =LOOKUP(A118,'Flow Data'!A$6:A$2928,'Flow Data'!B$6:B$2928) -> 313 | F118: =LOOKUP(E118,'Flow Data'!D$6:D$737,'Flow Data'!H$6:H$737) -> 0.3126924393 | G118: =((D118/100)*1000*E118*28.3168)*60*60*24 -> 62027927746560
A119: 2001-12-10 | B119: 31699 | D119: 12000 | E119: =LOOKUP(A119,'Flow Data'!A$6:A$2928,'Flow Data'!B$6:B$2928) -> 313 | F119: =LOOKUP(E119,'Flow Data'!D$6:D$737,'Flow Data'!H$6:H$737) -> 0.3126924393 | G119: =((D119/100)*1000*E119*28.3168)*60*60*24 -> 91893226291200
A120: 2001-12-10 | B120: 31699 | D120: 6200 | E120: =LOOKUP(A120,'Flow Data'!A$6:A$2928,'Flow Data'!B$6:B$2928) -> 313 | F120: =LOOKUP(E120,'Flow Data'!D$6:D$737,'Flow Data'!H$6:H$737) -> 0.3126924393 | G120: =((D120/100)*1000*E120*28.3168)*60*60*24 -> 4.747816692e+13
A121: 2001-12-10 | B121: 31699 | D121: 7900 | E121: =LOOKUP(A121,'Flow Data'!A$6:A$2928,'Flow Data'!B$6:B$2928) -> 313 | F121: =LOOKUP(E121,'Flow Data'!D$6:D$737,'Flow Data'!H$6:H$737) -> 0.3126924393 | G121: =((D121/100)*1000*E121*28.3168)*60*60*24 -> 60496373975040
A122: 2002-07-01 | B122: 31699 | D122: 2400 | E122: =LOOKUP(A122,'Flow Data'!A$6:A$2928,'Flow Data'!B$6:B$2928) -> 290 | F122: =LOOKUP(E122,'Flow Data'!D$6:D$737,'Flow Data'!H$6:H$737) -> 0.3243243243 | G122: =((D122/100)*1000*E122*28.3168)*60*60*24 -> 17028137779200
A123: 2002-07-01 | B123: 31699 | D123: 2100 | E123: =LOOKUP(A123,'Flow Data'!A$6:A$2928,'Flow Data'!B$6:B$2928) -> 290 | F123: =LOOKUP(E123,'Flow Data'!D$6:D$737,'Flow Data'!H$6:H$737) -> 0.3243243243 | G123: =((D123/100)*1000*E123*28.3168)*60*60*24 -> 14899620556800
A124: 2002-07-01 | B124: 31699 | D124: 1200 | E124: =LOOKUP(A124,'Flow Data'!A$6:A$2928,'Flow Data'!B$6:B$2928) -> 290 | F124: =LOOKUP(E124,'Flow Data'!D$6:D$737,'Flow Data'!H$6:H$737) -> 0.3243243243 | G124: =((D124/100)*1000*E124*28.3168)*60*60*24 -> 8514068889600
A125: 2002-07-01 | B125: 31699 | D125: 1900 | E125: =LOOKUP(A125,'Flow Data'!A$6:A$2928,'Flow Data'!B$6:B$2928) -> 290 | F125: =LOOKUP(E125,'Flow Data'!D$6:D$737,'Flow Data'!H$6:H$737) -> 0.3243243243 | G125: =((D125/100)*1000*E125*28.3168)*60*60*24 -> 13480609075200
A126: 2002-07-01 | B126: 31699 | D126: 1500 | E126: =LOOKUP(A126,'Flow Data'!A$6:A$2928,'Flow Data'!B$6:B$2928) -> 290 | F126: =LOOKUP(E126,'Flow Data'!D$6:D$737,'Flow Data'!H$6:H$737) -> 0.3243243243 | G126: =((D126/100)*1000*E126*28.3168)*60*60*24 -> 10642586112000
A127: 2004-03-01 | B127: 31699 | D127: 5700 | E127: =LOOKUP(A127,'Flow Data'!A$6:A$2928,'Flow Data'!B$6:B$2928) -> 287 | F127: =LOOKUP(E127,'Flow Data'!D$6:D$737,'Flow Data'!H$6:H$737) -> 0.327745467 | G127: =((D127/100)*1000*E127*28.3168)*60*60*24 -> 40023463495680
A128: 2004-03-01 | B128: 31699 | D128: 6500 | E128: =LOOKUP(A128,'Flow Data'!A$6:A$2928,'Flow Data'!B$6:B$2928) -> 287 | F128: =LOOKUP(E128,'Flow Data'!D$6:D$737,'Flow Data'!H$6:H$737) -> 0.327745467 | G128: =((D128/100)*1000*E128*28.3168)*60*60*24 -> 45640791705600
A129: 2004-03-01 | B129: 31699 | D129: 9600 | E129: =LOOKUP(A129,'Flow Data'!A$6:A$2928,'Flow Data'!B$6:B$2928) -> 287 | F129: =LOOKUP(E129,'Flow Data'!D$6:D$737,'Flow Data'!H$6:H$737) -> 0.327745467 | G129: =((D129/100)*1000*E129*28.3168)*60*60*24 -> 67407938519040
A130: 2004-03-01 | B130: 31699 | D130: 13000 | E130: =LOOKUP(A130,'Flow Data'!A$6:A$2928,'Flow Data'!B$6:B$2928) -> 287 | F130: =LOOKUP(E130,'Flow Data'!D$6:D$737,'Flow Data'!H$6:H$737) -> 0.327745467 | G130: =((D130/100)*1000*E130*28.3168)*60*60*24 -> 91281583411200
A131: 2004-03-01 | B131: 31699 | D131: 16000 | E131: =LOOKUP(A131,'Flow Data'!A$6:A$2928,'Flow Data'!B$6:B$2928) -> 287 | F131: =LOOKUP(E131,'Flow Data'!D$6:D$737,'Flow Data'!H$6:H$737) -> 0.327745467 | G131: =((D131/100)*1000*E131*28.3168)*60*60*24 -> 112346564198400
A132: 2004-07-24 | B132: 31699 | D132: 15000 | E132: =LOOKUP(A132,'Flow Data'!A$6:A$2928,'Flow Data'!B$6:B$2928) -> 268 | F132: =LOOKUP(E132,'Flow Data'!D$6:D$737,'Flow Data'!H$6:H$737) -> 0.3359562094 | G132: =((D132/100)*1000*E132*28.3168)*60*60*24 -> 98352175104000
A133: 2004-07-24 | B133: 31699 | D133: 130 | E133: =LOOKUP(A133,'Flow Data'!A$6:A$2928,'Flow Data'!B$6:B$2928) -> 268 | F133: =LOOKUP(E133,'Flow Data'!D$6:D$737,'Flow Data'!H$6:H$737) -> 0.3359562094 | G133: =((D133/100)*1000*E133*28.3168)*60*60*24 -> 852385517568
A134: 2002-10-24 | B134: 31699 | D134: 880 | E134: =LOOKUP(A134,'Flow Data'!A$6:A$2928,'Flow Data'!B$6:B$2928) -> 261 | F134: =LOOKUP(E134,'Flow Data'!D$6:D$737,'Flow Data'!H$6:H$737) -> 0.3397194663 | G134: =((D134/100)*1000*E134*28.3168)*60*60*24 -> 5619285467136
A135: 2002-10-24 | B135: 31699 | D135: 910 | E135: =LOOKUP(A135,'Flow Data'!A$6:A$2928,'Flow Data'!B$6:B$2928) -> 261 | F135: =LOOKUP(E135,'Flow Data'!D$6:D$737,'Flow Data'!H$6:H$737) -> 0.3397194663 | G135: =((D135/100)*1000*E135*28.3168)*60*60*24 -> 5810852017152
A136: 2002-10-24 | B136: 31699 | D136: 910 | E136: =LOOKUP(A136,'Flow Data'!A$6:A$2928,'Flow Data'!B$6:B$2928) -> 261 | F136: =LOOKUP(E136,'Flow Data'!D$6:D$737,'Flow Data'!H$6:H$737) -> 0.3397194663 | G136: =((D136/100)*1000*E136*28.3168)*60*60*24 -> 5810852017152
A137: 2002-10-24 | B137: 31699 | D137: 930 | E137: =LOOKUP(A137,'Flow Data'!A$6:A$2928,'Flow Data'!B$6:B$2928) -> 261 | F137: =LOOKUP(E137,'Flow Data'!D$6:D$737,'Flow Data'!H$6:H$737) -> 0.3397194663 | G137: =((D137/100)*1000*E137*28.3168)*60*60*24 -> 5938563050496
A138: 2002-08-14 | B138: 31699 | D138: 3255 | E138: =LOOKUP(A138,'Flow Data'!A$6:A$2928,'Flow Data'!B$6:B$2928) -> 256 | F138: =LOOKUP(E138,'Flow Data'!D$6:D$737,'Flow Data'!H$6:H$737) -> 0.3414300376 | G138: =((D138/100)*1000*E138*28.3168)*60*60*24 -> 20386791161856
A139: 2002-08-14 | B139: 31699 | D139: 6867 | E139: =LOOKUP(A139,'Flow Data'!A$6:A$2928,'Flow Data'!B$6:B$2928) -> 256 | F139: =LOOKUP(E139,'Flow Data'!D$6:D$737,'Flow Data'!H$6:H$737) -> 0.3414300376 | G139: =((D139/100)*1000*E139*28.3168)*60*60*24 -> 4.300955297e+13
A140: 2002-01-07 | B140: 31699 | D140: 19000 | E140: =LOOKUP(A140,'Flow Data'!A$6:A$2928,'Flow Data'!B$6:B$2928) -> 242 | F140: =LOOKUP(E140,'Flow Data'!D$6:D$737,'Flow Data'!H$6:H$737) -> 0.3479302087 | G140: =((D140/100)*1000*E140*28.3168)*60*60*24 -> 112493358489600
A141: 2002-01-07 | B141: 31699 | D141: 8400 | E141: =LOOKUP(A141,'Flow Data'!A$6:A$2928,'Flow Data'!B$6:B$2928) -> 242 | F141: =LOOKUP(E141,'Flow Data'!D$6:D$737,'Flow Data'!H$6:H$737) -> 0.3479302087 | G141: =((D141/100)*1000*E141*28.3168)*60*60*24 -> 49733905858560
A142: 2002-01-07 | B142: 31699 | D142: 7100 | E142: =LOOKUP(A142,'Flow Data'!A$6:A$2928,'Flow Data'!B$6:B$2928) -> 242 | F142: =LOOKUP(E142,'Flow Data'!D$6:D$737,'Flow Data'!H$6:H$737) -> 0.3479302087 | G142: =((D142/100)*1000*E142*28.3168)*60*60*24 -> 42036991856640
A143: 2002-01-07 | B143: 31699 | D143: 11000 | E143: =LOOKUP(A143,'Flow Data'!A$6:A$2928,'Flow Data'!B$6:B$2928) -> 242 | F143: =LOOKUP(E143,'Flow Data'!D$6:D$737,'Flow Data'!H$6:H$737) -> 0.3479302087 | G143: =((D143/100)*1000*E143*28.3168)*60*60*24 -> 65127733862400
A144: 2002-01-07 | B144: 31699 | D144: 7100 | E144: =LOOKUP(A144,'Flow Data'!A$6:A$2928,'Flow Data'!B$6:B$2928) -> 242 | F144: =LOOKUP(E144,'Flow Data'!D$6:D$737,'Flow Data'!H$6:H$737) -> 0.3479302087 | G144: =((D144/100)*1000*E144*28.3168)*60*60*24 -> 42036991856640
A145: 2003-08-14 | B145: 31699 | D145: 740 | E145: =LOOKUP(A145,'Flow Data'!A$6:A$2928,'Flow Data'!B$6:B$2928) -> 230 | F145: =LOOKUP(E145,'Flow Data'!D$6:D$737,'Flow Data'!H$6:H$737) -> 0.3544303797 | G145: =((D145/100)*1000*E145*28.3168)*60*60*24 -> 4164064727040
A146: 2003-08-14 | B146: 31699 | D146: 1100 | E146: =LOOKUP(A146,'Flow Data'!A$6:A$2928,'Flow Data'!B$6:B$2928) -> 230 | F146: =LOOKUP(E146,'Flow Data'!D$6:D$737,'Flow Data'!H$6:H$737) -> 0.3544303797 | G146: =((D146/100)*1000*E146*28.3168)*60*60*24 -> 6189825945600
A147: 2003-08-14 | B147: 31699 | D147: 2000 | E147: =LOOKUP(A147,'Flow Data'!A$6:A$2928,'Flow Data'!B$6:B$2928) -> 230 | F147: =LOOKUP(E147,'Flow Data'!D$6:D$737,'Flow Data'!H$6:H$737) -> 0.3544303797 | G147: =((D147/100)*1000*E147*28.3168)*60*60*24 -> 11254228992000
A148: 2003-08-14 | B148: 31699 | D148: 2700 | E148: =LOOKUP(A148,'Flow Data'!A$6:A$2928,'Flow Data'!B$6:B$2928) -> 230 | F148: =LOOKUP(E148,'Flow Data'!D$6:D$737,'Flow Data'!H$6:H$737) -> 0.3544303797 | G148: =((D148/100)*1000*E148*28.3168)*60*60*24 -> 15193209139200
A149: 2004-01-08 | B149: 31699 | D149: 7400 | E149: =LOOKUP(A149,'Flow Data'!A$6:A$2928,'Flow Data'!B$6:B$2928) -> 223 | F149: =LOOKUP(E149,'Flow Data'!D$6:D$737,'Flow Data'!H$6:H$737) -> 0.3592199795 | G149: =((D149/100)*1000*E149*28.3168)*60*60*24 -> 40373323223040
A150: 2004-01-08 | B150: 31699 | D150: 5100 | E150: =LOOKUP(A150,'Flow Data'!A$6:A$2928,'Flow Data'!B$6:B$2928) -> 223 | F150: =LOOKUP(E150,'Flow Data'!D$6:D$737,'Flow Data'!H$6:H$737) -> 0.3592199795 | G150: =((D150/100)*1000*E150*28.3168)*60*60*24 -> 2.78248579e+13
A151: 2004-01-08 | B151: 31699 | D151: 8800 | E151: =LOOKUP(A151,'Flow Data'!A$6:A$2928,'Flow Data'!B$6:B$2928) -> 223 | F151: =LOOKUP(E151,'Flow Data'!D$6:D$737,'Flow Data'!H$6:H$737) -> 0.3592199795 | G151: =((D151/100)*1000*E151*28.3168)*60*60*24 -> 4.801151951e+13
A152: 2004-01-08 | B152: 31699 | D152: 20000 | E152: =LOOKUP(A152,'Flow Data'!A$6:A$2928,'Flow Data'!B$6:B$2928) -> 223 | F152: =LOOKUP(E152,'Flow Data'!D$6:D$737,'Flow Data'!H$6:H$737) -> 0.3592199795 | G152: =((D152/100)*1000*E152*28.3168)*60*60*24 -> 109117089792000
A153: 2001-12-06 | B153: 31699 | D153: 1600 | E153: =LOOKUP(A153,'Flow Data'!A$6:A$2928,'Flow Data'!B$6:B$2928) -> 199 | F153: =LOOKUP(E153,'Flow Data'!D$6:D$737,'Flow Data'!H$6:H$737) -> 0.3776941498 | G153: =((D153/100)*1000*E153*28.3168)*60*60*24 -> 7789883719680
A154: 2004-10-05 | B154: 31699 | D154: 8100 | E154: =LOOKUP(A154,'Flow Data'!A$6:A$2928,'Flow Data'!B$6:B$2928) -> 196 | F154: =LOOKUP(E154,'Flow Data'!D$6:D$737,'Flow Data'!H$6:H$737) -> 0.380431064 | G154: =((D154/100)*1000*E154*28.3168)*60*60*24 -> 38841769451520
A155: 2004-10-05 | B155: 31699 | D155: 30000 | E155: =LOOKUP(A155,'Flow Data'!A$6:A$2928,'Flow Data'!B$6:B$2928) -> 196 | F155: =LOOKUP(E155,'Flow Data'!D$6:D$737,'Flow Data'!H$6:H$737) -> 0.380431064 | G155: =((D155/100)*1000*E155*28.3168)*60*60*24 -> 143858405376000
A156: 2004-10-05 | B156: 31699 | D156: 16000 | E156: =LOOKUP(A156,'Flow Data'!A$6:A$2928,'Flow Data'!B$6:B$2928) -> 196 | F156: =LOOKUP(E156,'Flow Data'!D$6:D$737,'Flow Data'!H$6:H$737) -> 0.380431064 | G156: =((D156/100)*1000*E156*28.3168)*60*60*24 -> 76724482867200
A157: 2004-10-05 | B157: 31699 | D157: 36000 | E157: =LOOKUP(A157,'Flow Data'!A$6:A$2928,'Flow Data'!B$6:B$2928) -> 196 | F157: =LOOKUP(E157,'Flow Data'!D$6:D$737,'Flow Data'!H$6:H$737) -> 0.380431064 | G157: =((D157/100)*1000*E157*28.3168)*60*60*24 -> 172630086451200
A158: 2004-10-05 | B158: 31699 | D158: 37000 | E158: =LOOKUP(A158,'Flow Data'!A$6:A$2928,'Flow Data'!B$6:B$2928) -> 196 | F158: =LOOKUP(E158,'Flow Data'!D$6:D$737,'Flow Data'!H$6:H$737) -> 0.380431064 | G158: =((D158/100)*1000*E158*28.3168)*60*60*24 -> 177425366630400
A159: 2004-06-10 | B159: 31699 | D159: 690 | E159: =LOOKUP(A159,'Flow Data'!A$6:A$2928,'Flow Data'!B$6:B$2928) -> 193 | F159: =LOOKUP(E159,'Flow Data'!D$6:D$737,'Flow Data'!H$6:H$737) -> 0.3824837496 | G159: =((D159/100)*1000*E159*28.3168)*60*60*24 -> 3.258099293e+12
A160: 2004-06-10 | B160: 31699 | D160: 1600 | E160: =LOOKUP(A160,'Flow Data'!A$6:A$2928,'Flow Data'!B$6:B$2928) -> 193 | F160: =LOOKUP(E160,'Flow Data'!D$6:D$737,'Flow Data'!H$6:H$737) -> 0.3824837496 | G160: =((D160/100)*1000*E160*28.3168)*60*60*24 -> 7555012853760
A161: 2004-06-10 | B161: 31699 | D161: 1100 | E161: =LOOKUP(A161,'Flow Data'!A$6:A$2928,'Flow Data'!B$6:B$2928) -> 193 | F161: =LOOKUP(E161,'Flow Data'!D$6:D$737,'Flow Data'!H$6:H$737) -> 0.3824837496 | G161: =((D161/100)*1000*E161*28.3168)*60*60*24 -> 5194071336960
A162: 2004-06-10 | B162: 31699 | D162: 1600 | E162: =LOOKUP(A162,'Flow Data'!A$6:A$2928,'Flow Data'!B$6:B$2928) -> 193 | F162: =LOOKUP(E162,'Flow Data'!D$6:D$737,'Flow Data'!H$6:H$737) -> 0.3824837496 | G162: =((D162/100)*1000*E162*28.3168)*60*60*24 -> 7555012853760
A163: 2003-07-09 | B163: 31699 | D163: 3700 | E163: =LOOKUP(A163,'Flow Data'!A$6:A$2928,'Flow Data'!B$6:B$2928) -> 186 | F163: =LOOKUP(E163,'Flow Data'!D$6:D$737,'Flow Data'!H$6:H$737) -> 0.3896681492 | G163: =((D163/100)*1000*E163*28.3168)*60*60*24 -> 16837305200640
A164: 2003-07-09 | B164: 31699 | D164: 6400 | E164: =LOOKUP(A164,'Flow Data'!A$6:A$2928,'Flow Data'!B$6:B$2928) -> 186 | F164: =LOOKUP(E164,'Flow Data'!D$6:D$737,'Flow Data'!H$6:H$737) -> 0.3896681492 | G164: =((D164/100)*1000*E164*28.3168)*60*60*24 -> 29123987374080
A165: 2003-07-09 | B165: 31699 | D165: 7000 | E165: =LOOKUP(A165,'Flow Data'!A$6:A$2928,'Flow Data'!B$6:B$2928) -> 186 | F165: =LOOKUP(E165,'Flow Data'!D$6:D$737,'Flow Data'!H$6:H$737) -> 0.3896681492 | G165: =((D165/100)*1000*E165*28.3168)*60*60*24 -> 31854361190400
A166: 2003-07-09 | B166: 31699 | D166: 8800 | E166: =LOOKUP(A166,'Flow Data'!A$6:A$2928,'Flow Data'!B$6:B$2928) -> 186 | F166: =LOOKUP(E166,'Flow Data'!D$6:D$737,'Flow Data'!H$6:H$737) -> 0.3896681492 | G166: =((D166/100)*1000*E166*28.3168)*60*60*24 -> 4.004548264e+13
A167: 2003-07-09 | B167: 31699 | D167: 13000 | E167: =LOOKUP(A167,'Flow Data'!A$6:A$2928,'Flow Data'!B$6:B$2928) -> 186 | F167: =LOOKUP(E167,'Flow Data'!D$6:D$737,'Flow Data'!H$6:H$737) -> 0.3896681492 | G167: =((D167/100)*1000*E167*28.3168)*60*60*24 -> 59158099353600
A168: 2003-07-08 | B168: 31699 | D168: 700 | E168: =LOOKUP(A168,'Flow Data'!A$6:A$2928,'Flow Data'!B$6:B$2928) -> 181 | F168: =LOOKUP(E168,'Flow Data'!D$6:D$737,'Flow Data'!H$6:H$737) -> 0.3965104345 | G168: =((D168/100)*1000*E168*28.3168)*60*60*24 -> 3099806115840
A169: 2003-07-08 | B169: 31699 | D169: 2000 | E169: =LOOKUP(A169,'Flow Data'!A$6:A$2928,'Flow Data'!B$6:B$2928) -> 181 | F169: =LOOKUP(E169,'Flow Data'!D$6:D$737,'Flow Data'!H$6:H$737) -> 0.3965104345 | G169: =((D169/100)*1000*E169*28.3168)*60*60*24 -> 8856588902400
A170: 2003-07-08 | B170: 31699 | D170: 24000 | E170: =LOOKUP(A170,'Flow Data'!A$6:A$2928,'Flow Data'!B$6:B$2928) -> 181 | F170: =LOOKUP(E170,'Flow Data'!D$6:D$737,'Flow Data'!H$6:H$737) -> 0.3965104345 | G170: =((D170/100)*1000*E170*28.3168)*60*60*24 -> 106279066828800
A171: 2003-07-08 | B171: 31699 | D171: 3400 | E171: =LOOKUP(A171,'Flow Data'!A$6:A$2928,'Flow Data'!B$6:B$2928) -> 181 | F171: =LOOKUP(E171,'Flow Data'!D$6:D$737,'Flow Data'!H$6:H$737) -> 0.3965104345 | G171: =((D171/100)*1000*E171*28.3168)*60*60*24 -> 1.505620113e+13
A172: 2004-04-06 | B172: 31699 | D172: 4700 | E172: =LOOKUP(A172,'Flow Data'!A$6:A$2928,'Flow Data'!B$6:B$2928) -> 166 | F172: =LOOKUP(E172,'Flow Data'!D$6:D$737,'Flow Data'!H$6:H$737) -> 0.4112213479 | G172: =((D172/100)*1000*E172*28.3168)*60*60*24 -> 19088150999040
A173: 2004-04-06 | B173: 31699 | D173: 2800 | E173: =LOOKUP(A173,'Flow Data'!A$6:A$2928,'Flow Data'!B$6:B$2928) -> 166 | F173: =LOOKUP(E173,'Flow Data'!D$6:D$737,'Flow Data'!H$6:H$737) -> 0.4112213479 | G173: =((D173/100)*1000*E173*28.3168)*60*60*24 -> 11371664424960
A174: 2004-04-06 | B174: 31699 | D174: 960 | E174: =LOOKUP(A174,'Flow Data'!A$6:A$2928,'Flow Data'!B$6:B$2928) -> 166 | F174: =LOOKUP(E174,'Flow Data'!D$6:D$737,'Flow Data'!H$6:H$737) -> 0.4112213479 | G174: =((D174/100)*1000*E174*28.3168)*60*60*24 -> 3898856374272
A175: 2004-04-06 | B175: 31699 | D175: 590 | E175: =LOOKUP(A175,'Flow Data'!A$6:A$2928,'Flow Data'!B$6:B$2928) -> 166 | F175: =LOOKUP(E175,'Flow Data'!D$6:D$737,'Flow Data'!H$6:H$737) -> 0.4112213479 | G175: =((D175/100)*1000*E175*28.3168)*60*60*24 -> 2396172146688
A176: 2004-04-06 | B176: 31699 | D176: 410 | E176: =LOOKUP(A176,'Flow Data'!A$6:A$2928,'Flow Data'!B$6:B$2928) -> 166 | F176: =LOOKUP(E176,'Flow Data'!D$6:D$737,'Flow Data'!H$6:H$737) -> 0.4112213479 | G176: =((D176/100)*1000*E176*28.3168)*60*60*24 -> 1.665136577e+12
A177: 2004-03-04 | B177: 31699 | D177: 220 | E177: =LOOKUP(A177,'Flow Data'!A$6:A$2928,'Flow Data'!B$6:B$2928) -> 163 | F177: =LOOKUP(E177,'Flow Data'!D$6:D$737,'Flow Data'!H$6:H$737) -> 0.4149846049 | G177: =((D177/100)*1000*E177*28.3168)*60*60*24 -> 8.773405471e+11
A178: 2004-03-04 | B178: 31699 | D178: 500 | E178: =LOOKUP(A178,'Flow Data'!A$6:A$2928,'Flow Data'!B$6:B$2928) -> 163 | F178: =LOOKUP(E178,'Flow Data'!D$6:D$737,'Flow Data'!H$6:H$737) -> 0.4149846049 | G178: =((D178/100)*1000*E178*28.3168)*60*60*24 -> 1993955788800
A179: 2004-03-04 | B179: 31699 | D179: 1200 | E179: =LOOKUP(A179,'Flow Data'!A$6:A$2928,'Flow Data'!B$6:B$2928) -> 163 | F179: =LOOKUP(E179,'Flow Data'!D$6:D$737,'Flow Data'!H$6:H$737) -> 0.4149846049 | G179: =((D179/100)*1000*E179*28.3168)*60*60*24 -> 4.785493893e+12
A180: 2004-03-04 | B180: 31699 | D180: 560 | E180: =LOOKUP(A180,'Flow Data'!A$6:A$2928,'Flow Data'!B$6:B$2928) -> 163 | F180: =LOOKUP(E180,'Flow Data'!D$6:D$737,'Flow Data'!H$6:H$737) -> 0.4149846049 | G180: =((D180/100)*1000*E180*28.3168)*60*60*24 -> 2.233230483e+12
A181: 2001-08-06 | B181: 31699 | D181: 594 | E181: =LOOKUP(A181,'Flow Data'!A$6:A$2928,'Flow Data'!B$6:B$2928) -> 151 | F181: =LOOKUP(E181,'Flow Data'!D$6:D$737,'Flow Data'!H$6:H$737) -> 0.427984947 | G181: =((D181/100)*1000*E181*28.3168)*60*60*24 -> 2.194427859e+12
A182: 2002-04-16 | B182: 31699 | D182: 700 | E182: =LOOKUP(A182,'Flow Data'!A$6:A$2928,'Flow Data'!B$6:B$2928) -> 132 | F182: =LOOKUP(E182,'Flow Data'!D$6:D$737,'Flow Data'!H$6:H$737) -> 0.4546698597 | G182: =((D182/100)*1000*E182*28.3168)*60*60*24 -> 2260632084480
A183: 2002-04-16 | B183: 31699 | D183: 690 | E183: =LOOKUP(A183,'Flow Data'!A$6:A$2928,'Flow Data'!B$6:B$2928) -> 132 | F183: =LOOKUP(E183,'Flow Data'!D$6:D$737,'Flow Data'!H$6:H$737) -> 0.4546698597 | G183: =((D183/100)*1000*E183*28.3168)*60*60*24 -> 2228337340416
A184: 2002-03-05 | B184: 31699 | D184: 440 | E184: =LOOKUP(A184,'Flow Data'!A$6:A$2928,'Flow Data'!B$6:B$2928) -> 131 | F184: =LOOKUP(E184,'Flow Data'!D$6:D$737,'Flow Data'!H$6:H$737) -> 0.4567225453 | G184: =((D184/100)*1000*E184*28.3168)*60*60*24 -> 1.410203824e+12
A185: 2002-03-05 | B185: 31699 | D185: 270 | E185: =LOOKUP(A185,'Flow Data'!A$6:A$2928,'Flow Data'!B$6:B$2928) -> 131 | F185: =LOOKUP(E185,'Flow Data'!D$6:D$737,'Flow Data'!H$6:H$737) -> 0.4567225453 | G185: =((D185/100)*1000*E185*28.3168)*60*60*24 -> 865352346624
A186: 2002-03-05 | B186: 31699 | D186: 360 | E186: =LOOKUP(A186,'Flow Data'!A$6:A$2928,'Flow Data'!B$6:B$2928) -> 131 | F186: =LOOKUP(E186,'Flow Data'!D$6:D$737,'Flow Data'!H$6:H$737) -> 0.4567225453 | G186: =((D186/100)*1000*E186*28.3168)*60*60*24 -> 1.153803129e+12
A187: 2002-03-05 | B187: 31699 | D187: 220 | E187: =LOOKUP(A187,'Flow Data'!A$6:A$2928,'Flow Data'!B$6:B$2928) -> 131 | F187: =LOOKUP(E187,'Flow Data'!D$6:D$737,'Flow Data'!H$6:H$737) -> 0.4567225453 | G187: =((D187/100)*1000*E187*28.3168)*60*60*24 -> 7.051019121e+11
A188: 2002-03-05 | B188: 31699 | D188: 300 | E188: =LOOKUP(A188,'Flow Data'!A$6:A$2928,'Flow Data'!B$6:B$2928) -> 131 | F188: =LOOKUP(E188,'Flow Data'!D$6:D$737,'Flow Data'!H$6:H$737) -> 0.4567225453 | G188: =((D188/100)*1000*E188*28.3168)*60*60*24 -> 961502607360
A189: 2003-01-30 | B189: 31699 | D189: 2142 | E189: =LOOKUP(A189,'Flow Data'!A$6:A$2928,'Flow Data'!B$6:B$2928) -> 127 | F189: =LOOKUP(E189,'Flow Data'!D$6:D$737,'Flow Data'!H$6:H$737) -> 0.4642490592 | G189: =((D189/100)*1000*E189*28.3168)*60*60*24 -> 6.655506369e+12
A190: 2003-01-30 | B190: 31699 | D190: 472 | E190: =LOOKUP(A190,'Flow Data'!A$6:A$2928,'Flow Data'!B$6:B$2928) -> 127 | F190: =LOOKUP(E190,'Flow Data'!D$6:D$737,'Flow Data'!H$6:H$737) -> 0.4642490592 | G190: =((D190/100)*1000*E190*28.3168)*60*60*24 -> 1.466572832e+12
A191: 2003-01-30 | B191: 31699 | D191: 510 | E191: =LOOKUP(A191,'Flow Data'!A$6:A$2928,'Flow Data'!B$6:B$2928) -> 127 | F191: =LOOKUP(E191,'Flow Data'!D$6:D$737,'Flow Data'!H$6:H$737) -> 0.4642490592 | G191: =((D191/100)*1000*E191*28.3168)*60*60*24 -> 1.584644374e+12
A192: 2003-01-30 | B192: 31699 | D192: 430 | E192: =LOOKUP(A192,'Flow Data'!A$6:A$2928,'Flow Data'!B$6:B$2928) -> 127 | F192: =LOOKUP(E192,'Flow Data'!D$6:D$737,'Flow Data'!H$6:H$737) -> 0.4642490592 | G192: =((D192/100)*1000*E192*28.3168)*60*60*24 -> 1.336072707e+12
A193: 2003-01-30 | B193: 31699 | D193: 490 | E193: =LOOKUP(A193,'Flow Data'!A$6:A$2928,'Flow Data'!B$6:B$2928) -> 127 | F193: =LOOKUP(E193,'Flow Data'!D$6:D$737,'Flow Data'!H$6:H$737) -> 0.4642490592 | G193: =((D193/100)*1000*E193*28.3168)*60*60*24 -> 1.522501457e+12
A194: 2003-01-30 | B194: 31699 | D194: 890 | E194: =LOOKUP(A194,'Flow Data'!A$6:A$2928,'Flow Data'!B$6:B$2928) -> 127 | F194: =LOOKUP(E194,'Flow Data'!D$6:D$737,'Flow Data'!H$6:H$737) -> 0.4642490592 | G194: =((D194/100)*1000*E194*28.3168)*60*60*24 -> 2.765359789e+12
A195: 2002-04-01 | B195: 31699 | D195: 7000 | E195: =LOOKUP(A195,'Flow Data'!A$6:A$2928,'Flow Data'!B$6:B$2928) -> 123 | F195: =LOOKUP(E195,'Flow Data'!D$6:D$737,'Flow Data'!H$6:H$737) -> 0.4707492302 | G195: =((D195/100)*1000*E195*28.3168)*60*60*24 -> 21064980787200
A196: 2002-04-01 | B196: 31699 | D196: 5100 | E196: =LOOKUP(A196,'Flow Data'!A$6:A$2928,'Flow Data'!B$6:B$2928) -> 123 | F196: =LOOKUP(E196,'Flow Data'!D$6:D$737,'Flow Data'!H$6:H$737) -> 0.4707492302 | G196: =((D196/100)*1000*E196*28.3168)*60*60*24 -> 15347343144960
A197: 2002-04-01 | B197: 31699 | D197: 5200 | E197: =LOOKUP(A197,'Flow Data'!A$6:A$2928,'Flow Data'!B$6:B$2928) -> 123 | F197: =LOOKUP(E197,'Flow Data'!D$6:D$737,'Flow Data'!H$6:H$737) -> 0.4707492302 | G197: =((D197/100)*1000*E197*28.3168)*60*60*24 -> 15648271441920
A198: 2002-04-01 | B198: 31699 | D198: 6100 | E198: =LOOKUP(A198,'Flow Data'!A$6:A$2928,'Flow Data'!B$6:B$2928) -> 123 | F198: =LOOKUP(E198,'Flow Data'!D$6:D$737,'Flow Data'!H$6:H$737) -> 0.4707492302 | G198: =((D198/100)*1000*E198*28.3168)*60*60*24 -> 18356626114560
A199: 2002-04-01 | B199: 31699 | D199: 6000 | E199: =LOOKUP(A199,'Flow Data'!A$6:A$2928,'Flow Data'!B$6:B$2928) -> 123 | F199: =LOOKUP(E199,'Flow Data'!D$6:D$737,'Flow Data'!H$6:H$737) -> 0.4707492302 | G199: =((D199/100)*1000*E199*28.3168)*60*60*24 -> 18055697817600
A200: 2002-03-11 | B200: 31699 | D200: 420 | E200: =LOOKUP(A200,'Flow Data'!A$6:A$2928,'Flow Data'!B$6:B$2928) -> 120 | F200: =LOOKUP(E200,'Flow Data'!D$6:D$737,'Flow Data'!H$6:H$737) -> 0.480670544 | G200: =((D200/100)*1000*E200*28.3168)*60*60*24 -> 1.233072046e+12
A201: 2002-03-11 | B201: 31699 | D201: 450 | E201: =LOOKUP(A201,'Flow Data'!A$6:A$2928,'Flow Data'!B$6:B$2928) -> 120 | F201: =LOOKUP(E201,'Flow Data'!D$6:D$737,'Flow Data'!H$6:H$737) -> 0.480670544 | G201: =((D201/100)*1000*E201*28.3168)*60*60*24 -> 1321148620800
... 701 more rows

Sheet FC Reduction
B2: Fecal Coliform Reductions
B3: Flow Percentile Range1 | C3: Hydrologic Condition Class | D3: Number of Samples | E3: Representative Concentration (CFU/100 mL) | F3: Mid-Range Flow (cfs) | G3: Mid-Range Observed Load (CFU/day) | H3: Mid-Range Target Load (CFU/day) 2 | I3: % Load Reduction at Mid-Range 2
B4: 0-0.1 | C4: High Flow | D4: 27 | E4: 2100 | F4: 1760 | G4: 90425283379200 | H4: 16362670325760 | I4: 0.819047619
B5: 0.1-0.4 | C5: Moist Conditions | D5: 104 | E5: 8000 | F5: 478 | G5: 93556894924800 | H5: 4443952508928 | I5: 0.9525
B6: 0.4-0.6 | C6: Mid-Range Conditions | D6: 89 | E6: 5800 | F6: 111 | G6: 15751027445760 | H6: 1.031963867e+12 | I6: 0.9344827586
B7: 0.6-0.9 | C7: Dry Conditions | D7: 103 | E7: 3600 | F7: 64 | G7: 5636900782080 | H7: 595006193664 | I7: 0.8944444444
B8: 0.9-1.0 | C8: Low Flow | D8: 81 | E8: 620 | F8: 41 | G8: 621918480384 | H8: 381175842816 | I8: 0.3870967742
B9: 0-1.0 | C9: Entire Curve | D9: 404 | E9: 4300 | F9: 111 | G9: 11677485864960 | H9: 1.031963867e+12 | I9: 0.911627907
B11: 1 Flow percentiles may be adjusted, but there must be exactly five ranges.
B12: 2 Target load and reductions calculated based on a fecal coliform single sample water quality criterion of 400 CFU/100mL. No more than 25% of single samples may be greater than this concentration.

Sheet EC Reduction
B2: E. coli Reductions
B3: Flow Percentile Range1 | C3: Hydrologic Condition Class | D3: Number of Samples | E3: Representative Concentration (CFU/100 mL) | F3: Mid-Range Flow (cfs) | G3: Mid-Range Observed Load (CFU/day) | H3: Mid-Range Target Load (CFU/day) 2 | I3: % Load Reduction at Mid-Range 2
B4: 0-0.1 | C4: High Flow | D4: 70 | E4: 510 | F4: 1760 | G4: 21960425963520 | H4: 1.611723027e+13 | I4: 0.2660784314
B5: 0.1-0.4 | C5: Moist Conditions | D5: 241 | E5: 8200 | F5: 478 | G5: 95895817297920 | H5: 4.377293221e+12 | I5: 0.9543536585
B6: 0.4-0.6 | C6: Mid-Range Conditions | D6: 142 | E6: 2142 | F6: 111 | G6: 5.817017377e+12 | H6: 1.016484409e+12 | I6: 0.8252567694
B7: 0.6-0.9 | C7: Dry Conditions | D7: 410 | E7: 1100 | F7: 64 | G7: 1722386350080 | H7: 5.860811008e+11 | I7: 0.6597272727
B8: 0.9-1.0 | C8: Low Flow | D8: 36 | E8: 700 | F8: 41 | G8: 7.021660262e+11 | H8: 3.754582052e+11 | I8: 0.4652857143
B9: 0-1.0 | C9: Entire Curve | D9: 899 | E9: 2400 | F9: 111 | G9: 6517666529280 | H9: 1.016484409e+12 | I9: 0.8440416667
B11: 1 Flow percentiles may be adjusted, but there must be exactly five ranges.
B12: 2 Target load and reductions calculated based on an E. coli single sample water quality criterion of 394 CFU/100mL. No more than 25% of single samples may be greater than this concentration.

Sheet Water Quality Data
A4: Date | B4: Storet Code | C4: Qualifier | D4: Value
A5: 1973-08-01 | B5: 10 | D5: 28.5
A6: 1973-08-01 | B6: 11 | D6: 83.3
A7: 1973-08-01 | B7: 95 | D7: 390
A8: 1973-08-01 | B8: 300 | D8: 3.3
A9: 1973-08-01 | B9: 310 | D9: 10
A10: 1973-08-01 | B10: 403 | D10: 7.5
A11: 1973-08-01 | B11: 31501 | D11: 350000
A12: 1973-08-01 | B12: 31616 | D12: 130000
A13: 1973-09-04 | B13: 10 | D13: 26.9
A14: 1973-09-04 | B14: 11 | D14: 80.4
A15: 1973-09-04 | B15: 95 | D15: 416
A16: 1973-09-04 | B16: 300 | D16: 4
A17: 1973-09-04 | B17: 310 | D17: 6
A18: 1973-09-04 | B18: 403 | D18: 7.3
A19: 1973-09-04 | B19: 31501 | D19: 350000
A20: 1973-09-04 | B20: 31616 | D20: 170000
A21: 1973-11-06 | B21: 10 | D21: 21.8
A22: 1973-11-06 | B22: 11 | D22: 71.2
A23: 1973-11-06 | B23: 95 | D23: 142
A24: 1973-11-06 | B24: 300 | D24: 6
A25: 1973-11-06 | B25: 310 | D25: 7
A26: 1973-11-06 | B26: 403 | D26: 7.3
A27: 1973-11-06 | B27: 31501 | D27: 110000
A28: 1973-11-06 | B28: 31616 | D28: 110000
A29: 1973-12-05 | B29: 10 | D29: 17.2
A30: 1973-12-05 | B30: 11 | D30: 63
A31: 1973-12-05 | B31: 95 | D31: 585
A32: 1973-12-05 | B32: 300 | D32: 4.2
A33: 1973-12-05 | B33: 310 | D33: 9
A34: 1973-12-05 | B34: 403 | D34: 7.6
A35: 1973-12-05 | B35: 31501 | D35: 49000
A36: 1973-12-05 | B36: 31616 | D36: 33000
A37: 1974-01-10 | B37: 10 | D37: 17.2
A38: 1974-01-10 | B38: 11 | D38: 63
A39: 1974-01-10 | B39: 95 | D39: 456
A40: 1974-01-10 | B40: 300 | D40: 5.8
A41: 1974-01-10 | B41: 310 | D41: 12
A42: 1974-01-10 | B42: 403 | D42: 7.3
A43: 1974-01-10 | B43: 31501 | D43: 240000
A44: 1974-01-10 | B44: 31616 | D44: 27000
A45: 1974-02-06 | B45: 10 | D45: 18
A46: 1974-02-06 | B46: 11 | D46: 64.4
A47: 1974-02-06 | B47: 95 | D47: 400
A48: 1974-02-06 | B48: 300 | D48: 5.6
A49: 1974-02-06 | B49: 310 | D49: 7
A50: 1974-02-06 | B50: 403 | D50: 7.3
A51: 1974-02-06 | B51: 31501 | D51: 240000
A52: 1974-02-06 | B52: 31616 | D52: 4000
A53: 1974-03-06 | B53: 10 | D53: 22
A54: 1974-03-06 | B54: 11 | D54: 71.6
A55: 1974-03-06 | B55: 95 | D55: 650
A56: 1974-03-06 | B56: 300 | D56: 3.3
A57: 1974-03-06 | B57: 310 | D57: 4
A58: 1974-03-06 | B58: 403 | D58: 7.5
A59: 1974-03-06 | B59: 31501 | D59: 27000
A60: 1974-03-06 | B60: 31616 | D60: 5000
A61: 1974-04-03 | B61: 10 | D61: 18.4
A62: 1974-04-03 | B62: 11 | D62: 65.1
A63: 1974-04-03 | B63: 95 | D63: 745
A64: 1974-04-03 | B64: 300 | D64: 3.7
A65: 1974-04-03 | B65: 310 | D65: 5
A66: 1974-04-03 | B66: 403 | D66: 7.9
A67: 1974-04-03 | B67: 31501 | D67: 21000
A68: 1974-04-03 | B68: 31616 | D68: 7000
A69: 1974-05-01 | B69: 10 | D69: 24
A70: 1974-05-01 | B70: 11 | D70: 75.2
A71: 1974-05-01 | B71: 95 | D71: 720
A72: 1974-05-01 | B72: 300 | D72: 4.3
A73: 1974-05-01 | B73: 310 | D73: 12
A74: 1974-05-01 | B74: 403 | D74: 7.6
A75: 1974-05-01 | B75: 31501 | D75: 49000
A76: 1974-05-01 | B76: 31616 | D76: 5000
A77: 1974-06-05 | B77: 10 | D77: 27.8
A78: 1974-06-05 | B78: 11 | D78: 82
A79: 1974-06-05 | B79: 95 | D79: 525
A80: 1974-06-05 | B80: 300 | D80: 3.2
A81: 1974-06-05 | B81: 310 | D81: 10
A82: 1974-06-05 | B82: 400 | D82: 7.3
A83: 1974-06-05 | B83: 31501 | D83: 33000
A84: 1974-06-05 | B84: 31616 | D84: 5000
A85: 1974-07-10 | B85: 10 | D85: 28.5
A86: 1974-07-10 | B86: 11 | D86: 83.3
A87: 1974-07-10 | B87: 95 | D87: 666
A88: 1974-07-10 | B88: 300 | D88: 3.8
A89: 1974-07-10 | B89: 310 | D89: 11
A90: 1974-07-10 | B90: 403 | D90: 7.8
A91: 1974-07-10 | B91: 31501 | D91: 17000
A92: 1974-07-10 | B92: 31619 | D92: 11000
A93: 1975-01-08 | B93: 10 | D93: 17
A94: 1975-01-08 | B94: 11 | D94: 62.6
A95: 1975-01-08 | B95: 95 | D95: 428
A96: 1975-01-08 | B96: 300 | D96: 6.5
A97: 1975-01-08 | B97: 310 | D97: 6
A98: 1975-01-08 | B98: 403 | D98: 7.3
A99: 1975-01-08 | B99: 31501 | D99: 2000
A100: 1975-01-08 | B100: 31616 | D100: 2000
A101: 1975-02-05 | B101: 10 | D101: 15.5
A102: 1975-02-05 | B102: 11 | D102: 59.9
A103: 1975-02-05 | B103: 95 | D103: 145
A104: 1975-02-05 | B104: 300 | D104: 8.3
A105: 1975-02-05 | B105: 310 | D105: 8
A106: 1975-02-05 | B106: 403 | D106: 7.6
A107: 1975-02-05 | B107: 31501 | D107: 350000
A108: 1975-02-05 | B108: 31616 | D108: 33000
A109: 1975-03-05 | B109: 10 | D109: 16
A110: 1975-03-05 | B110: 11 | D110: 60.8
A111: 1975-03-05 | B111: 95 | D111: 556
A112: 1975-03-05 | B112: 300 | D112: 7.2
A113: 1975-03-05 | B113: 310 | D113: 12
A114: 1975-03-05 | B114: 403 | D114: 7.3
A115: 1975-03-05 | B115: 31501 | D115: 20
A116: 1975-03-05 | B116: 31616 | D116: 20
A117: 1975-04-02 | B117: 10 | D117: 19
A118: 1975-04-02 | B118: 11 | D118: 66.2
A119: 1975-04-02 | B119: 95 | D119: 660
A120: 1975-04-02 | B120: 300 | D120: 3.6
A121: 1975-04-02 | B121: 310 | D121: 19
A122: 1975-04-02 | B122: 403 | D122: 7.2
A123: 1975-04-02 | B123: 31501 | D123: 240000
A124: 1975-04-02 | B124: 31616 | D124: 5000
A125: 1975-05-07 | B125: 10 | D125: 35.5
A126: 1975-05-07 | B126: 11 | D126: 95.9
A127: 1975-05-07 | B127: 95 | D127: 506
A128: 1975-05-07 | B128: 300 | D128: 4.4
A129: 1975-05-07 | B129: 310 | D129: 11
A130: 1975-05-07 | B130: 403 | D130: 7.2
A131: 1975-05-07 | B131: 31501 | D131: 7000
A132: 1975-05-07 | B132: 31616 | D132: 2000
A133: 1975-06-18 | B133: 10 | D133: 27.9
A134: 1975-06-18 | B134: 11 | D134: 82.2
A135: 1975-06-18 | B135: 95 | D135: 119
A136: 1975-06-18 | B136: 300 | D136: 5.5
A137: 1975-06-18 | B137: 310 | D137: 3
A138: 1975-06-18 | B138: 403 | D138: 6.7
A139: 1975-06-18 | B139: 31501 | D139: 2000
A140: 1975-06-18 | B140: 31616 | D140: 2000
A141: 1975-07-09 | B141: 10 | D141: 29.7
A142: 1975-07-09 | B142: 11 | D142: 85.5
A143: 1975-07-09 | B143: 95 | D143: 190
A144: 1975-07-09 | B144: 300 | D144: 5.5
A145: 1975-07-09 | B145: 310 | D145: 6
A146: 1975-07-09 | B146: 403 | D146: 7.1
A147: 1975-07-09 | B147: 31501 | D147: 17000
A148: 1975-07-09 | B148: 31616 | D148: 2000
A149: 1975-08-06 | B149: 10 | D149: 28
A150: 1975-08-06 | B150: 11 | D150: 82.4
A151: 1975-08-06 | B151: 95 | D151: 300
A152: 1975-08-06 | B152: 300 | D152: 4.9
A153: 1975-08-06 | B153: 310 | D153: 4
A154: 1975-08-06 | B154: 403 | D154: 7
A155: 1975-08-06 | B155: 31501 | D155: 350000
A156: 1975-08-06 | B156: 31616 | D156: 79000
A157: 1976-06-09 | B157: 630 | D157: 0.32
A158: 1976-06-09 | B158: 650 | D158: 0.326
A159: 1976-06-09 | B159: 665 | D159: 0.106536
A160: 1976-06-09 | B160: 1027 | C160: < | D160: 10
A161: 1976-06-09 | B161: 1034 | C161: < | D161: 100
A162: 1976-06-09 | B162: 1042 | C162: < | D162: 10
A163: 1976-06-09 | B163: 1051 | C163: < | D163: 100
A164: 1976-06-09 | B164: 1055 | C164: < | D164: 10
A165: 1976-06-09 | B165: 1067 | C165: < | D165: 100
A166: 1976-06-09 | B166: 1092 | C166: < | D166: 10
A167: 1976-06-09 | B167: 61 | D167: 740
A168: 1976-06-09 | B168: 95 | D168: 125
A169: 1976-06-09 | B169: 300 | D169: 6.5
A170: 1976-06-09 | B170: 310 | D170: 4
A171: 1976-06-09 | B171: 340 | C171: < | D171: 20
A172: 1976-06-09 | B172: 403 | D172: 7.3
A173: 1976-06-09 | B173: 556 | C173: < | D173: 1
A174: 1976-06-09 | B174: 605 | D174: 1.3
A175: 1976-06-09 | B175: 610 | D175: 0.4
A176: 1976-06-09 | B176: 615 | D176: 0.07
A177: 1976-06-09 | B177: 620 | D177: 0.25
A178: 1976-06-09 | B178: 31501 | D178: 1100
A179: 1976-06-09 | B179: 31616 | D179: 200
A180: 1976-07-07 | B180: 630 | D180: 0.38
A181: 1976-07-07 | B181: 650 | D181: 0.65
A182: 1976-07-07 | B182: 665 | D182: 0.212418
A183: 1976-07-07 | B183: 1027 | C183: < | D183: 10
A184: 1976-07-07 | B184: 1034 | C184: < | D184: 10
A185: 1976-07-07 | B185: 1042 | C185: < | D185: 10
A186: 1976-07-07 | B186: 1051 | C186: < | D186: 100
A187: 1976-07-07 | B187: 1055 | D187: 80
A188: 1976-07-07 | B188: 1067 | C188: < | D188: 100
A189: 1976-07-07 | B189: 1092 | D189: 40
A190: 1976-07-07 | B190: 61 | D190: 1.3
A191: 1976-07-07 | B191: 95 | D191: 445
A192: 1976-07-07 | B192: 300 | D192: 5.6
A193: 1976-07-07 | B193: 310 | D193: 3
A194: 1976-07-07 | B194: 340 | D194: 22
A195: 1976-07-07 | B195: 403 | D195: 7.4
A196: 1976-07-07 | B196: 515 | D196: 322
A197: 1976-07-07 | B197: 530 | D197: 90
A198: 1976-07-07 | B198: 556 | D198: 1.8
A199: 1976-07-07 | B199: 605 | D199: 0.8
A200: 1976-07-07 | B200: 610 | D200: 0.7
A201: 1976-07-07 | B201: 615 | D201: 0.21
A202: 1976-07-07 | B202: 620 | D202: 0.17
A203: 1976-07-07 | B203: 31501 | D203: 4900
... 4297 more rows
